﻿Department family,Entity,Date of payment,Expense type,Expense area,Supplier,Transaction number,Amount in Sterling,Supplier VAT Registration Number
Department of Health,Guys and St Thomas NHS Foundation Trust,14/02/2020,(84600) Establishment,(id:1013419) Cancer Supportive Services and R&D,AAPT (UK),id:12762891 ,3880.00
Department of Health,Guys and St Thomas NHS Foundation Trust,14/02/2020,(84400) Transport,(id:42276) Cancer Supportive Services and R&D,CITYSPRINT (UK) LTD,id:12812418  , 438.15
Department of Health,Guys and St Thomas NHS Foundation Trust,21/02/2020,(89200) Other - Patient travel,(id:42276) Cancer Supportive Services and R&D,DONNA STATHAM,id:12830680, 530.94
Department of Health,Guys and St Thomas NHS Foundation Trust,07/02/2020,(83400) Office Equipment,(id:42279) Cancer Supportive Services and R&D,NHS SUPPLY CHAIN (MAIDSTONE),id:12723357 ,  19.44
Department of Health,Guys and St Thomas NHS Foundation Trust,14/02/2020,(81200) Medical Surgical Supplies & Equipment,(id:42277) Cancer Supportive Services and R&D,PURPLE FLAME AROMATHERAPY LTD,id:12820731    , 533.46
Department of Health,Guys and St Thomas NHS Foundation Trust,14/02/2020,(81100) Dressings,(id:42270) Haematology,NHS SUPPLY CHAIN (MAIDSTONE),id:12743100 , 531.03
Department of Health,Guys and St Thomas NHS Foundation Trust,07/02/2020,(81700) Lab Equipment Purchase,(id:42270) Haematology,NHS SUPPLY CHAIN (MAIDSTONE),id:12723357   , 225.40
Department of Health,Guys and St Thomas NHS Foundation Trust,14/02/2020,(81700) Lab Equipment Purchase,(id:42270) Haematology,NHS SUPPLY CHAIN (MAIDSTONE),id:12743100   , 451.07
Department of Health,Guys and St Thomas NHS Foundation Trust,27/02/2020,(81000) Surgical Appliances,(id:42268) Haematology,TALAR MADE ORTHOTICS LTD,id:12850554, 436.08
Department of Health,Guys and St Thomas NHS Foundation Trust,14/02/2020,(82000) Provisions & Kitchens,(id:42265) Haematology,NHS SUPPLY CHAIN (MAIDSTONE),id:12743100    ,  77.89
Department of Health,Guys and St Thomas NHS Foundation Trust,07/02/2020,(82600) Uniforms & Clothing,(id:42265) Haematology,NHS SUPPLY CHAIN (MAIDSTONE),id:12723357 ,1058.28
Department of Health,Guys and St Thomas NHS Foundation Trust,07/02/2020,(81200) Medical Surgical Supplies & Equipment,(id:42265) Haematology,NHS SUPPLY CHAIN (MAIDSTONE),id:12723357   ,2547.71
Department of Health,Guys and St Thomas NHS Foundation Trust,21/02/2020,(81200) Medical Surgical Supplies & Equipment,(id:42265) Haematology,NHS SUPPLY CHAIN (MAIDSTONE),id:12777276   ,2412.62
Department of Health,Guys and St Thomas NHS Foundation Trust,14/02/2020,(81225) Medical Surgical Supplies & Equipment,(id:42265) Haematology,NHS SUPPLY CHAIN (MAIDSTONE),id:12743100   ,  10.08
Department of Health,Guys and St Thomas NHS Foundation Trust,27/02/2020,(81700) Lab Equipment Purchase,(id:42265) Haematology,NHS SUPPLY CHAIN (MAIDSTONE),id:12794121   ,  66.03
Department of Health,Guys and St Thomas NHS Foundation Trust,14/02/2020,(82600) Uniforms & Clothing,(id:42272) Haematology,ARENA INSTRUMENTATION LTD,id:12748725    , 672.00
Department of Health,Guys and St Thomas NHS Foundation Trust,14/02/2020,(82000) Provisions & Kitchens,(id:42272) Haematology,NHS SUPPLY CHAIN (MAIDSTONE),id:12743100    ,   9.22
Department of Health,Guys and St Thomas NHS Foundation Trust,07/02/2020,(83400) Office Equipment,(id:42272) Haematology,NHS SUPPLY CHAIN (MAIDSTONE),id:12723357    , 143.98
Department of Health,Guys and St Thomas NHS Foundation Trust,27/02/2020,(50200) Consultants,(id:42272) Haematology,ST GEORGE'S UNIVERSITY HOSPITALS NHS FOUNDATION TRUST,id:12840924    ,6549.00
Department of Health,Guys and St Thomas NHS Foundation Trust,07/02/2020,(50200) Consultants,(id:42272) Haematology,ST GEORGE'S UNIVERSITY HOSPITALS NHS FOUNDATION TRUST,id:12779918    ,6549.00
Department of Health,Guys and St Thomas NHS Foundation Trust,14/02/2020,(80205) Drug Costs,(id:42273) Haematology,BAXALTA UK LTD,id:12803523    ,3017.40
Department of Health,Guys and St Thomas NHS Foundation Trust,14/02/2020,(80205) Drug Costs,(id:42273) Haematology,HEALTHCARE AT HOME LTD,id:12803529 ,1526.31
Department of Health,Guys and St Thomas NHS Foundation Trust,14/02/2020,(80205) Drug Costs,(id:42273) Haematology,HEALTHCARE AT HOME LTD,id:12803532 ,5187.50
Department of Health,Guys and St Thomas NHS Foundation Trust,21/02/2020,(80205) Drug Costs,(id:42273) Haematology,HEALTHCARE AT HOME LTD,id:12828394 ,2125.00
Department of Health,Guys and St Thomas NHS Foundation Trust,21/02/2020,(80205) Drug Costs,(id:42273) Haematology,HEALTHCARE AT HOME LTD,id:12828671 ,2825.00
Department of Health,Guys and St Thomas NHS Foundation Trust,21/02/2020,(80205) Drug Costs,(id:42273) Haematology,HEALTHCARE AT HOME LTD,id:12828534 ,2937.50
Department of Health,Guys and St Thomas NHS Foundation Trust,21/02/2020,(80205) Drug Costs,(id:42273) Haematology,HEALTHCARE AT HOME LTD,id:12828598 ,2937.50
Department of Health,Guys and St Thomas NHS Foundation Trust,21/02/2020,(80205) Drug Costs,(id:42273) Haematology,HEALTHCARE AT HOME LTD,id:12828564 ,3500.00
Department of Health,Guys and St Thomas NHS Foundation Trust,21/02/2020,(80205) Drug Costs,(id:42273) Haematology,HEALTHCARE AT HOME LTD,id:12828559 ,3875.00
Department of Health,Guys and St Thomas NHS Foundation Trust,21/02/2020,(80205) Drug Costs,(id:42273) Haematology,HEALTHCARE AT HOME LTD,id:12828388 ,4125.00
Department of Health,Guys and St Thomas NHS Foundation Trust,21/02/2020,(80205) Drug Costs,(id:42273) Haematology,HEALTHCARE AT HOME LTD,id:12828381 ,4925.00
Department of Health,Guys and St Thomas NHS Foundation Trust,21/02/2020,(80205) Drug Costs,(id:42273) Haematology,HEALTHCARE AT HOME LTD,id:12828389 ,7325.00
Department of Health,Guys and St Thomas NHS Foundation Trust,21/02/2020,(80205) Drug Costs,(id:42273) Haematology,HEALTHCARE AT HOME LTD,id:12828595 ,8525.00
Department of Health,Guys and St Thomas NHS Foundation Trust,21/02/2020,(80205) Drug Costs,(id:42273) Haematology,HEALTHCARE AT HOME LTD,id:12828385 ,9625.00
Department of Health,Guys and St Thomas NHS Foundation Trust,21/02/2020,(80205) Drug Costs,(id:42273) Haematology,HEALTHCARE AT HOME LTD,id:12828620 ,    14477.00
Department of Health,Guys and St Thomas NHS Foundation Trust,21/02/2020,(80205) Drug Costs,(id:42273) Haematology,HEALTHCARE AT HOME LTD,id:12828632 ,    19525.00
Department of Health,Guys and St Thomas NHS Foundation Trust,27/02/2020,(54052) Technical Officers,(id:42128) Haematology,TOTAL ASSIST RECRUITMENT LTD,id:12826832  ,1024.56
Department of Health,Guys and St Thomas NHS Foundation Trust,14/02/2020,(54052) Technical Officers,(id:42128) Haematology,TOTAL ASSIST RECRUITMENT LTD,id:12796706  ,1162.10
Department of Health,Guys and St Thomas NHS Foundation Trust,27/02/2020,(82800) Bedding & Linen,(id:42258) Oncology Services,NHS SUPPLY CHAIN (MAIDSTONE),id:12794121    ,  20.09
Department of Health,Guys and St Thomas NHS Foundation Trust,14/02/2020,(81200) Medical Surgical Supplies & Equipment,(id:42258) Oncology Services,NHS SUPPLY CHAIN (MAIDSTONE),id:12743100  , 160.36
Department of Health,Guys and St Thomas NHS Foundation Trust,26/02/2020,(52062) Radiographers,(id:42258) Oncology Services,PRICEWATERHOUSECOOPERS LLP,id:12846903   ,6082.08
Department of Health,Guys and St Thomas NHS Foundation Trust,21/02/2020,(52062) Radiographers,(id:42258) Oncology Services,PRICEWATERHOUSECOOPERS LLP,id:12834514   ,4782.24
Department of Health,Guys and St Thomas NHS Foundation Trust,21/02/2020,(81500) X Ray Equipment Purchase,(id:42258) Oncology Services,NHS SUPPLY CHAIN (MAIDSTONE),id:12777276, 310.80
Department of Health,Guys and St Thomas NHS Foundation Trust,14/02/2020,(81000) Surgical Appliances,(id:42257) Oncology Services,TALAR MADE ORTHOTICS LTD,id:12814259    ,  46.50
Department of Health,Guys and St Thomas NHS Foundation Trust,14/02/2020,(84656) Establishment,(id:42261) Oncology Services,DICT8 LIMITED,id:12814155 , 527.76
Department of Health,Guys and St Thomas NHS Foundation Trust,21/02/2020,(89120) Other - Legal fees,(id:42261) Oncology Services,BEACHCROFT LLP OFFICE ACCOUNT,id:12831656,1335.90
Department of Health,Guys and St Thomas NHS Foundation Trust,21/02/2020,(89120) Other - Legal fees,(id:42261) Oncology Services,BEACHCROFT LLP OFFICE ACCOUNT,id:12831536,4830.15
Department of Health,Guys and St Thomas NHS Foundation Trust,07/02/2020,(81000) Surgical Appliances,(id:42261) Oncology Services,MEDI UK LTD,id:12799768  , 537.10
Department of Health,Guys and St Thomas NHS Foundation Trust,14/02/2020,(82600) Uniforms & Clothing,(id:42260) Oncology Services,NHS SUPPLY CHAIN (MAIDSTONE),id:12743100,  68.04
Department of Health,Guys and St Thomas NHS Foundation Trust,07/02/2020,(82600) Uniforms & Clothing,(id:42260) Oncology Services,NHS SUPPLY CHAIN (MAIDSTONE),id:12723357,  74.46
Department of Health,Guys and St Thomas NHS Foundation Trust,27/02/2020,(81200) Medical Surgical Supplies & Equipment,(id:42260) Oncology Services,ICU UK MEDICAL LTD,id:12842934  , 576.00
Department of Health,Guys and St Thomas NHS Foundation Trust,14/02/2020,(82800) Bedding & Linen,(id:42260) Oncology Services,NHS SUPPLY CHAIN (MAIDSTONE),id:12743100    , 243.51
Department of Health,Guys and St Thomas NHS Foundation Trust,27/02/2020,(83400) Office Equipment,(id:42260) Oncology Services,NHS SUPPLY CHAIN (MAIDSTONE),id:12794121   , 749.42
Department of Health,Guys and St Thomas NHS Foundation Trust,07/02/2020,(81100) Dressings,(id:42260) Oncology Services,NHS SUPPLY CHAIN (MAIDSTONE),id:12723357,1654.68
Department of Health,Guys and St Thomas NHS Foundation Trust,14/02/2020,(81100) Dressings,(id:42260) Oncology Services,NHS SUPPLY CHAIN (MAIDSTONE),id:12743100,1857.19
Department of Health,Guys and St Thomas NHS Foundation Trust,27/02/2020,(82000) Provisions & Kitchens,(id:42259) Oncology Services,NHS SUPPLY CHAIN (MAIDSTONE),id:12794121   , 122.48
Department of Health,Guys and St Thomas NHS Foundation Trust,14/02/2020,(82600) Uniforms & Clothing,(id:42259) Oncology Services,NHS SUPPLY CHAIN (MAIDSTONE),id:12743100, 320.33
Department of Health,Guys and St Thomas NHS Foundation Trust,07/02/2020,(82800) Bedding & Linen,(id:42259) Oncology Services,NHS SUPPLY CHAIN (MAIDSTONE),id:12723357    ,  79.69
Department of Health,Guys and St Thomas NHS Foundation Trust,21/02/2020,(81100) Dressings,(id:42259) Oncology Services,NHS SUPPLY CHAIN (MAIDSTONE),id:12777276, 694.99
Department of Health,Guys and St Thomas NHS Foundation Trust,27/02/2020,(81100) Dressings,(id:42259) Oncology Services,NHS SUPPLY CHAIN (MAIDSTONE),id:12794121,1903.93
Department of Health,Guys and St Thomas NHS Foundation Trust,07/02/2020,(50522) Unqualified Nursing Staff,(id:42259) Oncology Services,MSI GROUP LTD,id:12799382    , 249.99
Department of Health,Guys and St Thomas NHS Foundation Trust,07/02/2020,(83400) Office Equipment,(id:42259) Oncology Services,NHS SUPPLY CHAIN (MAIDSTONE),id:12723357   , 183.69
Department of Health,Guys and St Thomas NHS Foundation Trust,14/02/2020,(81200) Medical Surgical Supplies & Equipment,(id:42280) Surgical Oncology,SEBBIN UK LTD,id:12744438  , 672.00
Department of Health,Guys and St Thomas NHS Foundation Trust,21/02/2020,(81200) Medical Surgical Supplies & Equipment,(id:42280) Surgical Oncology,NHS SUPPLY CHAIN (MAIDSTONE),id:12777276  ,  91.92
Department of Health,Guys and St Thomas NHS Foundation Trust,27/02/2020,(81200) Medical Surgical Supplies & Equipment,(id:42280) Surgical Oncology,NHS SUPPLY CHAIN (MAIDSTONE),id:12794121  ,  15.34
Department of Health,Guys and St Thomas NHS Foundation Trust,27/02/2020,(81200) Medical Surgical Supplies & Equipment,(id:42280) Surgical Oncology,SQUADRON MEDICAL LTD,id:12815638, 319.21
Department of Health,Guys and St Thomas NHS Foundation Trust,07/02/2020,(83400) Office Equipment,(id:42280) Surgical Oncology,NHS SUPPLY CHAIN (MAIDSTONE),id:12723357   ,  24.00
Department of Health,Guys and St Thomas NHS Foundation Trust,21/02/2020,(83500) Furniture & Fittings,(id:243406) Surgical Oncology,NHS SUPPLY CHAIN (MAIDSTONE),id:12777276   , 432.00
Department of Health,Guys and St Thomas NHS Foundation Trust,07/02/2020,(81200) Medical Surgical Supplies & Equipment,(id:243406) Surgical Oncology,NHS SUPPLY CHAIN (MAIDSTONE),id:12723357 , 328.90
Department of Health,Guys and St Thomas NHS Foundation Trust,21/02/2020,(82000) Provisions & Kitchens,(id:243406) Surgical Oncology,NHS SUPPLY CHAIN (MAIDSTONE),id:12777276  , 278.46
Department of Health,Guys and St Thomas NHS Foundation Trust,27/02/2020,(82000) Provisions & Kitchens,(id:243406) Surgical Oncology,NHS SUPPLY CHAIN (MAIDSTONE),id:12794121  , 140.74
Department of Health,Guys and St Thomas NHS Foundation Trust,07/02/2020,(81200) Medical Surgical Supplies & Equipment,(id:42474) Surgical Oncology,MEDTRONIC LTD,id:12713060  , 543.60
Department of Health,Guys and St Thomas NHS Foundation Trust,21/02/2020,(54052) Technical Officers,(id:42474) Surgical Oncology,PRICEWATERHOUSECOOPERS LLP,id:12834494   , 174.51
Department of Health,Guys and St Thomas NHS Foundation Trust,14/02/2020,(81100) Dressings,(id:42473) Surgical Oncology,NHS SUPPLY CHAIN (MAIDSTONE),id:12743100, 556.35
Department of Health,Guys and St Thomas NHS Foundation Trust,07/02/2020,(81200) Medical Surgical Supplies & Equipment,(id:42473) Surgical Oncology,STRYKER UK LTD,id:12777003 , 205.18
Department of Health,Guys and St Thomas NHS Foundation Trust,14/02/2020,(81200) Medical Surgical Supplies & Equipment,(id:42473) Surgical Oncology,MERCIAN SURGICAL SUPPLY CO LTD,id:12780221,4626.00
Department of Health,Guys and St Thomas NHS Foundation Trust,14/02/2020,(81200) Medical Surgical Supplies & Equipment,(id:42473) Surgical Oncology,COOK UK LTD,id:12761287    , 780.00
Department of Health,Guys and St Thomas NHS Foundation Trust,14/02/2020,(81200) Medical Surgical Supplies & Equipment,(id:42473) Surgical Oncology,SEVERN HEALTHCARE TECHNOLOGIES LTD,id:12771556 ,1326.00
Department of Health,Guys and St Thomas NHS Foundation Trust,14/02/2020,(81215) Medical Surgical Supplies & Equipment,(id:42475) Surgical Oncology,NHS SUPPLY CHAIN (MAIDSTONE),id:12743100  , 240.91
Department of Health,Guys and St Thomas NHS Foundation Trust,14/02/2020,(81215) Medical Surgical Supplies & Equipment,(id:42475) Surgical Oncology,DICT8 LIMITED,id:12814116  , 754.44
Department of Health,Guys and St Thomas NHS Foundation Trust,21/02/2020,(81215) Medical Surgical Supplies & Equipment,(id:42475) Surgical Oncology,ADVANCED BIONICS SARL (AND UK LTD),id:12808013 ,7800.00
Department of Health,Guys and St Thomas NHS Foundation Trust,27/02/2020,(81215) Medical Surgical Supplies & Equipment,(id:42475) Surgical Oncology,ADVANCED BIONICS SARL (AND UK LTD),id:12841831 ,3361.56
Department of Health,Guys and St Thomas NHS Foundation Trust,27/02/2020,(81215) Medical Surgical Supplies & Equipment,(id:42475) Surgical Oncology,ADVANCED BIONICS SARL (AND UK LTD),id:12841735 ,7800.00
Department of Health,Guys and St Thomas NHS Foundation Trust,14/02/2020,(81225) Medical Surgical Supplies & Equipment,(id:42475) Surgical Oncology,COCHLEAR EUROPE LTD,id:12738179 ,    11100.00
Department of Health,Guys and St Thomas NHS Foundation Trust,27/02/2020,(81225) Medical Surgical Supplies & Equipment,(id:42475) Surgical Oncology,MINERVA LABORATORIES LTD,id:12843002 , 541.98
Department of Health,Guys and St Thomas NHS Foundation Trust,27/02/2020,(81225) Medical Surgical Supplies & Equipment,(id:42475) Surgical Oncology,OTICON LTD,id:12739816,    -2697.08
Department of Health,Guys and St Thomas NHS Foundation Trust,07/02/2020,(81225) Medical Surgical Supplies & Equipment,(id:42475) Surgical Oncology,COCHLEAR EUROPE LTD,id:12782009 ,7168.80
Department of Health,Guys and St Thomas NHS Foundation Trust,07/02/2020,(81225) Medical Surgical Supplies & Equipment,(id:42475) Surgical Oncology,COCHLEAR EUROPE LTD,id:12784157 ,5994.00
Department of Health,Guys and St Thomas NHS Foundation Trust,21/02/2020,(81225) Medical Surgical Supplies & Equipment,(id:42475) Surgical Oncology,COCHLEAR EUROPE LTD,id:12833142 ,2216.40
Department of Health,Guys and St Thomas NHS Foundation Trust,27/02/2020,(81200) Medical Surgical Supplies & Equipment,(id:42472) Surgical Oncology,OTICON LTD,id:7114871 , 586.26
Department of Health,Guys and St Thomas NHS Foundation Trust,27/02/2020,(81225) Medical Surgical Supplies & Equipment,(id:42472) Surgical Oncology,OTICON LTD,id:12784382,    12795.12
Department of Health,Guys and St Thomas NHS Foundation Trust,27/02/2020,(81225) Medical Surgical Supplies & Equipment,(id:42472) Surgical Oncology,STARKEY LABS LTD,id:12711700    ,3795.65
Department of Health,Guys and St Thomas NHS Foundation Trust,27/02/2020,(81225) Medical Surgical Supplies & Equipment,(id:42472) Surgical Oncology,STARKEY LABS LTD,id:12711984    ,3920.95
Department of Health,Guys and St Thomas NHS Foundation Trust,07/02/2020,(81300) Medical Surgical Supplies & Equipment,(id:42286) Surgical Oncology,MEDELA UK LTD,id:12776396  ,9270.00
Department of Health,Guys and St Thomas NHS Foundation Trust,07/02/2020,(81100) Dressings,(id:42286) Surgical Oncology,SQUADRON MEDICAL LTD,id:12759398   , 113.83
Department of Health,Guys and St Thomas NHS Foundation Trust,07/02/2020,(81200) Medical Surgical Supplies & Equipment,(id:42286) Surgical Oncology,MEDTRONIC LTD,id:12759648  ,1380.89
Department of Health,Guys and St Thomas NHS Foundation Trust,14/02/2020,(81200) Medical Surgical Supplies & Equipment,(id:42286) Surgical Oncology,JOHNSON & JOHNSON MEDICAL LTD,id:12702615 ,3241.37
Department of Health,Guys and St Thomas NHS Foundation Trust,14/02/2020,(82000) Provisions & Kitchens,(id:42284) Surgical Oncology,NHS SUPPLY CHAIN (MAIDSTONE),id:12743100   ,  53.66
Department of Health,Guys and St Thomas NHS Foundation Trust,21/02/2020,(82000) Provisions & Kitchens,(id:42284) Surgical Oncology,NHS SUPPLY CHAIN (MAIDSTONE),id:12777276   , 108.72
Department of Health,Guys and St Thomas NHS Foundation Trust,21/02/2020,(81200) Medical Surgical Supplies & Equipment,(id:42284) Surgical Oncology,HOSPITAL METALCRAFT LTD,id:12833092  ,1004.64
Department of Health,Guys and St Thomas NHS Foundation Trust,07/02/2020,(81200) Medical Surgical Supplies & Equipment,(id:42284) Surgical Oncology,NHS SUPPLY CHAIN (MAIDSTONE),id:12723357  ,2444.15
Department of Health,Guys and St Thomas NHS Foundation Trust,07/02/2020,(83610) IT Costs,(id:42284) Surgical Oncology,OFFICE DEPOT UK LTD,id:12759183,1295.76
Department of Health,Guys and St Thomas NHS Foundation Trust,14/02/2020,(50522) Unqualified Nursing Staff,(id:42284) Surgical Oncology,GLOBE LOCUMS LTD,id:12817649 , 248.32
Department of Health,Guys and St Thomas NHS Foundation Trust,07/02/2020,(83400) Office Equipment,(id:42284) Surgical Oncology,NHS SUPPLY CHAIN (MAIDSTONE),id:12723357   , 194.18
Department of Health,Guys and St Thomas NHS Foundation Trust,27/02/2020,(81225) Medical Surgical Supplies & Equipment,(id:42284) Surgical Oncology,NHS SUPPLY CHAIN (MAIDSTONE),id:12794121  ,  10.08
Department of Health,Guys and St Thomas NHS Foundation Trust,21/02/2020,(82800) Bedding & Linen,(id:42470) Surgical Oncology,NHS SUPPLY CHAIN (MAIDSTONE),id:12777276    , 134.95
Department of Health,Guys and St Thomas NHS Foundation Trust,27/02/2020,(81100) Dressings,(id:42470) Surgical Oncology,NHS SUPPLY CHAIN (MAIDSTONE),id:12794121, 689.57
Department of Health,Guys and St Thomas NHS Foundation Trust,14/02/2020,(81200) Medical Surgical Supplies & Equipment,(id:42470) Surgical Oncology,NHS SUPPLY CHAIN (MAIDSTONE),id:12743100  ,3281.11
Department of Health,Guys and St Thomas NHS Foundation Trust,27/02/2020,(81200) Medical Surgical Supplies & Equipment,(id:42470) Surgical Oncology,NHS SUPPLY CHAIN (MAIDSTONE),id:12794121  ,2752.13
Department of Health,Guys and St Thomas NHS Foundation Trust,14/02/2020,(81255) Medical Surgical Supplies & Equipment,(id:42470) Surgical Oncology,NHS SUPPLY CHAIN (MAIDSTONE),id:12743100  ,  19.56
Department of Health,Guys and St Thomas NHS Foundation Trust,21/02/2020,(81255) Medical Surgical Supplies & Equipment,(id:42470) Surgical Oncology,NHS SUPPLY CHAIN (MAIDSTONE),id:12777276  ,  12.48
Department of Health,Guys and St Thomas NHS Foundation Trust,27/02/2020,(81700) Lab Equipment Purchase,(id:42470) Surgical Oncology,NHS SUPPLY CHAIN (MAIDSTONE),id:12794121  ,  30.95
Department of Health,Guys and St Thomas NHS Foundation Trust,21/02/2020,(80010) Drug Costs,(id:42470) Surgical Oncology,NHS SUPPLY CHAIN (MAIDSTONE),id:12777276    ,  39.61
Department of Health,Guys and St Thomas NHS Foundation Trust,27/02/2020,(81200) Medical Surgical Supplies & Equipment,(id:42232) Integrated Therapies and Medicine,NHS SUPPLY CHAIN (MAIDSTONE),id:12794121 ,4394.58
Department of Health,Guys and St Thomas NHS Foundation Trust,21/02/2020,(51862) Physiotherapists,(id:42232) Integrated Therapies and Medicine,PRICEWATERHOUSECOOPERS LLP,id:12834514    ,2388.60
Department of Health,Guys and St Thomas NHS Foundation Trust,07/02/2020,(81225) Medical Surgical Supplies & Equipment,(id:42232) Integrated Therapies and Medicine,NHS SUPPLY CHAIN (MAIDSTONE),id:12723357 , 387.52
Department of Health,Guys and St Thomas NHS Foundation Trust,14/02/2020,(81225) Medical Surgical Supplies & Equipment,(id:42231) Integrated Therapies and Medicine,NHS SUPPLY CHAIN (MAIDSTONE),id:12743100 ,  16.70
Department of Health,Guys and St Thomas NHS Foundation Trust,21/02/2020,(51862) Physiotherapists,(id:42230) Integrated Therapies and Medicine,PRICEWATERHOUSECOOPERS LLP,id:12834514    ,7338.12
Department of Health,Guys and St Thomas NHS Foundation Trust,07/02/2020,(82800) Bedding & Linen,(id:42230) Integrated Therapies and Medicine,NHS SUPPLY CHAIN (MAIDSTONE),id:12723357   ,  40.18
Department of Health,Guys and St Thomas NHS Foundation Trust,07/02/2020,(89570) Other – Other Operating Expenditure,(id:2031419) Integrated Therapies and Medicine,KING'S COLLEGE HOSPITAL NHS FOUNDATION TRUST,id:12777894    ,    20784.00
Department of Health,Guys and St Thomas NHS Foundation Trust,27/02/2020,(81200) Medical Surgical Supplies & Equipment,(id:42240) Integrated Therapies and Medicine,1ST BIOTECH LIMITED,id:12847842,1219.50
Department of Health,Guys and St Thomas NHS Foundation Trust,07/02/2020,(81100) Dressings,(id:42239) Integrated Therapies and Medicine,NHS SUPPLY CHAIN (MAIDSTONE),id:12723357    ,2210.24
Department of Health,Guys and St Thomas NHS Foundation Trust,26/02/2020,(51872) Physiotherapists,(id:42239) Integrated Therapies and Medicine,PRICEWATERHOUSECOOPERS LLP,id:12846903    ,1607.96
Department of Health,Guys and St Thomas NHS Foundation Trust,21/02/2020,(51872) Physiotherapists,(id:42239) Integrated Therapies and Medicine,PRICEWATERHOUSECOOPERS LLP,id:12834494    ,1262.46
Department of Health,Guys and St Thomas NHS Foundation Trust,14/02/2020,(82800) Bedding & Linen,(id:590530) Integrated Therapies and Medicine,NHS SUPPLY CHAIN (MAIDSTONE),id:12743100  ,  40.85
Department of Health,Guys and St Thomas NHS Foundation Trust,27/02/2020,(81200) Medical Surgical Supplies & Equipment,(id:590530) Integrated Therapies and Medicine,NHS SUPPLY CHAIN (MAIDSTONE),id:12794121,  11.10
Department of Health,Guys and St Thomas NHS Foundation Trust,07/02/2020,(81200) Medical Surgical Supplies & Equipment,(id:590490) Integrated Therapies and Medicine,NHS SUPPLY CHAIN (MAIDSTONE),id:12723357, 229.14
Department of Health,Guys and St Thomas NHS Foundation Trust,07/02/2020,(81100) Dressings,(id:590490) Integrated Therapies and Medicine,BAILEY INSTRUMENTS LIMITED,id:12779454, 689.87
Department of Health,Guys and St Thomas NHS Foundation Trust,21/02/2020,(83400) Office Equipment,(id:590490) Integrated Therapies and Medicine,NHS SUPPLY CHAIN (MAIDSTONE),id:12777276 ,  23.28
Department of Health,Guys and St Thomas NHS Foundation Trust,07/02/2020,(81000) Surgical Appliances,(id:42243) Integrated Therapies and Medicine,TALAR MADE ORTHOTICS LTD,id:12796421   ,  34.80
Department of Health,Guys and St Thomas NHS Foundation Trust,27/02/2020,(81200) Medical Surgical Supplies & Equipment,(id:590499) Integrated Therapies and Medicine,INVACARE LTD,id:12838835 , 668.40
Department of Health,Guys and St Thomas NHS Foundation Trust,11/02/2020,(81200) Medical Surgical Supplies & Equipment,(id:590499) Integrated Therapies and Medicine,SUNRISE MEDICAL LIMITED,id:12799720,1566.00
Department of Health,Guys and St Thomas NHS Foundation Trust,14/02/2020,(81200) Medical Surgical Supplies & Equipment,(id:590499) Integrated Therapies and Medicine,INVACARE LTD,id:12803662 , 507.60
Department of Health,Guys and St Thomas NHS Foundation Trust,14/02/2020,(81200) Medical Surgical Supplies & Equipment,(id:590499) Integrated Therapies and Medicine,INVACARE LTD,id:12793758 , 538.80
Department of Health,Guys and St Thomas NHS Foundation Trust,14/02/2020,(81200) Medical Surgical Supplies & Equipment,(id:590499) Integrated Therapies and Medicine,INVACARE LTD,id:12792811 ,3082.80
Department of Health,Guys and St Thomas NHS Foundation Trust,14/02/2020,(81200) Medical Surgical Supplies & Equipment,(id:590499) Integrated Therapies and Medicine,INVACARE LTD,id:12792812 ,3206.40
Department of Health,Guys and St Thomas NHS Foundation Trust,27/02/2020,(81225) Medical Surgical Supplies & Equipment,(id:590499) Integrated Therapies and Medicine,INVACARE LTD,id:12838856 , 660.84
Department of Health,Guys and St Thomas NHS Foundation Trust,14/02/2020,(81225) Medical Surgical Supplies & Equipment,(id:590499) Integrated Therapies and Medicine,QBITUS PRODUCTS LTD,id:12793856    ,1118.34
Department of Health,Guys and St Thomas NHS Foundation Trust,21/02/2020,(89595) Non-Healthcare from Foundation Trusts,(id:590499) Integrated Therapies and Medicine,KING'S COLLEGE HOSPITAL NHS FOUNDATION TRUST,id:12824802    ,    48317.42
Department of Health,Guys and St Thomas NHS Foundation Trust,21/02/2020,(51462) Occupational Therapists,(id:590499) Integrated Therapies and Medicine,PRICEWATERHOUSECOOPERS LLP,id:12834494 ,1259.08
Department of Health,Guys and St Thomas NHS Foundation Trust,26/02/2020,(51862) Physiotherapists,(id:590499) Integrated Therapies and Medicine,PRICEWATERHOUSECOOPERS LLP,id:12846903   ,2188.85
Department of Health,Guys and St Thomas NHS Foundation Trust,14/02/2020,(81225) Medical Surgical Supplies & Equipment,(id:590498) Integrated Therapies and Medicine,JANE SAUNDERS & MANNING LTD,id:12767176 , 664.10
Department of Health,Guys and St Thomas NHS Foundation Trust,14/02/2020,(81000) Surgical Appliances,(id:590498) Integrated Therapies and Medicine,KENWARD ORTHOPAEDIC LTD,id:12757535   ,1280.43
Department of Health,Guys and St Thomas NHS Foundation Trust,14/02/2020,(81000) Surgical Appliances,(id:590498) Integrated Therapies and Medicine,BEAGLE ORTHOPAEDIC LTD,id:12686996    ,2028.60
Department of Health,Guys and St Thomas NHS Foundation Trust,14/02/2020,(81000) Surgical Appliances,(id:590498) Integrated Therapies and Medicine,DJO UK LTD,id:12693596 ,2520.00
Department of Health,Guys and St Thomas NHS Foundation Trust,14/02/2020,(81000) Surgical Appliances,(id:590498) Integrated Therapies and Medicine,KENWARD ORTHOPAEDIC LTD,id:12774816   , 604.86
Department of Health,Guys and St Thomas NHS Foundation Trust,14/02/2020,(81000) Surgical Appliances,(id:590498) Integrated Therapies and Medicine,KENWARD ORTHOPAEDIC LTD,id:12768836   , 630.57
Department of Health,Guys and St Thomas NHS Foundation Trust,14/02/2020,(81000) Surgical Appliances,(id:590498) Integrated Therapies and Medicine,KENWARD ORTHOPAEDIC LTD,id:12794199   , 647.19
Department of Health,Guys and St Thomas NHS Foundation Trust,14/02/2020,(81000) Surgical Appliances,(id:590498) Integrated Therapies and Medicine,ANATOMICAL CONCEPTS (UK) LTD,id:12692111   ,4872.90
Department of Health,Guys and St Thomas NHS Foundation Trust,27/02/2020,(81000) Surgical Appliances,(id:590498) Integrated Therapies and Medicine,ALLARD SUPPORT LTD,id:12839934   , 750.72
Department of Health,Guys and St Thomas NHS Foundation Trust,27/02/2020,(81000) Surgical Appliances,(id:590498) Integrated Therapies and Medicine,KENWARD ORTHOPAEDIC LTD,id:12839634   , 508.47
Department of Health,Guys and St Thomas NHS Foundation Trust,27/02/2020,(81400) Medical Surgical Supplies & Equipment,(id:590498) Integrated Therapies and Medicine,NPD ORTHOTICS LTD,id:12839854 , 919.05
Department of Health,Guys and St Thomas NHS Foundation Trust,27/02/2020,(81400) Medical Surgical Supplies & Equipment,(id:590498) Integrated Therapies and Medicine,NPD ORTHOTICS LTD,id:12839874 ,1414.35
Department of Health,Guys and St Thomas NHS Foundation Trust,14/02/2020,(84650) Establishment,(id:590498) Integrated Therapies and Medicine,BLATCHFORD LIMITED,id:12818309    ,1140.00
Department of Health,Guys and St Thomas NHS Foundation Trust,14/02/2020,(84650) Establishment,(id:590498) Integrated Therapies and Medicine,BLATCHFORD LIMITED,id:12794229    ,-950.00
Department of Health,Guys and St Thomas NHS Foundation Trust,14/02/2020,(84650) Establishment,(id:590498) Integrated Therapies and Medicine,BLATCHFORD LIMITED,id:12794228    ,    -1900.00
Department of Health,Guys and St Thomas NHS Foundation Trust,14/02/2020,(81225) Medical Surgical Supplies & Equipment,(id:590497) Integrated Therapies and Medicine,BLATCHFORD LIMITED,id:12804039,    37485.00
Department of Health,Guys and St Thomas NHS Foundation Trust,21/02/2020,(81225) Medical Surgical Supplies & Equipment,(id:590497) Integrated Therapies and Medicine,BLATCHFORD LIMITED,id:12804040,5071.35
Department of Health,Guys and St Thomas NHS Foundation Trust,27/02/2020,(81200) Medical Surgical Supplies & Equipment,(id:590496) Integrated Therapies and Medicine,NHS SUPPLY CHAIN (MAIDSTONE),id:12794121, 235.63
Department of Health,Guys and St Thomas NHS Foundation Trust,07/02/2020,(81100) Dressings,(id:590496) Integrated Therapies and Medicine,NHS SUPPLY CHAIN (MAIDSTONE),id:12723357   , 313.02
Department of Health,Guys and St Thomas NHS Foundation Trust,07/02/2020,(82800) Bedding & Linen,(id:590496) Integrated Therapies and Medicine,NHS SUPPLY CHAIN (MAIDSTONE),id:12723357  ,  20.40
Department of Health,Guys and St Thomas NHS Foundation Trust,27/02/2020,(83400) Office Equipment,(id:42242) Integrated Therapies and Medicine,NHS SUPPLY CHAIN (MAIDSTONE),id:12794121  ,   2.40
Department of Health,Guys and St Thomas NHS Foundation Trust,27/02/2020,(81100) Dressings,(id:1042419) Integrated Therapies and Medicine,NHS SUPPLY CHAIN (MAIDSTONE),id:12794121  ,  21.86
Department of Health,Guys and St Thomas NHS Foundation Trust,27/02/2020,(82000) Provisions & Kitchens,(id:1042419) Integrated Therapies and Medicine,NHS SUPPLY CHAIN (MAIDSTONE),id:12794121,  52.42
Department of Health,Guys and St Thomas NHS Foundation Trust,14/02/2020,(82700) Uniforms & Clothing,(id:2182419) Integrated Therapies and Medicine,NHS SUPPLY CHAIN (MAIDSTONE),id:12743100  , 273.80
Department of Health,Guys and St Thomas NHS Foundation Trust,14/02/2020,(81700) Lab Equipment Purchase,(id:2182419) Integrated Therapies and Medicine,NHS SUPPLY CHAIN (MAIDSTONE),id:12743100    , 199.87
Department of Health,Guys and St Thomas NHS Foundation Trust,27/02/2020,(82600) Uniforms & Clothing,(id:2182419) Integrated Therapies and Medicine,NHS SUPPLY CHAIN (MAIDSTONE),id:12794121  ,1148.53
Department of Health,Guys and St Thomas NHS Foundation Trust,14/02/2020,(81200) Medical Surgical Supplies & Equipment,(id:2182419) Integrated Therapies and Medicine,HOSPITAL METALCRAFT LTD,id:12795024    ,1890.00
Department of Health,Guys and St Thomas NHS Foundation Trust,21/02/2020,(81200) Medical Surgical Supplies & Equipment,(id:2182419) Integrated Therapies and Medicine,NHS SUPPLY CHAIN (MAIDSTONE),id:12777276    ,4563.37
Department of Health,Guys and St Thomas NHS Foundation Trust,07/02/2020,(50552) Qualified Nursing Staff,(id:2182419) Integrated Therapies and Medicine,MSI GROUP LTD,id:12796737   , 661.22
Department of Health,Guys and St Thomas NHS Foundation Trust,07/02/2020,(50552) Qualified Nursing Staff,(id:2182419) Integrated Therapies and Medicine,CONTINENTAL NURSE LTD,id:12799604, 676.70
Department of Health,Guys and St Thomas NHS Foundation Trust,07/02/2020,(50552) Qualified Nursing Staff,(id:2182419) Integrated Therapies and Medicine,CARE PROVIDERS HEALTHCARE,id:12799470 , 776.31
Department of Health,Guys and St Thomas NHS Foundation Trust,14/02/2020,(50552) Qualified Nursing Staff,(id:2182419) Integrated Therapies and Medicine,GLOBE LOCUMS LTD,id:12813878, 357.38
Department of Health,Guys and St Thomas NHS Foundation Trust,14/02/2020,(50552) Qualified Nursing Staff,(id:2182419) Integrated Therapies and Medicine,CARE PROVIDERS HEALTHCARE,id:12817638 , 402.72
Department of Health,Guys and St Thomas NHS Foundation Trust,21/02/2020,(50552) Qualified Nursing Staff,(id:2182419) Integrated Therapies and Medicine,GLOBE LOCUMS LTD,id:12826762, 609.03
Department of Health,Guys and St Thomas NHS Foundation Trust,27/02/2020,(50522) Unqualified Nursing Staff,(id:2182419) Integrated Therapies and Medicine,CARE PROVIDERS HEALTHCARE,id:12847540    , 481.20
Department of Health,Guys and St Thomas NHS Foundation Trust,07/02/2020,(50522) Unqualified Nursing Staff,(id:2182419) Integrated Therapies and Medicine,MSI GROUP LTD,id:12799328 , 649.13
Department of Health,Guys and St Thomas NHS Foundation Trust,27/02/2020,(81100) Dressings,(id:2182419) Integrated Therapies and Medicine,KCI MEDICAL LTD,id:12821937, 615.88
Department of Health,Guys and St Thomas NHS Foundation Trust,27/02/2020,(82000) Provisions & Kitchens,(id:2182419) Integrated Therapies and Medicine,NHS SUPPLY CHAIN (MAIDSTONE),id:12794121, 630.07
Department of Health,Guys and St Thomas NHS Foundation Trust,07/02/2020,(83400) Office Equipment,(id:2182419) Integrated Therapies and Medicine,NHS SUPPLY CHAIN (MAIDSTONE),id:12723357, 671.04
Department of Health,Guys and St Thomas NHS Foundation Trust,27/02/2020,(83400) Office Equipment,(id:41860) Integrated Therapies and Medicine,NHS SUPPLY CHAIN (MAIDSTONE),id:12794121  , 131.33
Department of Health,Guys and St Thomas NHS Foundation Trust,14/02/2020,(50552) Qualified Nursing Staff,(id:41860) Integrated Therapies and Medicine,GLOBE LOCUMS LTD,id:12817485  , 300.50
Department of Health,Guys and St Thomas NHS Foundation Trust,27/02/2020,(81255) Medical Surgical Supplies & Equipment,(id:41860) Integrated Therapies and Medicine,NHS SUPPLY CHAIN (MAIDSTONE),id:12794121 ,  26.37
Department of Health,Guys and St Thomas NHS Foundation Trust,27/02/2020,(50522) Unqualified Nursing Staff,(id:41860) Integrated Therapies and Medicine,MSI GROUP LTD,id:12851224   , 209.74
Department of Health,Guys and St Thomas NHS Foundation Trust,07/02/2020,(81200) Medical Surgical Supplies & Equipment,(id:41860) Integrated Therapies and Medicine,NHS SUPPLY CHAIN (MAIDSTONE),id:12723357 ,1139.44
Department of Health,Guys and St Thomas NHS Foundation Trust,07/02/2020,(82700) Uniforms & Clothing,(id:41859) Integrated Therapies and Medicine,NHS SUPPLY CHAIN (MAIDSTONE),id:12723357    ,  31.68
Department of Health,Guys and St Thomas NHS Foundation Trust,07/02/2020,(81255) Medical Surgical Supplies & Equipment,(id:41859) Integrated Therapies and Medicine,NHS SUPPLY CHAIN (MAIDSTONE),id:12723357 ,   1.87
Department of Health,Guys and St Thomas NHS Foundation Trust,14/02/2020,(50522) Unqualified Nursing Staff,(id:41859) Integrated Therapies and Medicine,MSI GROUP LTD,id:12817572   , 833.09
Department of Health,Guys and St Thomas NHS Foundation Trust,07/02/2020,(82000) Provisions & Kitchens,(id:41858) Integrated Therapies and Medicine,NHS SUPPLY CHAIN (MAIDSTONE),id:12723357  , 216.67
Department of Health,Guys and St Thomas NHS Foundation Trust,14/02/2020,(50522) Unqualified Nursing Staff,(id:41858) Integrated Therapies and Medicine,GLOBE LOCUMS LTD,id:12817757, 229.12
Department of Health,Guys and St Thomas NHS Foundation Trust,07/02/2020,(81200) Medical Surgical Supplies & Equipment,(id:41858) Integrated Therapies and Medicine,NHS SUPPLY CHAIN (MAIDSTONE),id:12723357 , 230.22
Department of Health,Guys and St Thomas NHS Foundation Trust,14/02/2020,(81225) Medical Surgical Supplies & Equipment,(id:41858) Integrated Therapies and Medicine,NHS SUPPLY CHAIN (MAIDSTONE),id:12743100 ,   6.60
Department of Health,Guys and St Thomas NHS Foundation Trust,27/02/2020,(50203) Consultants,(id:41855) Integrated Therapies and Medicine,KINGS COLLEGE LONDON:03529700,id:12593196 ,6138.38
Department of Health,Guys and St Thomas NHS Foundation Trust,26/02/2020,(50472) Medical Training Grades,(id:41873) Integrated Therapies and Medicine,PRICEWATERHOUSECOOPERS LLP,id:12846903  ,3140.29
Department of Health,Guys and St Thomas NHS Foundation Trust,21/02/2020,(50532) Unqualified Nursing Staff,(id:41872) Integrated Therapies and Medicine,MSI GROUP LTD,id:12830035   , 211.28
Department of Health,Guys and St Thomas NHS Foundation Trust,07/02/2020,(81000) Surgical Appliances,(id:41872) Integrated Therapies and Medicine,TALAR MADE ORTHOTICS LTD,id:12796897   , 114.00
Department of Health,Guys and St Thomas NHS Foundation Trust,07/02/2020,(50552) Qualified Nursing Staff,(id:41872) Integrated Therapies and Medicine,CARE PROVIDERS HEALTHCARE,id:12796590   , 540.55
Department of Health,Guys and St Thomas NHS Foundation Trust,07/02/2020,(50552) Qualified Nursing Staff,(id:41872) Integrated Therapies and Medicine,MSI GROUP LTD,id:12796737, 330.61
Department of Health,Guys and St Thomas NHS Foundation Trust,07/02/2020,(50552) Qualified Nursing Staff,(id:41872) Integrated Therapies and Medicine,MEDACS HEALTHCARE SERVICES PLC,id:12799770   , 453.63
Department of Health,Guys and St Thomas NHS Foundation Trust,07/02/2020,(50552) Qualified Nursing Staff,(id:41872) Integrated Therapies and Medicine,MEDACS HEALTHCARE SERVICES PLC,id:12799756   ,-468.56
Department of Health,Guys and St Thomas NHS Foundation Trust,14/02/2020,(50552) Qualified Nursing Staff,(id:41872) Integrated Therapies and Medicine,GLOBE LOCUMS LTD,id:12817452  , 306.28
Department of Health,Guys and St Thomas NHS Foundation Trust,14/02/2020,(50552) Qualified Nursing Staff,(id:41872) Integrated Therapies and Medicine,FIRSTPOINT HEALTHCARE LTD,id:12813872   , 960.23
Department of Health,Guys and St Thomas NHS Foundation Trust,14/02/2020,(50552) Qualified Nursing Staff,(id:41872) Integrated Therapies and Medicine,CONTINENTAL NURSE LTD,id:12813979  ,2193.32
Department of Health,Guys and St Thomas NHS Foundation Trust,21/02/2020,(50552) Qualified Nursing Staff,(id:41872) Integrated Therapies and Medicine,CONTINENTAL NURSE LTD,id:12827106  ,2516.93
Department of Health,Guys and St Thomas NHS Foundation Trust,21/02/2020,(50552) Qualified Nursing Staff,(id:41872) Integrated Therapies and Medicine,GLOBE LOCUMS LTD,id:12826916  , 348.52
Department of Health,Guys and St Thomas NHS Foundation Trust,27/02/2020,(50552) Qualified Nursing Staff,(id:41872) Integrated Therapies and Medicine,GLOBE LOCUMS LTD,id:12851203  , 353.96
Department of Health,Guys and St Thomas NHS Foundation Trust,27/02/2020,(50552) Qualified Nursing Staff,(id:41872) Integrated Therapies and Medicine,CONTINENTAL NURSE LTD,id:12847570  ,1422.12
Department of Health,Guys and St Thomas NHS Foundation Trust,14/02/2020,(50522) Unqualified Nursing Staff,(id:41872) Integrated Therapies and Medicine,GLOBE LOCUMS LTD,id:12817484, 203.34
Department of Health,Guys and St Thomas NHS Foundation Trust,07/02/2020,(50552) Qualified Nursing Staff,(id:41870) Integrated Therapies and Medicine,GLOBE LOCUMS LTD,id:12783963  , 588.29
Department of Health,Guys and St Thomas NHS Foundation Trust,07/02/2020,(50552) Qualified Nursing Staff,(id:41870) Integrated Therapies and Medicine,GLOBE LOCUMS LTD,id:12796767  , 322.42
Department of Health,Guys and St Thomas NHS Foundation Trust,07/02/2020,(50552) Qualified Nursing Staff,(id:41870) Integrated Therapies and Medicine,GLOBE LOCUMS LTD,id:12783948  , 327.21
Department of Health,Guys and St Thomas NHS Foundation Trust,27/02/2020,(50552) Qualified Nursing Staff,(id:41870) Integrated Therapies and Medicine,GLOBE LOCUMS LTD,id:12851203  , 353.96
Department of Health,Guys and St Thomas NHS Foundation Trust,14/02/2020,(82600) Uniforms & Clothing,(id:41869) Integrated Therapies and Medicine,SQUADRON MEDICAL LTD,id:12680729  ,  92.66
Department of Health,Guys and St Thomas NHS Foundation Trust,07/02/2020,(83400) Office Equipment,(id:41869) Integrated Therapies and Medicine,NHS SUPPLY CHAIN (MAIDSTONE),id:12723357  , 296.25
Department of Health,Guys and St Thomas NHS Foundation Trust,21/02/2020,(83400) Office Equipment,(id:41869) Integrated Therapies and Medicine,SQUADRON MEDICAL LTD,id:12786452,  35.93
Department of Health,Guys and St Thomas NHS Foundation Trust,21/02/2020,(83400) Office Equipment,(id:41869) Integrated Therapies and Medicine,SQUADRON MEDICAL LTD,id:12786392, 188.83
Department of Health,Guys and St Thomas NHS Foundation Trust,27/02/2020,(83400) Office Equipment,(id:41869) Integrated Therapies and Medicine,NHS SUPPLY CHAIN (MAIDSTONE),id:12794121  , 150.22
Department of Health,Guys and St Thomas NHS Foundation Trust,07/02/2020,(83400) Office Equipment,(id:41869) Integrated Therapies and Medicine,SQUADRON MEDICAL LTD,id:12759349, 310.22
Department of Health,Guys and St Thomas NHS Foundation Trust,07/02/2020,(83500) Furniture & Fittings,(id:41869) Integrated Therapies and Medicine,ANETIC AID LTD,id:12643356  , 750.12
Department of Health,Guys and St Thomas NHS Foundation Trust,07/02/2020,(82800) Bedding & Linen,(id:41869) Integrated Therapies and Medicine,NHS SUPPLY CHAIN (MAIDSTONE),id:12723357   ,  33.05
Department of Health,Guys and St Thomas NHS Foundation Trust,07/02/2020,(81200) Medical Surgical Supplies & Equipment,(id:41869) Integrated Therapies and Medicine,SQUADRON MEDICAL LTD,id:12717800    , 728.67
Department of Health,Guys and St Thomas NHS Foundation Trust,14/02/2020,(81200) Medical Surgical Supplies & Equipment,(id:41869) Integrated Therapies and Medicine,SQUADRON MEDICAL LTD,id:12777833    ,1324.08
Department of Health,Guys and St Thomas NHS Foundation Trust,14/02/2020,(81200) Medical Surgical Supplies & Equipment,(id:41869) Integrated Therapies and Medicine,NHS SUPPLY CHAIN (MAIDSTONE),id:12743100 ,2430.83
Department of Health,Guys and St Thomas NHS Foundation Trust,14/02/2020,(81200) Medical Surgical Supplies & Equipment,(id:41869) Integrated Therapies and Medicine,SQUADRON MEDICAL LTD,id:12766416    ,2318.18
Department of Health,Guys and St Thomas NHS Foundation Trust,21/02/2020,(81200) Medical Surgical Supplies & Equipment,(id:41869) Integrated Therapies and Medicine,SQUADRON MEDICAL LTD,id:12786452    ,1207.24
Department of Health,Guys and St Thomas NHS Foundation Trust,21/02/2020,(81200) Medical Surgical Supplies & Equipment,(id:41869) Integrated Therapies and Medicine,SQUADRON MEDICAL LTD,id:12784597    , 508.94
Department of Health,Guys and St Thomas NHS Foundation Trust,27/02/2020,(81200) Medical Surgical Supplies & Equipment,(id:41869) Integrated Therapies and Medicine,SQUADRON MEDICAL LTD,id:12804678    ,1486.07
Department of Health,Guys and St Thomas NHS Foundation Trust,27/02/2020,(81200) Medical Surgical Supplies & Equipment,(id:41869) Integrated Therapies and Medicine,SQUADRON MEDICAL LTD,id:12815685    ,1102.71
Department of Health,Guys and St Thomas NHS Foundation Trust,21/02/2020,(81100) Dressings,(id:41869) Integrated Therapies and Medicine,NHS SUPPLY CHAIN (MAIDSTONE),id:12777276    , 160.82
Department of Health,Guys and St Thomas NHS Foundation Trust,14/02/2020,(81100) Dressings,(id:41869) Integrated Therapies and Medicine,NHS SUPPLY CHAIN (MAIDSTONE),id:12743100    , 199.19
Department of Health,Guys and St Thomas NHS Foundation Trust,07/02/2020,(81700) Lab Equipment Purchase,(id:41869) Integrated Therapies and Medicine,SQUADRON MEDICAL LTD,id:12763969    ,  38.59
Department of Health,Guys and St Thomas NHS Foundation Trust,07/02/2020,(81700) Lab Equipment Purchase,(id:41869) Integrated Therapies and Medicine,SQUADRON MEDICAL LTD,id:12759349    ,  86.83
Department of Health,Guys and St Thomas NHS Foundation Trust,21/02/2020,(81100) Dressings,(id:41868) Integrated Therapies and Medicine,NHS SUPPLY CHAIN (MAIDSTONE),id:12777276    , 764.72
Department of Health,Guys and St Thomas NHS Foundation Trust,14/02/2020,(81200) Medical Surgical Supplies & Equipment,(id:41868) Integrated Therapies and Medicine,NHS SUPPLY CHAIN (MAIDSTONE),id:12743100 , 758.76
Department of Health,Guys and St Thomas NHS Foundation Trust,27/02/2020,(81200) Medical Surgical Supplies & Equipment,(id:41868) Integrated Therapies and Medicine,NHS SUPPLY CHAIN (MAIDSTONE),id:12794121 , 107.66
Department of Health,Guys and St Thomas NHS Foundation Trust,14/02/2020,(89595) Non-Healthcare from Foundation Trusts,(id:41868) Integrated Therapies and Medicine,SOUTH LONDON AND MAUDSLEY NHS FOUNDATION TRUST,id:12777902   ,3610.00
Department of Health,Guys and St Thomas NHS Foundation Trust,14/02/2020,(89595) Non-Healthcare from Foundation Trusts,(id:41868) Integrated Therapies and Medicine,SOUTH LONDON AND MAUDSLEY NHS FOUNDATION TRUST,id:12777901   ,    13685.00
Department of Health,Guys and St Thomas NHS Foundation Trust,07/02/2020,(83400) Office Equipment,(id:41868) Integrated Therapies and Medicine,NHS SUPPLY CHAIN (MAIDSTONE),id:12723357  , 113.72
Department of Health,Guys and St Thomas NHS Foundation Trust,21/02/2020,(82000) Provisions & Kitchens,(id:41880) Integrated Therapies and Medicine,NHS SUPPLY CHAIN (MAIDSTONE),id:12777276  , 177.40
Department of Health,Guys and St Thomas NHS Foundation Trust,27/02/2020,(83400) Office Equipment,(id:41880) Integrated Therapies and Medicine,NHS SUPPLY CHAIN (MAIDSTONE),id:12794121  ,  57.63
Department of Health,Guys and St Thomas NHS Foundation Trust,27/02/2020,(83500) Furniture & Fittings,(id:41880) Integrated Therapies and Medicine,NHS SUPPLY CHAIN (MAIDSTONE),id:12794121   ,  65.52
Department of Health,Guys and St Thomas NHS Foundation Trust,21/02/2020,(82800) Bedding & Linen,(id:41880) Integrated Therapies and Medicine,NHS SUPPLY CHAIN (MAIDSTONE),id:12777276   ,  56.06
Department of Health,Guys and St Thomas NHS Foundation Trust,21/02/2020,(50552) Qualified Nursing Staff,(id:41880) Integrated Therapies and Medicine,MSI GROUP LTD,id:12830081, 331.38
Department of Health,Guys and St Thomas NHS Foundation Trust,27/02/2020,(81200) Medical Surgical Supplies & Equipment,(id:41880) Integrated Therapies and Medicine,NHS SUPPLY CHAIN (MAIDSTONE),id:12794121 ,1017.94
Department of Health,Guys and St Thomas NHS Foundation Trust,21/02/2020,(81200) Medical Surgical Supplies & Equipment,(id:41880) Integrated Therapies and Medicine,NHS SUPPLY CHAIN (MAIDSTONE),id:12777276 ,1163.24
Department of Health,Guys and St Thomas NHS Foundation Trust,14/02/2020,(50522) Unqualified Nursing Staff,(id:41880) Integrated Therapies and Medicine,GLOBE LOCUMS LTD,id:12817757, 229.12
Department of Health,Guys and St Thomas NHS Foundation Trust,14/02/2020,(50522) Unqualified Nursing Staff,(id:41880) Integrated Therapies and Medicine,MSI GROUP LTD,id:12813927   , 555.66
Department of Health,Guys and St Thomas NHS Foundation Trust,21/02/2020,(50522) Unqualified Nursing Staff,(id:41880) Integrated Therapies and Medicine,GLOBE LOCUMS LTD,id:12827048, 208.37
Department of Health,Guys and St Thomas NHS Foundation Trust,27/02/2020,(50522) Unqualified Nursing Staff,(id:41880) Integrated Therapies and Medicine,MSI GROUP LTD,id:12851299   , 225.99
Department of Health,Guys and St Thomas NHS Foundation Trust,27/02/2020,(50522) Unqualified Nursing Staff,(id:41880) Integrated Therapies and Medicine,MSI GROUP LTD,id:12851153   , 282.47
Department of Health,Guys and St Thomas NHS Foundation Trust,07/02/2020,(50522) Unqualified Nursing Staff,(id:41880) Integrated Therapies and Medicine,CARE PROVIDERS HEALTHCARE,id:12802426 , 504.12
Department of Health,Guys and St Thomas NHS Foundation Trust,21/02/2020,(81255) Medical Surgical Supplies & Equipment,(id:41880) Integrated Therapies and Medicine,NHS SUPPLY CHAIN (MAIDSTONE),id:12777276 ,   2.83
Department of Health,Guys and St Thomas NHS Foundation Trust,07/02/2020,(81100) Dressings,(id:41879) Integrated Therapies and Medicine,NHS SUPPLY CHAIN (MAIDSTONE),id:12723357    , 118.54
Department of Health,Guys and St Thomas NHS Foundation Trust,21/02/2020,(50522) Unqualified Nursing Staff,(id:41879) Integrated Therapies and Medicine,CARE PROVIDERS HEALTHCARE,id:12832948 ,1212.72
Department of Health,Guys and St Thomas NHS Foundation Trust,27/02/2020,(81200) Medical Surgical Supplies & Equipment,(id:41879) Integrated Therapies and Medicine,NHS SUPPLY CHAIN (MAIDSTONE),id:12794121 , 556.74
Department of Health,Guys and St Thomas NHS Foundation Trust,14/02/2020,(50552) Qualified Nursing Staff,(id:41879) Integrated Therapies and Medicine,CONTINENTAL NURSE LTD,id:12814013  ,2330.48
Department of Health,Guys and St Thomas NHS Foundation Trust,14/02/2020,(82600) Uniforms & Clothing,(id:41878) Integrated Therapies and Medicine,NHS SUPPLY CHAIN (MAIDSTONE),id:12743100    , 501.12
Department of Health,Guys and St Thomas NHS Foundation Trust,14/02/2020,(50552) Qualified Nursing Staff,(id:41878) Integrated Therapies and Medicine,CONTINENTAL NURSE LTD,id:12813809  ,3108.57
Department of Health,Guys and St Thomas NHS Foundation Trust,21/02/2020,(50522) Unqualified Nursing Staff,(id:41878) Integrated Therapies and Medicine,CARE PROVIDERS HEALTHCARE,id:12830163 , 798.69
Department of Health,Guys and St Thomas NHS Foundation Trust,27/02/2020,(50522) Unqualified Nursing Staff,(id:41878) Integrated Therapies and Medicine,CARE PROVIDERS HEALTHCARE,id:12851249 , 472.32
Department of Health,Guys and St Thomas NHS Foundation Trust,07/02/2020,(50522) Unqualified Nursing Staff,(id:41878) Integrated Therapies and Medicine,MSI GROUP LTD,id:12796761   , 445.14
Department of Health,Guys and St Thomas NHS Foundation Trust,07/02/2020,(81200) Medical Surgical Supplies & Equipment,(id:41878) Integrated Therapies and Medicine,MINDRAY UK LTD,id:12783998,8081.28
Department of Health,Guys and St Thomas NHS Foundation Trust,07/02/2020,(81000) Surgical Appliances,(id:41876) Integrated Therapies and Medicine,TALAR MADE ORTHOTICS LTD,id:12796421   ,  14.40
Department of Health,Guys and St Thomas NHS Foundation Trust,07/02/2020,(81000) Surgical Appliances,(id:41876) Integrated Therapies and Medicine,TALAR MADE ORTHOTICS LTD,id:12796406   , 394.50
Department of Health,Guys and St Thomas NHS Foundation Trust,07/02/2020,(83400) Office Equipment,(id:41881) Integrated Therapies and Medicine,NHS SUPPLY CHAIN (MAIDSTONE),id:12723357  , 118.71
Department of Health,Guys and St Thomas NHS Foundation Trust,21/02/2020,(82800) Bedding & Linen,(id:41881) Integrated Therapies and Medicine,NHS SUPPLY CHAIN (MAIDSTONE),id:12777276   , 149.71
Department of Health,Guys and St Thomas NHS Foundation Trust,07/02/2020,(82800) Bedding & Linen,(id:41881) Integrated Therapies and Medicine,NHS SUPPLY CHAIN (MAIDSTONE),id:12723357   ,  52.03
Department of Health,Guys and St Thomas NHS Foundation Trust,07/02/2020,(50552) Qualified Nursing Staff,(id:41881) Integrated Therapies and Medicine,CONTINENTAL NURSE LTD,id:12799579  ,2353.80
Department of Health,Guys and St Thomas NHS Foundation Trust,14/02/2020,(50552) Qualified Nursing Staff,(id:41881) Integrated Therapies and Medicine,CARE PROVIDERS HEALTHCARE,id:12814033   ,1019.81
Department of Health,Guys and St Thomas NHS Foundation Trust,07/02/2020,(50522) Unqualified Nursing Staff,(id:41881) Integrated Therapies and Medicine,MSI GROUP LTD,id:12799465   , 209.73
Department of Health,Guys and St Thomas NHS Foundation Trust,07/02/2020,(81200) Medical Surgical Supplies & Equipment,(id:41881) Integrated Therapies and Medicine,NHS SUPPLY CHAIN (MAIDSTONE),id:12723357 , 602.15
Department of Health,Guys and St Thomas NHS Foundation Trust,27/02/2020,(81700) Lab Equipment Purchase,(id:41881) Integrated Therapies and Medicine,NHS SUPPLY CHAIN (MAIDSTONE),id:12794121 ,  15.00
Department of Health,Guys and St Thomas NHS Foundation Trust,24/02/2020,(89000) Other - Training courses and conferences,(id:4409420) Integrated Local Services,INSTITUTE OF PALLIATIVE MEDICINE,id:12819796, 686.45
Department of Health,Guys and St Thomas NHS Foundation Trust,27/02/2020,(81000) Surgical Appliances,(id:42256) Integrated Local Services,TALAR MADE ORTHOTICS LTD,id:12850554 ,  29.40
Department of Health,Guys and St Thomas NHS Foundation Trust,14/02/2020,(89000) Other - Training courses and conferences,(id:42255) Integrated Local Services,FRONT LINE COMMUNICATION TRAINING LTD,id:12809583  , 978.80
Department of Health,Guys and St Thomas NHS Foundation Trust,14/02/2020,(82000) Provisions & Kitchens,(id:590597) Integrated Local Services,NHS SUPPLY CHAIN (MAIDSTONE),id:12743100    ,   5.15
Department of Health,Guys and St Thomas NHS Foundation Trust,07/02/2020,(83400) Office Equipment,(id:590595) Integrated Local Services,NHS SUPPLY CHAIN (MAIDSTONE),id:12723357    ,   7.92
Department of Health,Guys and St Thomas NHS Foundation Trust,14/02/2020,(82000) Provisions & Kitchens,(id:590469) Integrated Local Services,NHS SUPPLY CHAIN (MAIDSTONE),id:12743100    ,   6.44
Department of Health,Guys and St Thomas NHS Foundation Trust,14/02/2020,(82800) Bedding & Linen,(id:590431) Integrated Local Services,NHS SUPPLY CHAIN (MAIDSTONE),id:12743100,  20.74
Department of Health,Guys and St Thomas NHS Foundation Trust,14/02/2020,(82000) Provisions & Kitchens,(id:590425) Integrated Local Services,NHS SUPPLY CHAIN (MAIDSTONE),id:12743100    ,   3.64
Department of Health,Guys and St Thomas NHS Foundation Trust,07/02/2020,(50562) Qualified Nursing Staff,(id:590563) Integrated Local Services,CONTINENTAL NURSE LTD,id:12802373    ,1648.80
Department of Health,Guys and St Thomas NHS Foundation Trust,21/02/2020,(81255) Medical Surgical Supplies & Equipment,(id:590563) Integrated Local Services,NHS SUPPLY CHAIN (MAIDSTONE),id:12777276   ,  14.77
Department of Health,Guys and St Thomas NHS Foundation Trust,27/02/2020,(86300) Healthcare from non-NHS bodies,(id:590563) Integrated Local Services,PAVILION MEDICAL CENTRE,id:12849554,2029.20
Department of Health,Guys and St Thomas NHS Foundation Trust,26/02/2020,(53072) Speech Therapists,(id:590495) Integrated Local Services,PRICEWATERHOUSECOOPERS LLP,id:12846903,2860.08
Department of Health,Guys and St Thomas NHS Foundation Trust,21/02/2020,(51462) Occupational Therapists,(id:1885424) Integrated Local Services,PRICEWATERHOUSECOOPERS LLP,id:12834494   ,1041.65
Department of Health,Guys and St Thomas NHS Foundation Trust,21/02/2020,(51462) Occupational Therapists,(id:699422) Integrated Local Services,PRICEWATERHOUSECOOPERS LLP,id:12834494    , 179.45
Department of Health,Guys and St Thomas NHS Foundation Trust,21/02/2020,(50562) Qualified Nursing Staff,(id:699422) Integrated Local Services,CARE PROVIDERS HEALTHCARE,id:12832940,1260.99
Department of Health,Guys and St Thomas NHS Foundation Trust,26/02/2020,(51832) Physiotherapists,(id:699422) Integrated Local Services,PRICEWATERHOUSECOOPERS LLP,id:12846903 ,1366.93
Department of Health,Guys and St Thomas NHS Foundation Trust,26/02/2020,(51472) Occupational Therapists,(id:699422) Integrated Local Services,PRICEWATERHOUSECOOPERS LLP,id:12846903    ,1381.47
Department of Health,Guys and St Thomas NHS Foundation Trust,07/02/2020,(50204) Consultants,(id:699422) Integrated Local Services,KING'S COLLEGE HOSPITAL NHS FOUNDATION TRUST,id:12779766   ,1617.76
Department of Health,Guys and St Thomas NHS Foundation Trust,14/02/2020,(50562) Qualified Nursing Staff,(id:590523) Integrated Local Services,MSI GROUP LTD,id:12817402  , 767.05
Department of Health,Guys and St Thomas NHS Foundation Trust,21/02/2020,(51862) Physiotherapists,(id:590492) Integrated Local Services,PRICEWATERHOUSECOOPERS LLP,id:12834514 ,1217.37
Department of Health,Guys and St Thomas NHS Foundation Trust,21/02/2020,(51862) Physiotherapists,(id:684420) Integrated Local Services,PRICEWATERHOUSECOOPERS LLP,id:12834534 , 746.01
Department of Health,Guys and St Thomas NHS Foundation Trust,21/02/2020,(51862) Physiotherapists,(id:590504) Integrated Local Services,PRICEWATERHOUSECOOPERS LLP,id:12834534 ,3785.68
Department of Health,Guys and St Thomas NHS Foundation Trust,26/02/2020,(51462) Occupational Therapists,(id:684419) Integrated Local Services,PRICEWATERHOUSECOOPERS LLP,id:12846903    ,1217.37
Department of Health,Guys and St Thomas NHS Foundation Trust,21/02/2020,(51462) Occupational Therapists,(id:684419) Integrated Local Services,PRICEWATERHOUSECOOPERS LLP,id:12834534    ,1217.37
Department of Health,Guys and St Thomas NHS Foundation Trust,27/02/2020,(82000) Provisions & Kitchens,(id:684419) Integrated Local Services,NHS SUPPLY CHAIN (MAIDSTONE),id:12794121    ,  27.65
Department of Health,Guys and St Thomas NHS Foundation Trust,21/02/2020,(51842) Physiotherapists,(id:684419) Integrated Local Services,PERTEMPS MEDICAL PROFESSIONALS LIMITED,id:12829997    , 965.70
Department of Health,Guys and St Thomas NHS Foundation Trust,21/02/2020,(51862) Physiotherapists,(id:590503) Integrated Local Services,PRICEWATERHOUSECOOPERS LLP,id:12834514 ,1151.37
Department of Health,Guys and St Thomas NHS Foundation Trust,27/02/2020,(82000) Provisions & Kitchens,(id:590521) Integrated Local Services,NHS SUPPLY CHAIN (MAIDSTONE),id:12794121    ,  24.22
Department of Health,Guys and St Thomas NHS Foundation Trust,14/02/2020,(81200) Medical Surgical Supplies & Equipment,(id:590521) Integrated Local Services,NHS SUPPLY CHAIN (MAIDSTONE),id:12743100   , 754.01
Department of Health,Guys and St Thomas NHS Foundation Trust,14/02/2020,(50552) Qualified Nursing Staff,(id:590521) Integrated Local Services,NURSING 2000 LTD,id:12814027    ,1013.97
Department of Health,Guys and St Thomas NHS Foundation Trust,21/02/2020,(50552) Qualified Nursing Staff,(id:590521) Integrated Local Services,NURSING 2000 LTD,id:12813844    ,1610.56
Department of Health,Guys and St Thomas NHS Foundation Trust,07/02/2020,(81200) Medical Surgical Supplies & Equipment,(id:590520) Integrated Local Services,NHS SUPPLY CHAIN (MAIDSTONE),id:12723357   ,  46.68
Department of Health,Guys and St Thomas NHS Foundation Trust,27/02/2020,(83400) Office Equipment,(id:590473) Integrated Local Services,NHS SUPPLY CHAIN (MAIDSTONE),id:12794121    ,  61.15
Department of Health,Guys and St Thomas NHS Foundation Trust,07/02/2020,(81100) Dressings,(id:590473) Integrated Local Services,NHS SUPPLY CHAIN (MAIDSTONE),id:12723357 ,  32.71
Department of Health,Guys and St Thomas NHS Foundation Trust,21/02/2020,(82000) Provisions & Kitchens,(id:590473) Integrated Local Services,NHS SUPPLY CHAIN (MAIDSTONE),id:12777276    ,  36.86
Department of Health,Guys and St Thomas NHS Foundation Trust,21/02/2020,(81230) Medical Surgical Supplies & Equipment,(id:590473) Integrated Local Services,NHS SUPPLY CHAIN (MAIDSTONE),id:12777276   , 253.80
Department of Health,Guys and St Thomas NHS Foundation Trust,27/02/2020,(81100) Dressings,(id:590471) Integrated Local Services,NHS SUPPLY CHAIN (MAIDSTONE),id:12794121 , 338.11
Department of Health,Guys and St Thomas NHS Foundation Trust,21/02/2020,(82600) Uniforms & Clothing,(id:590471) Integrated Local Services,NHS SUPPLY CHAIN (MAIDSTONE),id:12777276 ,  11.54
Department of Health,Guys and St Thomas NHS Foundation Trust,07/02/2020,(50552) Qualified Nursing Staff,(id:590470) Integrated Local Services,MSI GROUP LTD,id:12799365  ,1473.20
Department of Health,Guys and St Thomas NHS Foundation Trust,21/02/2020,(81255) Medical Surgical Supplies & Equipment,(id:590470) Integrated Local Services,NHS SUPPLY CHAIN (MAIDSTONE),id:12777276   ,  10.32
Department of Health,Guys and St Thomas NHS Foundation Trust,21/02/2020,(81200) Medical Surgical Supplies & Equipment,(id:590481) Integrated Local Services,NHS SUPPLY CHAIN (MAIDSTONE),id:12777117   ,4746.93
Department of Health,Guys and St Thomas NHS Foundation Trust,21/02/2020,(81200) Medical Surgical Supplies & Equipment,(id:590481) Integrated Local Services,NHS SUPPLY CHAIN (MAIDSTONE),id:12724896   , 663.48
Department of Health,Guys and St Thomas NHS Foundation Trust,21/02/2020,(81200) Medical Surgical Supplies & Equipment,(id:590481) Integrated Local Services,NHS SUPPLY CHAIN (MAIDSTONE),id:12724900   ,1215.33
Department of Health,Guys and St Thomas NHS Foundation Trust,27/02/2020,(81200) Medical Surgical Supplies & Equipment,(id:590463) Integrated Local Services,NHS SUPPLY CHAIN (MAIDSTONE),id:12794121   , 360.00
Department of Health,Guys and St Thomas NHS Foundation Trust,21/02/2020,(82000) Provisions & Kitchens,(id:590527) Integrated Local Services,NHS SUPPLY CHAIN (MAIDSTONE),id:12777276    ,  57.93
Department of Health,Guys and St Thomas NHS Foundation Trust,07/02/2020,(83400) Office Equipment,(id:590527) Integrated Local Services,NHS SUPPLY CHAIN (MAIDSTONE),id:12723357    , 237.24
Department of Health,Guys and St Thomas NHS Foundation Trust,14/02/2020,(83400) Office Equipment,(id:590527) Integrated Local Services,NHS SUPPLY CHAIN (MAIDSTONE),id:12743100    ,  50.04
Department of Health,Guys and St Thomas NHS Foundation Trust,14/02/2020,(81200) Medical Surgical Supplies & Equipment,(id:590527) Integrated Local Services,NHS SUPPLY CHAIN (MAIDSTONE),id:12743100   ,  74.98
Department of Health,Guys and St Thomas NHS Foundation Trust,07/02/2020,(82700) Uniforms & Clothing,(id:590527) Integrated Local Services,NHS SUPPLY CHAIN (MAIDSTONE),id:12723357 , 173.62
Department of Health,Guys and St Thomas NHS Foundation Trust,21/02/2020,(82800) Bedding & Linen,(id:590526) Integrated Local Services,NHS SUPPLY CHAIN (MAIDSTONE),id:12777276, 205.44
Department of Health,Guys and St Thomas NHS Foundation Trust,14/02/2020,(81100) Dressings,(id:590526) Integrated Local Services,NHS SUPPLY CHAIN (MAIDSTONE),id:12743100 ,1251.19
Department of Health,Guys and St Thomas NHS Foundation Trust,14/02/2020,(50522) Unqualified Nursing Staff,(id:590526) Integrated Local Services,CARE PROVIDERS HEALTHCARE,id:12821084   , 735.09
Department of Health,Guys and St Thomas NHS Foundation Trust,21/02/2020,(50522) Unqualified Nursing Staff,(id:590526) Integrated Local Services,MSI GROUP LTD,id:12830049, 203.95
Department of Health,Guys and St Thomas NHS Foundation Trust,27/02/2020,(81255) Medical Surgical Supplies & Equipment,(id:590526) Integrated Local Services,NHS SUPPLY CHAIN (MAIDSTONE),id:12794121   ,  15.96
Department of Health,Guys and St Thomas NHS Foundation Trust,21/02/2020,(51462) Occupational Therapists,(id:903421) Integrated Local Services,PRICEWATERHOUSECOOPERS LLP,id:12834534    , 737.54
Department of Health,Guys and St Thomas NHS Foundation Trust,14/02/2020,(81255) Medical Surgical Supplies & Equipment,(id:903421) Integrated Local Services,NHS SUPPLY CHAIN (MAIDSTONE),id:12743100   ,  18.00
Department of Health,Guys and St Thomas NHS Foundation Trust,21/02/2020,(51862) Physiotherapists,(id:903421) Integrated Local Services,PRICEWATERHOUSECOOPERS LLP,id:12834494 ,2335.13
Department of Health,Guys and St Thomas NHS Foundation Trust,21/02/2020,(82000) Provisions & Kitchens,(id:4263422) Integrated Local Services,NHS SUPPLY CHAIN (MAIDSTONE),id:12777276   ,  28.94
Department of Health,Guys and St Thomas NHS Foundation Trust,21/02/2020,(84657) Establishment,(id:590608) Integrated Care SBU Management,IRON MOUNTAIN (UK) LTD,id:12784056   , 439.33
Department of Health,Guys and St Thomas NHS Foundation Trust,07/02/2020,(82700) Uniforms & Clothing,(id:42348) Evelina Central R&D and Charity,NHS SUPPLY CHAIN (MAIDSTONE),id:12723357 , 153.93
Department of Health,Guys and St Thomas NHS Foundation Trust,14/02/2020,(81100) Dressings,(id:42348) Evelina Central R&D and Charity,NHS SUPPLY CHAIN (MAIDSTONE),id:12743100 , 214.14
Department of Health,Guys and St Thomas NHS Foundation Trust,27/02/2020,(81200) Medical Surgical Supplies & Equipment,(id:42348) Evelina Central R&D and Charity,NHS SUPPLY CHAIN (MAIDSTONE),id:12794121   , 853.15
Department of Health,Guys and St Thomas NHS Foundation Trust,21/02/2020,(81200) Medical Surgical Supplies & Equipment,(id:42348) Evelina Central R&D and Charity,NHS SUPPLY CHAIN (MAIDSTONE),id:12777276   , 897.13
Department of Health,Guys and St Thomas NHS Foundation Trust,07/02/2020,(81255) Medical Surgical Supplies & Equipment,(id:42348) Evelina Central R&D and Charity,NHS SUPPLY CHAIN (MAIDSTONE),id:12723357   ,  15.79
Department of Health,Guys and St Thomas NHS Foundation Trust,14/02/2020,(81200) Medical Surgical Supplies & Equipment,(id:42331) Evelina Central R&D and Charity,NHS SUPPLY CHAIN (MAIDSTONE),id:12743100   ,1056.03
Department of Health,Guys and St Thomas NHS Foundation Trust,14/02/2020,(83400) Office Equipment,(id:42331) Evelina Central R&D and Charity,NHS SUPPLY CHAIN (MAIDSTONE),id:12743100    , 243.57
Department of Health,Guys and St Thomas NHS Foundation Trust,21/02/2020,(81100) Dressings,(id:42325) Evelina Central R&D and Charity,NHS SUPPLY CHAIN (MAIDSTONE),id:12777276 , 126.24
Department of Health,Guys and St Thomas NHS Foundation Trust,14/02/2020,(83400) Office Equipment,(id:42325) Evelina Central R&D and Charity,NHS SUPPLY CHAIN (MAIDSTONE),id:12743100    , 171.15
Department of Health,Guys and St Thomas NHS Foundation Trust,21/02/2020,(81255) Medical Surgical Supplies & Equipment,(id:42325) Evelina Central R&D and Charity,NHS SUPPLY CHAIN (MAIDSTONE),id:12777276   , 336.00
Department of Health,Guys and St Thomas NHS Foundation Trust,21/02/2020,(81200) Medical Surgical Supplies & Equipment,(id:42325) Evelina Central R&D and Charity,NHS SUPPLY CHAIN (MAIDSTONE),id:12777276   , 407.88
Department of Health,Guys and St Thomas NHS Foundation Trust,07/02/2020,(83400) Office Equipment,(id:1848419) Evelina Central R&D and Charity,CDP  PRINT MANAGEMENT,id:12727376    , 334.15
Department of Health,Guys and St Thomas NHS Foundation Trust,07/02/2020,(50200) Consultants,(id:4247419) Evelina Central R&D and Charity,LEWISHAM AND GREENWICH NHS TRUST,id:12503573   ,5930.00
Department of Health,Guys and St Thomas NHS Foundation Trust,21/02/2020,(89000) Other - Training courses and conferences,(id:4400419) Evelina Central R&D and Charity,KINGS COLLEGE LONDON:03529700,id:12704388  ,1665.00
Department of Health,Guys and St Thomas NHS Foundation Trust,07/02/2020,(81200) Medical Surgical Supplies & Equipment,(id:3156419) Evelina Central R&D and Charity,NHS SUPPLY CHAIN (MAIDSTONE),id:12723357 ,  53.59
Department of Health,Guys and St Thomas NHS Foundation Trust,07/02/2020,(83400) Office Equipment,(id:3156419) Evelina Central R&D and Charity,NHS SUPPLY CHAIN (MAIDSTONE),id:12723357  ,  18.47
Department of Health,Guys and St Thomas NHS Foundation Trust,07/02/2020,(81700) Lab Equipment Purchase,(id:1622419) Evelina Central R&D and Charity,NHS SUPPLY CHAIN (MAIDSTONE),id:12723357 , 288.38
Department of Health,Guys and St Thomas NHS Foundation Trust,14/02/2020,(84501) Establishment,(id:2634419) Evelina Central R&D and Charity,FORMARA LTD,id:12816021  , 502.00
Department of Health,Guys and St Thomas NHS Foundation Trust,07/02/2020,(83400) Office Equipment,(id:590541) Evelina Community Services,NHS SUPPLY CHAIN (MAIDSTONE),id:12723357   ,   3.64
Department of Health,Guys and St Thomas NHS Foundation Trust,14/02/2020,(82000) Provisions & Kitchens,(id:590539) Evelina Community Services,NHS SUPPLY CHAIN (MAIDSTONE),id:12743100   ,  42.78
Department of Health,Guys and St Thomas NHS Foundation Trust,07/02/2020,(84655) Establishment,(id:590548) Evelina Community Services,LANGUAGE CONNECT,id:12693738   ,4469.55
Department of Health,Guys and St Thomas NHS Foundation Trust,21/02/2020,(82000) Provisions & Kitchens,(id:590545) Evelina Community Services,NHS SUPPLY CHAIN (MAIDSTONE),id:12777276   ,  25.15
Department of Health,Guys and St Thomas NHS Foundation Trust,21/02/2020,(81200) Medical Surgical Supplies & Equipment,(id:590452) Evelina Community Services,NHS SUPPLY CHAIN (MAIDSTONE),id:12777276  ,  28.44
Department of Health,Guys and St Thomas NHS Foundation Trust,21/02/2020,(51462) Occupational Therapists,(id:706419) Evelina Community Services,PRICEWATERHOUSECOOPERS LLP,id:12834494   ,2281.96
Department of Health,Guys and St Thomas NHS Foundation Trust,21/02/2020,(81200) Medical Surgical Supplies & Equipment,(id:590449) Evelina Community Services,NHS SUPPLY CHAIN (MAIDSTONE),id:12777276  , 536.40
Department of Health,Guys and St Thomas NHS Foundation Trust,27/02/2020,(82000) Provisions & Kitchens,(id:1831419) Evelina Community Services,NHS SUPPLY CHAIN (MAIDSTONE),id:12794121  , 556.20
Department of Health,Guys and St Thomas NHS Foundation Trust,27/02/2020,(83610) IT Costs,(id:590557) Evelina Community Services,OFFICE DEPOT UK LTD,id:12804569, 536.47
Department of Health,Guys and St Thomas NHS Foundation Trust,27/02/2020,(89595) Non-Healthcare from Foundation Trusts,(id:42326) Evelina Medicine & Neonatology,GREAT ORMOND STREET HOSPITAL FOR CHILDREN NHS FOUNDATION TRUST,id:11986091,2312.58
Department of Health,Guys and St Thomas NHS Foundation Trust,27/02/2020,(89595) Non-Healthcare from Foundation Trusts,(id:42326) Evelina Medicine & Neonatology,GREAT ORMOND STREET HOSPITAL FOR CHILDREN NHS FOUNDATION TRUST,id:12794738,6161.45
Department of Health,Guys and St Thomas NHS Foundation Trust,07/02/2020,(84656) Establishment,(id:42326) Evelina Medicine & Neonatology,DICT8 LIMITED,id:12793536   ,2939.28
Department of Health,Guys and St Thomas NHS Foundation Trust,21/02/2020,(83500) Furniture & Fittings,(id:42327) Evelina Medicine & Neonatology,BECTON DICKINSON UK LTD,id:12829614 ,    27060.00
Department of Health,Guys and St Thomas NHS Foundation Trust,07/02/2020,(84500) Establishment,(id:42327) Evelina Medicine & Neonatology,OFFICE DEPOT UK LTD,id:12756694  , 103.99
Department of Health,Guys and St Thomas NHS Foundation Trust,21/02/2020,(50552) Qualified Nursing Staff,(id:42327) Evelina Medicine & Neonatology,CONTINENTAL NURSE LTD,id:12827078,2078.40
Department of Health,Guys and St Thomas NHS Foundation Trust,07/02/2020,(50552) Qualified Nursing Staff,(id:42327) Evelina Medicine & Neonatology,CONTINENTAL NURSE LTD,id:12799330,2361.73
Department of Health,Guys and St Thomas NHS Foundation Trust,21/02/2020,(81230) Medical Surgical Supplies & Equipment,(id:42327) Evelina Medicine & Neonatology,NHS SUPPLY CHAIN (MAIDSTONE),id:12777276    ,1196.40
Department of Health,Guys and St Thomas NHS Foundation Trust,14/02/2020,(81225) Medical Surgical Supplies & Equipment,(id:42327) Evelina Medicine & Neonatology,NHS SUPPLY CHAIN (MAIDSTONE),id:12743100    , 110.43
Department of Health,Guys and St Thomas NHS Foundation Trust,21/02/2020,(81225) Medical Surgical Supplies & Equipment,(id:42327) Evelina Medicine & Neonatology,NHS SUPPLY CHAIN (MAIDSTONE),id:12777276    , 124.48
Department of Health,Guys and St Thomas NHS Foundation Trust,07/02/2020,(81700) Lab Equipment Purchase,(id:42327) Evelina Medicine & Neonatology,NHS SUPPLY CHAIN (MAIDSTONE),id:12723357    , 101.56
Department of Health,Guys and St Thomas NHS Foundation Trust,21/02/2020,(81700) Lab Equipment Purchase,(id:42327) Evelina Medicine & Neonatology,NHS SUPPLY CHAIN (MAIDSTONE),id:12777276    , 169.37
Department of Health,Guys and St Thomas NHS Foundation Trust,27/02/2020,(81100) Dressings,(id:42335) Evelina Medicine & Neonatology,NHS SUPPLY CHAIN (MAIDSTONE),id:12794121  , 265.77
Department of Health,Guys and St Thomas NHS Foundation Trust,21/02/2020,(53072) Speech Therapists,(id:42335) Evelina Medicine & Neonatology,PRICEWATERHOUSECOOPERS LLP,id:12834534 , 831.17
Department of Health,Guys and St Thomas NHS Foundation Trust,21/02/2020,(53072) Speech Therapists,(id:42335) Evelina Medicine & Neonatology,PRICEWATERHOUSECOOPERS LLP,id:12834514 ,1401.01
Department of Health,Guys and St Thomas NHS Foundation Trust,27/02/2020,(81000) Surgical Appliances,(id:42335) Evelina Medicine & Neonatology,TALAR MADE ORTHOTICS LTD,id:12851057 ,  93.00
Department of Health,Guys and St Thomas NHS Foundation Trust,14/02/2020,(81000) Surgical Appliances,(id:42335) Evelina Medicine & Neonatology,TALAR MADE ORTHOTICS LTD,id:12814149 ,  93.00
Department of Health,Guys and St Thomas NHS Foundation Trust,07/02/2020,(81200) Medical Surgical Supplies & Equipment,(id:42349) Evelina Medicine & Neonatology,SQUADRON MEDICAL LTD,id:12717797  , 511.03
Department of Health,Guys and St Thomas NHS Foundation Trust,07/02/2020,(81225) Medical Surgical Supplies & Equipment,(id:42349) Evelina Medicine & Neonatology,SQUADRON MEDICAL LTD,id:12749776  ,  28.26
Department of Health,Guys and St Thomas NHS Foundation Trust,27/02/2020,(81225) Medical Surgical Supplies & Equipment,(id:42349) Evelina Medicine & Neonatology,SQUADRON MEDICAL LTD,id:12810589  ,  18.84
Department of Health,Guys and St Thomas NHS Foundation Trust,14/02/2020,(89595) Non-Healthcare from Foundation Trusts,(id:42336) Evelina Medicine & Neonatology,GREAT ORMOND STREET HOSPITAL FOR CHILDREN NHS FOUNDATION TRUST,id:12794724,1482.28
Department of Health,Guys and St Thomas NHS Foundation Trust,14/02/2020,(89640) Non-Healthcare from NHS Trusts,(id:1196422) Evelina Medicine & Neonatology,LEWISHAM AND GREENWICH NHS TRUST,id:12651076,4700.00
Department of Health,Guys and St Thomas NHS Foundation Trust,27/02/2020,(81200) Medical Surgical Supplies & Equipment,(id:42323) Evelina Medicine & Neonatology,NHS SUPPLY CHAIN (MAIDSTONE),id:12794121    , 131.16
Department of Health,Guys and St Thomas NHS Foundation Trust,14/02/2020,(82800) Bedding & Linen,(id:42323) Evelina Medicine & Neonatology,NHS SUPPLY CHAIN (MAIDSTONE),id:12743100 ,  23.47
Department of Health,Guys and St Thomas NHS Foundation Trust,21/02/2020,(82000) Provisions & Kitchens,(id:42315) Evelina Medicine & Neonatology,NHS SUPPLY CHAIN (MAIDSTONE),id:12777276,  44.16
Department of Health,Guys and St Thomas NHS Foundation Trust,07/02/2020,(82800) Bedding & Linen,(id:42315) Evelina Medicine & Neonatology,NHS SUPPLY CHAIN (MAIDSTONE),id:12723357 ,  87.39
Department of Health,Guys and St Thomas NHS Foundation Trust,21/02/2020,(81100) Dressings,(id:42315) Evelina Medicine & Neonatology,NHS SUPPLY CHAIN (MAIDSTONE),id:12777276  , 210.89
Department of Health,Guys and St Thomas NHS Foundation Trust,21/02/2020,(81200) Medical Surgical Supplies & Equipment,(id:42315) Evelina Medicine & Neonatology,NHS SUPPLY CHAIN (MAIDSTONE),id:12777276    , 436.61
Department of Health,Guys and St Thomas NHS Foundation Trust,14/02/2020,(83400) Office Equipment,(id:42315) Evelina Medicine & Neonatology,NHS SUPPLY CHAIN (MAIDSTONE),id:12743100, 113.52
Department of Health,Guys and St Thomas NHS Foundation Trust,21/02/2020,(50552) Qualified Nursing Staff,(id:42315) Evelina Medicine & Neonatology,CONTINENTAL NURSE LTD,id:12827132,2089.49
Department of Health,Guys and St Thomas NHS Foundation Trust,07/02/2020,(50552) Qualified Nursing Staff,(id:42315) Evelina Medicine & Neonatology,CONTINENTAL NURSE LTD,id:12802442,2132.32
Department of Health,Guys and St Thomas NHS Foundation Trust,27/02/2020,(50552) Qualified Nursing Staff,(id:42315) Evelina Medicine & Neonatology,CONTINENTAL NURSE LTD,id:12851184,1874.40
Department of Health,Guys and St Thomas NHS Foundation Trust,21/02/2020,(83400) Office Equipment,(id:2356419) Evelina Medicine & Neonatology,NHS SUPPLY CHAIN (MAIDSTONE),id:12777276   ,   8.64
Department of Health,Guys and St Thomas NHS Foundation Trust,07/02/2020,(81230) Medical Surgical Supplies & Equipment,(id:2356419) Evelina Medicine & Neonatology,NHS SUPPLY CHAIN (MAIDSTONE),id:12723357  , 182.70
Department of Health,Guys and St Thomas NHS Foundation Trust,14/02/2020,(82600) Uniforms & Clothing,(id:42058) Evelina Medicine & Neonatology,NHS SUPPLY CHAIN (MAIDSTONE),id:12743100  ,  41.35
Department of Health,Guys and St Thomas NHS Foundation Trust,14/02/2020,(81200) Medical Surgical Supplies & Equipment,(id:2981419) Evelina Medicine & Neonatology,MEDTRONIC LTD,id:12810254  ,1728.00
Department of Health,Guys and St Thomas NHS Foundation Trust,07/02/2020,(82800) Bedding & Linen,(id:2496419) Evelina Medicine & Neonatology,NHS SUPPLY CHAIN (MAIDSTONE),id:12723357    ,  24.89
Department of Health,Guys and St Thomas NHS Foundation Trust,14/02/2020,(82800) Bedding & Linen,(id:2496419) Evelina Medicine & Neonatology,NHS SUPPLY CHAIN (MAIDSTONE),id:12743100    ,  52.63
Department of Health,Guys and St Thomas NHS Foundation Trust,14/02/2020,(81255) Medical Surgical Supplies & Equipment,(id:2496419) Evelina Medicine & Neonatology,NHS SUPPLY CHAIN (MAIDSTONE),id:12743100  ,   5.28
Department of Health,Guys and St Thomas NHS Foundation Trust,07/02/2020,(81100) Dressings,(id:2496419) Evelina Medicine & Neonatology,NHS SUPPLY CHAIN (MAIDSTONE),id:12723357,  19.01
Department of Health,Guys and St Thomas NHS Foundation Trust,21/02/2020,(84500) Establishment,(id:2496419) Evelina Medicine & Neonatology,UNIVERSITY HOSPITAL SOUTHAMPTON NHS FOUNDATION TRUST,id:12823016  ,1181.30
Department of Health,Guys and St Thomas NHS Foundation Trust,27/02/2020,(81200) Medical Surgical Supplies & Equipment,(id:2984419) Evelina Medicine & Neonatology,TERUMO BCT EUROPE NV/SA  (PREVIOUSLY CARIDIAN),id:12842276    ,3210.84
Department of Health,Guys and St Thomas NHS Foundation Trust,14/02/2020,(81200) Medical Surgical Supplies & Equipment,(id:1196420) Evelina Medicine & Neonatology,DEXCOM UK,id:12491086 ,1141.50
Department of Health,Guys and St Thomas NHS Foundation Trust,21/02/2020,(83400) Office Equipment,(id:1196420) Evelina Medicine & Neonatology,INSULET INTERNATIONAL LTD,id:12818924 , 706.32
Department of Health,Guys and St Thomas NHS Foundation Trust,21/02/2020,(83400) Office Equipment,(id:1196420) Evelina Medicine & Neonatology,MEDTRONIC LTD,id:12826233   ,    -3041.68
Department of Health,Guys and St Thomas NHS Foundation Trust,07/02/2020,(83400) Office Equipment,(id:1196420) Evelina Medicine & Neonatology,MEDTRONIC LTD,id:12712543   , 546.76
Department of Health,Guys and St Thomas NHS Foundation Trust,14/02/2020,(83400) Office Equipment,(id:1196420) Evelina Medicine & Neonatology,MEDTRONIC LTD,id:12809214   ,-222.07
Department of Health,Guys and St Thomas NHS Foundation Trust,14/02/2020,(83400) Office Equipment,(id:1196420) Evelina Medicine & Neonatology,MEDTRONIC LTD,id:12807248   ,    -1832.30
Department of Health,Guys and St Thomas NHS Foundation Trust,14/02/2020,(81200) Medical Surgical Supplies & Equipment,(id:817420) Evelina Medicine & Neonatology,STOWOOD SCIENTIFIC INSTRUMENTS,id:12778193 ,1116.00
Department of Health,Guys and St Thomas NHS Foundation Trust,07/02/2020,(81200) Medical Surgical Supplies & Equipment,(id:817420) Evelina Medicine & Neonatology,RADIOMETER LTD,id:12785236  ,8467.20
Department of Health,Guys and St Thomas NHS Foundation Trust,14/02/2020,(81275) Medical Surgical Supplies & Equipment,(id:817420) Evelina Medicine & Neonatology,RADIOMETER LTD,id:12785156  ,2452.38
Department of Health,Guys and St Thomas NHS Foundation Trust,21/02/2020,(83400) Office Equipment,(id:2499419) Evelina Surgery & PICU,NHS SUPPLY CHAIN (MAIDSTONE),id:12777276 ,  72.48
Department of Health,Guys and St Thomas NHS Foundation Trust,07/02/2020,(81200) Medical Surgical Supplies & Equipment,(id:42312) Evelina Surgery & PICU,BARD LTD,id:12674931  , 540.00
Department of Health,Guys and St Thomas NHS Foundation Trust,14/02/2020,(81200) Medical Surgical Supplies & Equipment,(id:42312) Evelina Surgery & PICU,COOK UK LTD,id:12741788    ,  71.40
Department of Health,Guys and St Thomas NHS Foundation Trust,14/02/2020,(81200) Medical Surgical Supplies & Equipment,(id:42312) Evelina Surgery & PICU,MEDTRONIC LTD,id:12699437  ,2640.00
Department of Health,Guys and St Thomas NHS Foundation Trust,27/02/2020,(81400) Medical Surgical Supplies & Equipment,(id:42312) Evelina Surgery & PICU,NHS SUPPLY CHAIN (MAIDSTONE),id:12794121  , 419.10
Department of Health,Guys and St Thomas NHS Foundation Trust,07/02/2020,(81240) Medical Surgical Supplies & Equipment,(id:42312) Evelina Surgery & PICU,MEDTRONIC LTD,id:12761302  ,3840.00
Department of Health,Guys and St Thomas NHS Foundation Trust,07/02/2020,(81280) Medical Surgical Supplies & Equipment,(id:42312) Evelina Surgery & PICU,BVM MEDICAL LTD,id:12780200,3853.20
Department of Health,Guys and St Thomas NHS Foundation Trust,07/02/2020,(81280) Medical Surgical Supplies & Equipment,(id:42312) Evelina Surgery & PICU,NHS BLOOD AND TRANSPLANT,id:12796337 ,1629.21
Department of Health,Guys and St Thomas NHS Foundation Trust,07/02/2020,(81280) Medical Surgical Supplies & Equipment,(id:42312) Evelina Surgery & PICU,OCCLUTECH UK LTD,id:12772736    ,2940.00
Department of Health,Guys and St Thomas NHS Foundation Trust,14/02/2020,(81280) Medical Surgical Supplies & Equipment,(id:42312) Evelina Surgery & PICU,BVM MEDICAL LTD,id:12807308,9120.00
Department of Health,Guys and St Thomas NHS Foundation Trust,27/02/2020,(81280) Medical Surgical Supplies & Equipment,(id:42312) Evelina Surgery & PICU,OCCLUTECH UK LTD,id:12847934    ,4080.00
Department of Health,Guys and St Thomas NHS Foundation Trust,14/02/2020,(81230) Medical Surgical Supplies & Equipment,(id:42312) Evelina Surgery & PICU,COOK UK LTD,id:12774628    ,2358.00
Department of Health,Guys and St Thomas NHS Foundation Trust,27/02/2020,(82700) Uniforms & Clothing,(id:42339) Evelina Surgery & PICU,NHS SUPPLY CHAIN (MAIDSTONE),id:12794121,  28.60
Department of Health,Guys and St Thomas NHS Foundation Trust,14/02/2020,(82800) Bedding & Linen,(id:42339) Evelina Surgery & PICU,NHS SUPPLY CHAIN (MAIDSTONE),id:12743100    , 216.19
Department of Health,Guys and St Thomas NHS Foundation Trust,21/02/2020,(81100) Dressings,(id:42339) Evelina Surgery & PICU,NHS SUPPLY CHAIN (MAIDSTONE),id:12777276, 699.23
Department of Health,Guys and St Thomas NHS Foundation Trust,07/02/2020,(81225) Medical Surgical Supplies & Equipment,(id:42339) Evelina Surgery & PICU,NHS SUPPLY CHAIN (MAIDSTONE),id:12723357  ,  46.08
Department of Health,Guys and St Thomas NHS Foundation Trust,14/02/2020,(84656) Establishment,(id:42347) Evelina Surgery & PICU,DICT8 LIMITED,id:12733082 , 505.08
Department of Health,Guys and St Thomas NHS Foundation Trust,14/02/2020,(81200) Medical Surgical Supplies & Equipment,(id:42347) Evelina Surgery & PICU,JOHNSON & JOHNSON MEDICAL LTD,id:12815438 , 302.22
Department of Health,Guys and St Thomas NHS Foundation Trust,14/02/2020,(81200) Medical Surgical Supplies & Equipment,(id:42347) Evelina Surgery & PICU,SQUADRON MEDICAL LTD,id:12766158, 353.91
Department of Health,Guys and St Thomas NHS Foundation Trust,21/02/2020,(81100) Dressings,(id:42351) Evelina Surgery & PICU,NHS SUPPLY CHAIN (MAIDSTONE),id:12777276,  20.47
Department of Health,Guys and St Thomas NHS Foundation Trust,21/02/2020,(81200) Medical Surgical Supplies & Equipment,(id:42351) Evelina Surgery & PICU,GEISTLICH SONS LTD,id:12830636  , 833.55
Department of Health,Guys and St Thomas NHS Foundation Trust,21/02/2020,(81200) Medical Surgical Supplies & Equipment,(id:468409) Evelina Surgery & PICU,MEDTRONIC LTD,id:12825571 , 543.60
Department of Health,Guys and St Thomas NHS Foundation Trust,14/02/2020,(81200) Medical Surgical Supplies & Equipment,(id:468409) Evelina Surgery & PICU,NHS SUPPLY CHAIN (MAIDSTONE),id:12743100 ,1041.42
Department of Health,Guys and St Thomas NHS Foundation Trust,07/02/2020,(83630) IT Costs,(id:468409) Evelina Surgery & PICU,DICT8 LIMITED,id:12793658,1230.72
Department of Health,Guys and St Thomas NHS Foundation Trust,14/02/2020,(81200) Medical Surgical Supplies & Equipment,(id:468410) Evelina Surgery & PICU,NHS SUPPLY CHAIN (MAIDSTONE),id:12743100 ,  69.55
Department of Health,Guys and St Thomas NHS Foundation Trust,14/02/2020,(81200) Medical Surgical Supplies & Equipment,(id:468410) Evelina Surgery & PICU,SQUADRON MEDICAL LTD,id:12766364    ,  48.12
Department of Health,Guys and St Thomas NHS Foundation Trust,27/02/2020,(81100) Dressings,(id:468410) Evelina Surgery & PICU,NHS SUPPLY CHAIN (MAIDSTONE),id:12794121    , 408.32
Department of Health,Guys and St Thomas NHS Foundation Trust,27/02/2020,(81100) Dressings,(id:431409) Evelina Surgery & PICU,NHS SUPPLY CHAIN (MAIDSTONE),id:12794121    ,  88.99
Department of Health,Guys and St Thomas NHS Foundation Trust,07/02/2020,(81200) Medical Surgical Supplies & Equipment,(id:431409) Evelina Surgery & PICU,SMITH & NEPHEW ORTHOPAEDICS LTD.,id:12674115  ,3849.53
Department of Health,Guys and St Thomas NHS Foundation Trust,14/02/2020,(81200) Medical Surgical Supplies & Equipment,(id:431409) Evelina Surgery & PICU,ORTHOPEDIATRICS EU LIMITED,id:12794768   ,1611.90
Department of Health,Guys and St Thomas NHS Foundation Trust,14/02/2020,(81200) Medical Surgical Supplies & Equipment,(id:431409) Evelina Surgery & PICU,NHS SUPPLY CHAIN (MAIDSTONE),id:12743100 ,4909.92
Department of Health,Guys and St Thomas NHS Foundation Trust,14/02/2020,(81200) Medical Surgical Supplies & Equipment,(id:431409) Evelina Surgery & PICU,DICT8 LIMITED,id:12733184 ,2345.28
Department of Health,Guys and St Thomas NHS Foundation Trust,21/02/2020,(81200) Medical Surgical Supplies & Equipment,(id:431409) Evelina Surgery & PICU,JOINT OPERATIONS (UK) LLP,id:12833106    ,1128.00
Department of Health,Guys and St Thomas NHS Foundation Trust,07/02/2020,(81200) Medical Surgical Supplies & Equipment,(id:431409) Evelina Surgery & PICU,SMITH & NEPHEW ORTHOPAEDICS LTD.,id:12688216  ,-516.73
Department of Health,Guys and St Thomas NHS Foundation Trust,27/02/2020,(81000) Surgical Appliances,(id:431409) Evelina Surgery & PICU,TALAR MADE ORTHOTICS LTD,id:12851057   ,  93.00
Department of Health,Guys and St Thomas NHS Foundation Trust,27/02/2020,(82800) Bedding & Linen,(id:431409) Evelina Surgery & PICU,NHS SUPPLY CHAIN (MAIDSTONE),id:12794121   ,  95.68
Department of Health,Guys and St Thomas NHS Foundation Trust,07/02/2020,(81200) Medical Surgical Supplies & Equipment,(id:1196421) Evelina Surgery & PICU,SQUADRON MEDICAL LTD,id:12735629   , 193.73
Department of Health,Guys and St Thomas NHS Foundation Trust,07/02/2020,(81200) Medical Surgical Supplies & Equipment,(id:1196421) Evelina Surgery & PICU,ZIMMER BIOMET UK LTD,id:12783753   ,1041.60
Department of Health,Guys and St Thomas NHS Foundation Trust,07/02/2020,(82600) Uniforms & Clothing,(id:41914) Evelina Surgery & PICU,SQUADRON MEDICAL LTD,id:12760884   ,  22.04
Department of Health,Guys and St Thomas NHS Foundation Trust,14/02/2020,(83400) Office Equipment,(id:41914) Evelina Surgery & PICU,SQUADRON MEDICAL LTD,id:12751950 , 204.17
Department of Health,Guys and St Thomas NHS Foundation Trust,21/02/2020,(83400) Office Equipment,(id:41914) Evelina Surgery & PICU,SQUADRON MEDICAL LTD,id:12786513 , 407.95
Department of Health,Guys and St Thomas NHS Foundation Trust,07/02/2020,(81200) Medical Surgical Supplies & Equipment,(id:41914) Evelina Surgery & PICU,SQUADRON MEDICAL LTD,id:12712997, 181.56
Department of Health,Guys and St Thomas NHS Foundation Trust,07/02/2020,(81200) Medical Surgical Supplies & Equipment,(id:41914) Evelina Surgery & PICU,SQUADRON MEDICAL LTD,id:12742332, 259.61
Department of Health,Guys and St Thomas NHS Foundation Trust,07/02/2020,(81200) Medical Surgical Supplies & Equipment,(id:41914) Evelina Surgery & PICU,STIRLING MEDICAL & SCIENTIFIC,id:12658972 ,4829.28
Department of Health,Guys and St Thomas NHS Foundation Trust,07/02/2020,(81200) Medical Surgical Supplies & Equipment,(id:41914) Evelina Surgery & PICU,SQUADRON MEDICAL LTD,id:12737235,  23.28
Department of Health,Guys and St Thomas NHS Foundation Trust,14/02/2020,(81200) Medical Surgical Supplies & Equipment,(id:41914) Evelina Surgery & PICU,SQUADRON MEDICAL LTD,id:12783379, 231.24
Department of Health,Guys and St Thomas NHS Foundation Trust,14/02/2020,(81200) Medical Surgical Supplies & Equipment,(id:41914) Evelina Surgery & PICU,SQUADRON MEDICAL LTD,id:12783181, 377.23
Department of Health,Guys and St Thomas NHS Foundation Trust,07/02/2020,(50562) Qualified Nursing Staff,(id:41914) Evelina Surgery & PICU,YOUR WORLD RECRUITMENT LIMITED(YOUR WORLD HEALTHCARE),id:12781070 ,1508.34
Department of Health,Guys and St Thomas NHS Foundation Trust,21/02/2020,(81100) Dressings,(id:41914) Evelina Surgery & PICU,SQUADRON MEDICAL LTD,id:12797545   ,   4.03
Department of Health,Guys and St Thomas NHS Foundation Trust,21/02/2020,(81100) Dressings,(id:41914) Evelina Surgery & PICU,SQUADRON MEDICAL LTD,id:12797104   ,  22.19
Department of Health,Guys and St Thomas NHS Foundation Trust,07/02/2020,(81100) Dressings,(id:41914) Evelina Surgery & PICU,NHS SUPPLY CHAIN (MAIDSTONE),id:12723357,1016.33
Department of Health,Guys and St Thomas NHS Foundation Trust,14/02/2020,(81100) Dressings,(id:41914) Evelina Surgery & PICU,SQUADRON MEDICAL LTD,id:12783550   ,  12.28
Department of Health,Guys and St Thomas NHS Foundation Trust,14/02/2020,(81100) Dressings,(id:41914) Evelina Surgery & PICU,SQUADRON MEDICAL LTD,id:12777540   ,   9.24
Department of Health,Guys and St Thomas NHS Foundation Trust,07/02/2020,(81200) Medical Surgical Supplies & Equipment,(id:41910) Evelina Surgery & PICU,SQUADRON MEDICAL LTD,id:12739582, 282.51
Department of Health,Guys and St Thomas NHS Foundation Trust,14/02/2020,(81200) Medical Surgical Supplies & Equipment,(id:41910) Evelina Surgery & PICU,SQUADRON MEDICAL LTD,id:12783379, 271.14
Department of Health,Guys and St Thomas NHS Foundation Trust,14/02/2020,(81200) Medical Surgical Supplies & Equipment,(id:41910) Evelina Surgery & PICU,SQUADRON MEDICAL LTD,id:12751952,  77.82
Department of Health,Guys and St Thomas NHS Foundation Trust,14/02/2020,(81200) Medical Surgical Supplies & Equipment,(id:41910) Evelina Surgery & PICU,SQUADRON MEDICAL LTD,id:12602419, 440.76
Department of Health,Guys and St Thomas NHS Foundation Trust,14/02/2020,(81200) Medical Surgical Supplies & Equipment,(id:41910) Evelina Surgery & PICU,SQUADRON MEDICAL LTD,id:12783579, 300.57
Department of Health,Guys and St Thomas NHS Foundation Trust,14/02/2020,(81200) Medical Surgical Supplies & Equipment,(id:41910) Evelina Surgery & PICU,SQUADRON MEDICAL LTD,id:12766158, 375.70
Department of Health,Guys and St Thomas NHS Foundation Trust,27/02/2020,(81000) Surgical Appliances,(id:41830) Gastrointestinal Medicine & Surgery,TALAR MADE ORTHOTICS LTD,id:12850895 ,  11.40
Department of Health,Guys and St Thomas NHS Foundation Trust,27/02/2020,(81000) Surgical Appliances,(id:41830) Gastrointestinal Medicine & Surgery,TALAR MADE ORTHOTICS LTD,id:12848398 ,  29.40
Department of Health,Guys and St Thomas NHS Foundation Trust,21/02/2020,(54052) Technical Officers,(id:41962) Gastrointestinal Medicine & Surgery,PRICEWATERHOUSECOOPERS LLP,id:12834494, 970.69
Department of Health,Guys and St Thomas NHS Foundation Trust,21/02/2020,(83400) Office Equipment,(id:41958) Gastrointestinal Medicine & Surgery,NHS SUPPLY CHAIN (MAIDSTONE),id:12777276,  83.20
Department of Health,Guys and St Thomas NHS Foundation Trust,14/02/2020,(81200) Medical Surgical Supplies & Equipment,(id:41958) Gastrointestinal Medicine & Surgery,NHS SUPPLY CHAIN (MAIDSTONE),id:12743100    , 358.44
Department of Health,Guys and St Thomas NHS Foundation Trust,14/02/2020,(50552) Qualified Nursing Staff,(id:41958) Gastrointestinal Medicine & Surgery,CONTINENTAL NURSE LTD,id:12813876,2267.73
Department of Health,Guys and St Thomas NHS Foundation Trust,14/02/2020,(50552) Qualified Nursing Staff,(id:41958) Gastrointestinal Medicine & Surgery,CONTINENTAL NURSE LTD,id:12813960, 987.87
Department of Health,Guys and St Thomas NHS Foundation Trust,27/02/2020,(50552) Qualified Nursing Staff,(id:41958) Gastrointestinal Medicine & Surgery,MSI GROUP LTD,id:12851182   , 335.02
Department of Health,Guys and St Thomas NHS Foundation Trust,14/02/2020,(81700) Lab Equipment Purchase,(id:41958) Gastrointestinal Medicine & Surgery,NHS SUPPLY CHAIN (MAIDSTONE),id:12743100    ,  38.79
Department of Health,Guys and St Thomas NHS Foundation Trust,27/02/2020,(81000) Surgical Appliances,(id:41956) Gastrointestinal Medicine & Surgery,TALAR MADE ORTHOTICS LTD,id:12851057 ,  29.40
Department of Health,Guys and St Thomas NHS Foundation Trust,07/02/2020,(82700) Uniforms & Clothing,(id:41954) Gastrointestinal Medicine & Surgery,NHS SUPPLY CHAIN (MAIDSTONE),id:12723357  ,  31.68
Department of Health,Guys and St Thomas NHS Foundation Trust,27/02/2020,(82000) Provisions & Kitchens,(id:41954) Gastrointestinal Medicine & Surgery,NHS SUPPLY CHAIN (MAIDSTONE),id:12794121, 199.33
Department of Health,Guys and St Thomas NHS Foundation Trust,07/02/2020,(83500) Furniture & Fittings,(id:41954) Gastrointestinal Medicine & Surgery,OCURA HEALTHCARE FURNITURE,id:12794726   ,3276.00
Department of Health,Guys and St Thomas NHS Foundation Trust,21/02/2020,(82800) Bedding & Linen,(id:41954) Gastrointestinal Medicine & Surgery,NHS SUPPLY CHAIN (MAIDSTONE),id:12777276 ,  56.16
Department of Health,Guys and St Thomas NHS Foundation Trust,27/02/2020,(50522) Unqualified Nursing Staff,(id:41954) Gastrointestinal Medicine & Surgery,MSI GROUP LTD,id:12851316 , 206.13
Department of Health,Guys and St Thomas NHS Foundation Trust,27/02/2020,(81200) Medical Surgical Supplies & Equipment,(id:41954) Gastrointestinal Medicine & Surgery,NHS SUPPLY CHAIN (MAIDSTONE),id:12794121    , 944.38
Department of Health,Guys and St Thomas NHS Foundation Trust,07/02/2020,(83400) Office Equipment,(id:41949) Gastrointestinal Medicine & Surgery,SQUADRON MEDICAL LTD,id:12709303   , 408.34
Department of Health,Guys and St Thomas NHS Foundation Trust,07/02/2020,(81200) Medical Surgical Supplies & Equipment,(id:41949) Gastrointestinal Medicine & Surgery,SQUADRON MEDICAL LTD,id:12764157  , 511.84
Department of Health,Guys and St Thomas NHS Foundation Trust,07/02/2020,(81200) Medical Surgical Supplies & Equipment,(id:41949) Gastrointestinal Medicine & Surgery,SQUADRON MEDICAL LTD,id:12730934  , 640.66
Department of Health,Guys and St Thomas NHS Foundation Trust,07/02/2020,(81200) Medical Surgical Supplies & Equipment,(id:41949) Gastrointestinal Medicine & Surgery,SQUADRON MEDICAL LTD,id:12764122  ,1412.23
Department of Health,Guys and St Thomas NHS Foundation Trust,07/02/2020,(81200) Medical Surgical Supplies & Equipment,(id:41949) Gastrointestinal Medicine & Surgery,JOHNSON & JOHNSON MEDICAL LTD,id:12739316   ,2419.20
Department of Health,Guys and St Thomas NHS Foundation Trust,14/02/2020,(81200) Medical Surgical Supplies & Equipment,(id:41949) Gastrointestinal Medicine & Surgery,SQUADRON MEDICAL LTD,id:12766606  , 147.59
Department of Health,Guys and St Thomas NHS Foundation Trust,14/02/2020,(81200) Medical Surgical Supplies & Equipment,(id:41949) Gastrointestinal Medicine & Surgery,SQUADRON MEDICAL LTD,id:12766608  ,1477.06
Department of Health,Guys and St Thomas NHS Foundation Trust,14/02/2020,(81200) Medical Surgical Supplies & Equipment,(id:41949) Gastrointestinal Medicine & Surgery,SQUADRON MEDICAL LTD,id:12777760  , 532.06
Department of Health,Guys and St Thomas NHS Foundation Trust,14/02/2020,(81200) Medical Surgical Supplies & Equipment,(id:41949) Gastrointestinal Medicine & Surgery,SQUADRON MEDICAL LTD,id:12756700  , 319.21
Department of Health,Guys and St Thomas NHS Foundation Trust,14/02/2020,(81200) Medical Surgical Supplies & Equipment,(id:41949) Gastrointestinal Medicine & Surgery,SQUADRON MEDICAL LTD,id:12749993  , 361.19
Department of Health,Guys and St Thomas NHS Foundation Trust,21/02/2020,(81200) Medical Surgical Supplies & Equipment,(id:41949) Gastrointestinal Medicine & Surgery,OLYMPUS KEYMED,id:12786676   , 607.20
Department of Health,Guys and St Thomas NHS Foundation Trust,21/02/2020,(81200) Medical Surgical Supplies & Equipment,(id:41949) Gastrointestinal Medicine & Surgery,SQUADRON MEDICAL LTD,id:12800349  ,6097.40
Department of Health,Guys and St Thomas NHS Foundation Trust,21/02/2020,(81200) Medical Surgical Supplies & Equipment,(id:41949) Gastrointestinal Medicine & Surgery,SQUADRON MEDICAL LTD,id:12800267  , 658.14
Department of Health,Guys and St Thomas NHS Foundation Trust,27/02/2020,(81200) Medical Surgical Supplies & Equipment,(id:41949) Gastrointestinal Medicine & Surgery,SQUADRON MEDICAL LTD,id:12804843  , 744.80
Department of Health,Guys and St Thomas NHS Foundation Trust,21/02/2020,(83500) Furniture & Fittings,(id:41949) Gastrointestinal Medicine & Surgery,CJ MEDICAL,id:12812876    , 972.00
Department of Health,Guys and St Thomas NHS Foundation Trust,07/02/2020,(81000) Surgical Appliances,(id:41944) Gastrointestinal Medicine & Surgery,MEDI UK LTD,id:12799768    ,  57.84
Department of Health,Guys and St Thomas NHS Foundation Trust,14/02/2020,(81255) Medical Surgical Supplies & Equipment,(id:2367419) Gastrointestinal Medicine & Surgery,NHS SUPPLY CHAIN (MAIDSTONE),id:12743100  ,   1.55
Department of Health,Guys and St Thomas NHS Foundation Trust,14/02/2020,(50552) Qualified Nursing Staff,(id:2367419) Gastrointestinal Medicine & Surgery,GLOBE LOCUMS LTD,id:12817758   , 339.47
Department of Health,Guys and St Thomas NHS Foundation Trust,21/02/2020,(81200) Medical Surgical Supplies & Equipment,(id:41957) Gastrointestinal Medicine & Surgery,FUNCTIONAL GUT DIAGNOSTICS LTD,id:12820778  ,    28836.00
Department of Health,Guys and St Thomas NHS Foundation Trust,21/02/2020,(81400) Medical Surgical Supplies & Equipment,(id:41957) Gastrointestinal Medicine & Surgery,NHS SUPPLY CHAIN (MAIDSTONE),id:12777276    , 696.96
Department of Health,Guys and St Thomas NHS Foundation Trust,21/02/2020,(81200) Medical Surgical Supplies & Equipment,(id:41942) Gastrointestinal Medicine & Surgery,NHS SUPPLY CHAIN (MAIDSTONE),id:12777276    , 313.20
Department of Health,Guys and St Thomas NHS Foundation Trust,14/02/2020,(81200) Medical Surgical Supplies & Equipment,(id:41942) Gastrointestinal Medicine & Surgery,NHS SUPPLY CHAIN (MAIDSTONE),id:12743100    , 874.92
Department of Health,Guys and St Thomas NHS Foundation Trust,27/02/2020,(81000) Surgical Appliances,(id:41942) Gastrointestinal Medicine & Surgery,TALAR MADE ORTHOTICS LTD,id:12850498 ,  46.50
Department of Health,Guys and St Thomas NHS Foundation Trust,07/02/2020,(83400) Office Equipment,(id:41942) Gastrointestinal Medicine & Surgery,BUSINESS DICTATION LTD,id:12746134 , 537.59
Department of Health,Guys and St Thomas NHS Foundation Trust,14/02/2020,(82700) Uniforms & Clothing,(id:41917) Gastrointestinal Medicine & Surgery,NHS SUPPLY CHAIN (MAIDSTONE),id:12743100  , 189.50
Department of Health,Guys and St Thomas NHS Foundation Trust,14/02/2020,(81200) Medical Surgical Supplies & Equipment,(id:41917) Gastrointestinal Medicine & Surgery,PENTLAND MEDICAL LTD,id:12782050  ,4152.00
Department of Health,Guys and St Thomas NHS Foundation Trust,14/02/2020,(81200) Medical Surgical Supplies & Equipment,(id:41917) Gastrointestinal Medicine & Surgery,MEDTRONIC LTD,id:12783266    ,2580.00
Department of Health,Guys and St Thomas NHS Foundation Trust,14/02/2020,(81200) Medical Surgical Supplies & Equipment,(id:41917) Gastrointestinal Medicine & Surgery,SYNECTICS MEDICAL LTD (SYNMED),id:12782696  ,4536.00
Department of Health,Guys and St Thomas NHS Foundation Trust,27/02/2020,(81230) Medical Surgical Supplies & Equipment,(id:41917) Gastrointestinal Medicine & Surgery,MEDTRONIC LTD,id:12804981    ,3360.00
Department of Health,Guys and St Thomas NHS Foundation Trust,21/02/2020,(50552) Qualified Nursing Staff,(id:41917) Gastrointestinal Medicine & Surgery,PULSE HEALTHCARE LIMITED,id:12830172  ,1007.00
Department of Health,Guys and St Thomas NHS Foundation Trust,07/02/2020,(81255) Medical Surgical Supplies & Equipment,(id:41917) Gastrointestinal Medicine & Surgery,NHS SUPPLY CHAIN (MAIDSTONE),id:12723357    , 193.20
Department of Health,Guys and St Thomas NHS Foundation Trust,14/02/2020,(86300) Healthcare from non-NHS bodies,(id:2534420) Gastrointestinal Medicine & Surgery,18 WEEK SUPPORT LIMITED,id:12818276    ,    23800.00
Department of Health,Guys and St Thomas NHS Foundation Trust,07/02/2020,(81400) Medical Surgical Supplies & Equipment,(id:3364419) Cancer Strategy,ALLIANCE MEDICAL LTD,id:12583578,6434.00
Department of Health,Guys and St Thomas NHS Foundation Trust,14/02/2020,(81400) Medical Surgical Supplies & Equipment,(id:3364419) Cancer Strategy,ALLIANCE MEDICAL LTD,id:12809318,    20824.00
Department of Health,Guys and St Thomas NHS Foundation Trust,07/02/2020,(50200) Consultants,(id:169405) Cancer Strategy,KING'S COLLEGE HOSPITAL NHS FOUNDATION TRUST,id:12777910   ,    11718.65
Department of Health,Guys and St Thomas NHS Foundation Trust,21/02/2020,(82300) Contract Hotel Services,(id:169405) Cancer Strategy,ROYAL GREENWICH HERITAGE TRUST,id:12764564,1399.00
Department of Health,Guys and St Thomas NHS Foundation Trust,27/02/2020,(82000) Provisions & Kitchens,(id:780420) Cardiovascular Services,NHS SUPPLY CHAIN (MAIDSTONE),id:12794121 ,  73.72
Department of Health,Guys and St Thomas NHS Foundation Trust,14/02/2020,(50522) Unqualified Nursing Staff,(id:780420) Cardiovascular Services,MSI GROUP LTD,id:12817703  , 539.50
Department of Health,Guys and St Thomas NHS Foundation Trust,07/02/2020,(81250) Medical Surgical Supplies & Equipment,(id:639421) Cardiovascular Services,BENTLEY INNOMED GMBH,id:12776564   ,2040.00
Department of Health,Guys and St Thomas NHS Foundation Trust,07/02/2020,(81250) Medical Surgical Supplies & Equipment,(id:639421) Cardiovascular Services,BENTLEY INNOMED GMBH,id:12758901   ,3060.00
Department of Health,Guys and St Thomas NHS Foundation Trust,07/02/2020,(81250) Medical Surgical Supplies & Equipment,(id:639421) Cardiovascular Services,COOK UK LTD,id:12675272  ,    25200.00
Department of Health,Guys and St Thomas NHS Foundation Trust,07/02/2020,(81250) Medical Surgical Supplies & Equipment,(id:639421) Cardiovascular Services,COOK UK LTD,id:12675279  ,    30000.00
Department of Health,Guys and St Thomas NHS Foundation Trust,21/02/2020,(81250) Medical Surgical Supplies & Equipment,(id:639421) Cardiovascular Services,BENTLEY INNOMED GMBH,id:12751091   ,1020.00
Department of Health,Guys and St Thomas NHS Foundation Trust,07/02/2020,(81200) Medical Surgical Supplies & Equipment,(id:639421) Cardiovascular Services,WL GORE & ASSOCIATES (UK) LTD,id:12802274    ,7185.60
Department of Health,Guys and St Thomas NHS Foundation Trust,07/02/2020,(81200) Medical Surgical Supplies & Equipment,(id:639421) Cardiovascular Services,WL GORE & ASSOCIATES (UK) LTD,id:12802265    ,2400.00
Department of Health,Guys and St Thomas NHS Foundation Trust,07/02/2020,(81200) Medical Surgical Supplies & Equipment,(id:639421) Cardiovascular Services,WL GORE & ASSOCIATES (UK) LTD,id:12751925    ,2760.00
Department of Health,Guys and St Thomas NHS Foundation Trust,14/02/2020,(81200) Medical Surgical Supplies & Equipment,(id:639421) Cardiovascular Services,COOK UK LTD,id:12742366  , 780.00
Department of Health,Guys and St Thomas NHS Foundation Trust,27/02/2020,(81200) Medical Surgical Supplies & Equipment,(id:639421) Cardiovascular Services,NHS SUPPLY CHAIN (MAIDSTONE),id:12794121,1128.00
Department of Health,Guys and St Thomas NHS Foundation Trust,27/02/2020,(81200) Medical Surgical Supplies & Equipment,(id:639421) Cardiovascular Services,BOSTON SCIENTIFIC LTD,id:12845833  , 564.00
Department of Health,Guys and St Thomas NHS Foundation Trust,27/02/2020,(82700) Uniforms & Clothing,(id:41953) Cardiovascular Services,NHS SUPPLY CHAIN (MAIDSTONE),id:12794121    ,  31.68
Department of Health,Guys and St Thomas NHS Foundation Trust,14/02/2020,(83400) Office Equipment,(id:41953) Cardiovascular Services,NHS SUPPLY CHAIN (MAIDSTONE),id:12743100  , 140.57
Department of Health,Guys and St Thomas NHS Foundation Trust,21/02/2020,(81700) Lab Equipment Purchase,(id:41953) Cardiovascular Services,NHS SUPPLY CHAIN (MAIDSTONE),id:12777276 ,  15.04
Department of Health,Guys and St Thomas NHS Foundation Trust,27/02/2020,(82700) Uniforms & Clothing,(id:41952) Cardiovascular Services,NHS SUPPLY CHAIN (MAIDSTONE),id:12794121    ,  31.68
Department of Health,Guys and St Thomas NHS Foundation Trust,14/02/2020,(81200) Medical Surgical Supplies & Equipment,(id:41952) Cardiovascular Services,SQUADRON MEDICAL LTD,id:12766348    ,2578.34
Department of Health,Guys and St Thomas NHS Foundation Trust,14/02/2020,(50200) Consultants,(id:41950) Cardiovascular Services,MAIDSTONE AND TUNBRIDGE WELLS NHS TRUST,id:12779928 ,1297.33
Department of Health,Guys and St Thomas NHS Foundation Trust,14/02/2020,(81200) Medical Surgical Supplies & Equipment,(id:41950) Cardiovascular Services,COOK UK LTD,id:12774622   , 728.40
Department of Health,Guys and St Thomas NHS Foundation Trust,14/02/2020,(81200) Medical Surgical Supplies & Equipment,(id:41950) Cardiovascular Services,WL GORE & ASSOCIATES (UK) LTD,id:12777816, 558.00
Department of Health,Guys and St Thomas NHS Foundation Trust,21/02/2020,(81200) Medical Surgical Supplies & Equipment,(id:41950) Cardiovascular Services,BOSTON SCIENTIFIC LTD,id:12714751   ,9240.00
Department of Health,Guys and St Thomas NHS Foundation Trust,21/02/2020,(81200) Medical Surgical Supplies & Equipment,(id:41950) Cardiovascular Services,NHS SUPPLY CHAIN (MAIDSTONE),id:12777276 ,1688.63
Department of Health,Guys and St Thomas NHS Foundation Trust,21/02/2020,(81200) Medical Surgical Supplies & Equipment,(id:41950) Cardiovascular Services,COOK UK LTD,id:12795736   ,1140.00
Department of Health,Guys and St Thomas NHS Foundation Trust,07/02/2020,(81200) Medical Surgical Supplies & Equipment,(id:41950) Cardiovascular Services,COOK UK LTD,id:12730976   , 600.00
Department of Health,Guys and St Thomas NHS Foundation Trust,07/02/2020,(81200) Medical Surgical Supplies & Equipment,(id:41950) Cardiovascular Services,ABBOTT MEDICAL UK LTD,id:12772836   ,1800.00
Department of Health,Guys and St Thomas NHS Foundation Trust,07/02/2020,(81200) Medical Surgical Supplies & Equipment,(id:41950) Cardiovascular Services,COOK UK LTD,id:12605986   ,2280.00
Department of Health,Guys and St Thomas NHS Foundation Trust,21/02/2020,(81200) Medical Surgical Supplies & Equipment,(id:41950) Cardiovascular Services,AQUILANT LTD,id:12776662  ,1980.00
Department of Health,Guys and St Thomas NHS Foundation Trust,07/02/2020,(81235) Medical Surgical Supplies & Equipment,(id:41950) Cardiovascular Services,BOSTON SCIENTIFIC LTD,id:12751647   ,  60.00
Department of Health,Guys and St Thomas NHS Foundation Trust,27/02/2020,(81000) Surgical Appliances,(id:41950) Cardiovascular Services,TALAR MADE ORTHOTICS LTD,id:12848410   ,  88.20
Department of Health,Guys and St Thomas NHS Foundation Trust,07/02/2020,(81000) Surgical Appliances,(id:41950) Cardiovascular Services,TALAR MADE ORTHOTICS LTD,id:12796267   , 368.13
Department of Health,Guys and St Thomas NHS Foundation Trust,07/02/2020,(81200) Medical Surgical Supplies & Equipment,(id:41948) Cardiovascular Services,SQUADRON MEDICAL LTD,id:12751869    ,  11.76
Department of Health,Guys and St Thomas NHS Foundation Trust,14/02/2020,(81200) Medical Surgical Supplies & Equipment,(id:41948) Cardiovascular Services,SQUADRON MEDICAL LTD,id:12756700    ,  21.76
Department of Health,Guys and St Thomas NHS Foundation Trust,14/02/2020,(81200) Medical Surgical Supplies & Equipment,(id:41948) Cardiovascular Services,BAXTER HEALTHCARE LTD,id:12785419   ,1963.51
Department of Health,Guys and St Thomas NHS Foundation Trust,07/02/2020,(54072) Technical Officers,(id:1243420) Cardiovascular Services,GLOBE LOCUMS LTD,id:12796764,1890.00
Department of Health,Guys and St Thomas NHS Foundation Trust,21/02/2020,(54072) Technical Officers,(id:1243420) Cardiovascular Services,GLOBE LOCUMS LTD,id:12826830,1512.00
Department of Health,Guys and St Thomas NHS Foundation Trust,21/02/2020,(54072) Technical Officers,(id:1243420) Cardiovascular Services,PRICEWATERHOUSECOOPERS LLP,id:12834534,9441.86
Department of Health,Guys and St Thomas NHS Foundation Trust,21/02/2020,(83400) Office Equipment,(id:1243420) Cardiovascular Services,BECTON DICKINSON UK LTD,id:12830215,1620.00
Department of Health,Guys and St Thomas NHS Foundation Trust,27/02/2020,(81500) X Ray Equipment Purchase,(id:1243420) Cardiovascular Services,ICS OPERATIONS LIMITED T/A ICS DIAGNOSTICS,id:12833605   ,    12460.80
Department of Health,Guys and St Thomas NHS Foundation Trust,21/02/2020,(82600) Uniforms & Clothing,(id:1243419) Cardiovascular Services,SFXRAY LTD,id:12830871, 762.00
Department of Health,Guys and St Thomas NHS Foundation Trust,21/02/2020,(82600) Uniforms & Clothing,(id:1243419) Cardiovascular Services,NHS SUPPLY CHAIN (MAIDSTONE),id:12777276  ,  92.11
Department of Health,Guys and St Thomas NHS Foundation Trust,21/02/2020,(52072) Radiographers,(id:1243419) Cardiovascular Services,PRICEWATERHOUSECOOPERS LLP,id:12834514,2871.36
Department of Health,Guys and St Thomas NHS Foundation Trust,27/02/2020,(50200) Consultants,(id:42304) Cardiovascular Services,KINGS COLLEGE LONDON:03529700,id:12593397 ,    31992.13
Department of Health,Guys and St Thomas NHS Foundation Trust,21/02/2020,(83400) Office Equipment,(id:42303) Cardiovascular Services,NHS SUPPLY CHAIN (MAIDSTONE),id:12777276  ,  47.74
Department of Health,Guys and St Thomas NHS Foundation Trust,21/02/2020,(81200) Medical Surgical Supplies & Equipment,(id:42303) Cardiovascular Services,SPACELABS HEALTHCARE LTD,id:12829314,4824.60
Department of Health,Guys and St Thomas NHS Foundation Trust,21/02/2020,(54052) Technical Officers,(id:42303) Cardiovascular Services,PRICEWATERHOUSECOOPERS LLP,id:12834534  , 566.07
Department of Health,Guys and St Thomas NHS Foundation Trust,21/02/2020,(54072) Technical Officers,(id:42303) Cardiovascular Services,PRICEWATERHOUSECOOPERS LLP,id:12834534  ,1801.76
Department of Health,Guys and St Thomas NHS Foundation Trust,07/02/2020,(81200) Medical Surgical Supplies & Equipment,(id:42302) Cardiovascular Services,BOSTON SCIENTIFIC LTD,id:12639072   ,2688.00
Department of Health,Guys and St Thomas NHS Foundation Trust,07/02/2020,(81200) Medical Surgical Supplies & Equipment,(id:42302) Cardiovascular Services,SQUADRON MEDICAL LTD,id:12709346    , 823.68
Department of Health,Guys and St Thomas NHS Foundation Trust,07/02/2020,(81200) Medical Surgical Supplies & Equipment,(id:42302) Cardiovascular Services,ABBOTT MEDICAL UK LTD,id:12753900   ,1125.00
Department of Health,Guys and St Thomas NHS Foundation Trust,07/02/2020,(81200) Medical Surgical Supplies & Equipment,(id:42302) Cardiovascular Services,ABBOTT MEDICAL UK LTD,id:12790716   ,1125.00
Department of Health,Guys and St Thomas NHS Foundation Trust,27/02/2020,(81200) Medical Surgical Supplies & Equipment,(id:42302) Cardiovascular Services,SQUADRON MEDICAL LTD,id:12815083    ,1250.11
Department of Health,Guys and St Thomas NHS Foundation Trust,27/02/2020,(81200) Medical Surgical Supplies & Equipment,(id:42302) Cardiovascular Services,BOSTON SCIENTIFIC LTD,id:12814933   , 990.00
Department of Health,Guys and St Thomas NHS Foundation Trust,07/02/2020,(81235) Medical Surgical Supplies & Equipment,(id:42302) Cardiovascular Services,BOSTON SCIENTIFIC LTD,id:12639072   ,1317.60
Department of Health,Guys and St Thomas NHS Foundation Trust,27/02/2020,(81255) Medical Surgical Supplies & Equipment,(id:42302) Cardiovascular Services,NHS SUPPLY CHAIN (MAIDSTONE),id:12794121 ,  12.48
Department of Health,Guys and St Thomas NHS Foundation Trust,21/02/2020,(82800) Bedding & Linen,(id:42301) Cardiovascular Services,NHS SUPPLY CHAIN (MAIDSTONE),id:12777276   ,  60.26
Department of Health,Guys and St Thomas NHS Foundation Trust,21/02/2020,(82700) Uniforms & Clothing,(id:42301) Cardiovascular Services,NHS SUPPLY CHAIN (MAIDSTONE),id:12777276    ,  61.31
Department of Health,Guys and St Thomas NHS Foundation Trust,21/02/2020,(82700) Uniforms & Clothing,(id:42300) Cardiovascular Services,NHS SUPPLY CHAIN (MAIDSTONE),id:12777276    ,  56.26
Department of Health,Guys and St Thomas NHS Foundation Trust,21/02/2020,(82000) Provisions & Kitchens,(id:42300) Cardiovascular Services,NHS SUPPLY CHAIN (MAIDSTONE),id:12777276  , 137.37
Department of Health,Guys and St Thomas NHS Foundation Trust,07/02/2020,(82000) Provisions & Kitchens,(id:42300) Cardiovascular Services,NHS SUPPLY CHAIN (MAIDSTONE),id:12723357  ,  97.05
Department of Health,Guys and St Thomas NHS Foundation Trust,07/02/2020,(83400) Office Equipment,(id:42300) Cardiovascular Services,NHS SUPPLY CHAIN (MAIDSTONE),id:12723357  ,  89.49
Department of Health,Guys and St Thomas NHS Foundation Trust,07/02/2020,(82800) Bedding & Linen,(id:42300) Cardiovascular Services,NHS SUPPLY CHAIN (MAIDSTONE),id:12723357   ,  34.08
Department of Health,Guys and St Thomas NHS Foundation Trust,07/02/2020,(81225) Medical Surgical Supplies & Equipment,(id:42300) Cardiovascular Services,NHS SUPPLY CHAIN (MAIDSTONE),id:12723357 ,   9.29
Department of Health,Guys and St Thomas NHS Foundation Trust,27/02/2020,(81200) Medical Surgical Supplies & Equipment,(id:42300) Cardiovascular Services,NHS SUPPLY CHAIN (MAIDSTONE),id:12794121 , 863.54
Department of Health,Guys and St Thomas NHS Foundation Trust,14/02/2020,(81100) Dressings,(id:42300) Cardiovascular Services,NHS SUPPLY CHAIN (MAIDSTONE),id:12743100    , 300.01
Department of Health,Guys and St Thomas NHS Foundation Trust,07/02/2020,(81200) Medical Surgical Supplies & Equipment,(id:42298) Cardiovascular Services,NHS SUPPLY CHAIN (MAIDSTONE),id:12723357 ,1103.57
Department of Health,Guys and St Thomas NHS Foundation Trust,07/02/2020,(81200) Medical Surgical Supplies & Equipment,(id:42298) Cardiovascular Services,BOSTON SCIENTIFIC LTD,id:12759234   ,1234.20
Department of Health,Guys and St Thomas NHS Foundation Trust,07/02/2020,(81200) Medical Surgical Supplies & Equipment,(id:42298) Cardiovascular Services,TELEFLEX MEDICAL,id:12760803   ,3900.00
Department of Health,Guys and St Thomas NHS Foundation Trust,07/02/2020,(81200) Medical Surgical Supplies & Equipment,(id:42298) Cardiovascular Services,MEDTRONIC LTD,id:12688445 , 960.00
Department of Health,Guys and St Thomas NHS Foundation Trust,14/02/2020,(81200) Medical Surgical Supplies & Equipment,(id:42298) Cardiovascular Services,NHS SUPPLY CHAIN (MAIDSTONE),id:12743100 , 716.12
Department of Health,Guys and St Thomas NHS Foundation Trust,14/02/2020,(81200) Medical Surgical Supplies & Equipment,(id:42298) Cardiovascular Services,JOHNSON & JOHNSON MEDICAL LTD,id:12783284,3692.56
Department of Health,Guys and St Thomas NHS Foundation Trust,21/02/2020,(81200) Medical Surgical Supplies & Equipment,(id:42298) Cardiovascular Services,JOHNSON & JOHNSON MEDICAL LTD,id:12786372,1500.00
Department of Health,Guys and St Thomas NHS Foundation Trust,07/02/2020,(81200) Medical Surgical Supplies & Equipment,(id:42298) Cardiovascular Services,JOHNSON & JOHNSON MEDICAL LTD,id:12749702,2773.08
Department of Health,Guys and St Thomas NHS Foundation Trust,07/02/2020,(81200) Medical Surgical Supplies & Equipment,(id:42298) Cardiovascular Services,JOHNSON & JOHNSON MEDICAL LTD,id:12673415,3000.00
Department of Health,Guys and St Thomas NHS Foundation Trust,14/02/2020,(81200) Medical Surgical Supplies & Equipment,(id:42298) Cardiovascular Services,ABBOTT MEDICAL UK LTD,id:12815745   , 300.00
Department of Health,Guys and St Thomas NHS Foundation Trust,14/02/2020,(81200) Medical Surgical Supplies & Equipment,(id:42298) Cardiovascular Services,ACROSTAK-UK LTD,id:12816556    , 780.00
Department of Health,Guys and St Thomas NHS Foundation Trust,21/02/2020,(81200) Medical Surgical Supplies & Equipment,(id:42298) Cardiovascular Services,JOHNSON & JOHNSON MEDICAL LTD,id:12797488,4500.00
Department of Health,Guys and St Thomas NHS Foundation Trust,27/02/2020,(81200) Medical Surgical Supplies & Equipment,(id:42298) Cardiovascular Services,JOHNSON & JOHNSON MEDICAL LTD,id:12810528,1500.00
Department of Health,Guys and St Thomas NHS Foundation Trust,27/02/2020,(81200) Medical Surgical Supplies & Equipment,(id:42298) Cardiovascular Services,NHS SUPPLY CHAIN (MAIDSTONE),id:12794121 ,4262.70
Department of Health,Guys and St Thomas NHS Foundation Trust,27/02/2020,(81200) Medical Surgical Supplies & Equipment,(id:42298) Cardiovascular Services,SQUADRON MEDICAL LTD,id:12815088    , 960.62
Department of Health,Guys and St Thomas NHS Foundation Trust,27/02/2020,(81200) Medical Surgical Supplies & Equipment,(id:42298) Cardiovascular Services,TELEFLEX MEDICAL,id:12814945   ,1140.00
Department of Health,Guys and St Thomas NHS Foundation Trust,14/02/2020,(81230) Medical Surgical Supplies & Equipment,(id:42298) Cardiovascular Services,ABBOTT MEDICAL UK LTD,id:12790836   ,1428.00
Department of Health,Guys and St Thomas NHS Foundation Trust,21/02/2020,(81230) Medical Surgical Supplies & Equipment,(id:42298) Cardiovascular Services,TELEFLEX MEDICAL,id:12795715   , 591.36
Department of Health,Guys and St Thomas NHS Foundation Trust,27/02/2020,(81230) Medical Surgical Supplies & Equipment,(id:42298) Cardiovascular Services,TELEFLEX MEDICAL,id:12804994   , 591.36
Department of Health,Guys and St Thomas NHS Foundation Trust,07/02/2020,(81280) Medical Surgical Supplies & Equipment,(id:42298) Cardiovascular Services,EDWARDS LIFESCIENCES LTD,id:12795015,    25530.00
Department of Health,Guys and St Thomas NHS Foundation Trust,07/02/2020,(81280) Medical Surgical Supplies & Equipment,(id:42298) Cardiovascular Services,EDWARDS LIFESCIENCES LTD,id:12795003,    25530.00
Department of Health,Guys and St Thomas NHS Foundation Trust,07/02/2020,(81280) Medical Surgical Supplies & Equipment,(id:42298) Cardiovascular Services,EDWARDS LIFESCIENCES LTD,id:12795014,    25530.00
Department of Health,Guys and St Thomas NHS Foundation Trust,14/02/2020,(82600) Uniforms & Clothing,(id:42298) Cardiovascular Services,NHS SUPPLY CHAIN (MAIDSTONE),id:12743100    ,   9.83
Department of Health,Guys and St Thomas NHS Foundation Trust,07/02/2020,(81240) Medical Surgical Supplies & Equipment,(id:42298) Cardiovascular Services,BOSTON SCIENTIFIC LTD,id:12761093   ,1910.40
Department of Health,Guys and St Thomas NHS Foundation Trust,07/02/2020,(81240) Medical Surgical Supplies & Equipment,(id:42298) Cardiovascular Services,MEDTRONIC LTD,id:12760818 ,6480.00
Department of Health,Guys and St Thomas NHS Foundation Trust,14/02/2020,(81240) Medical Surgical Supplies & Equipment,(id:42298) Cardiovascular Services,MEDTRONIC LTD,id:12766004 ,3240.00
Department of Health,Guys and St Thomas NHS Foundation Trust,21/02/2020,(81240) Medical Surgical Supplies & Equipment,(id:42298) Cardiovascular Services,MEDTRONIC LTD,id:12795709 ,1620.00
Department of Health,Guys and St Thomas NHS Foundation Trust,27/02/2020,(82800) Bedding & Linen,(id:42291) Cardiovascular Services,NHS SUPPLY CHAIN (MAIDSTONE),id:12794121   ,  11.52
Department of Health,Guys and St Thomas NHS Foundation Trust,07/02/2020,(81100) Dressings,(id:42291) Cardiovascular Services,NHS SUPPLY CHAIN (MAIDSTONE),id:12723357    , 110.53
Department of Health,Guys and St Thomas NHS Foundation Trust,14/02/2020,(81100) Dressings,(id:42290) Cardiovascular Services,NHS SUPPLY CHAIN (MAIDSTONE),id:12743100    , 153.60
Department of Health,Guys and St Thomas NHS Foundation Trust,14/02/2020,(50552) Qualified Nursing Staff,(id:42290) Cardiovascular Services,CONTINENTAL NURSE LTD,id:12813894  , 229.64
Department of Health,Guys and St Thomas NHS Foundation Trust,07/02/2020,(82600) Uniforms & Clothing,(id:42293) Cardiovascular Services,SQUADRON MEDICAL LTD,id:12759402  ,   9.00
Department of Health,Guys and St Thomas NHS Foundation Trust,07/02/2020,(82600) Uniforms & Clothing,(id:42293) Cardiovascular Services,SQUADRON MEDICAL LTD,id:12764021  ,  30.12
Department of Health,Guys and St Thomas NHS Foundation Trust,27/02/2020,(81225) Medical Surgical Supplies & Equipment,(id:42293) Cardiovascular Services,NHS SUPPLY CHAIN (MAIDSTONE),id:12794121 ,  10.08
Department of Health,Guys and St Thomas NHS Foundation Trust,07/02/2020,(81200) Medical Surgical Supplies & Equipment,(id:42293) Cardiovascular Services,SQUADRON MEDICAL LTD,id:12709300    , 352.23
Department of Health,Guys and St Thomas NHS Foundation Trust,07/02/2020,(81200) Medical Surgical Supplies & Equipment,(id:42293) Cardiovascular Services,PENNINE HEALTHCARE,id:12782473 , 731.14
Department of Health,Guys and St Thomas NHS Foundation Trust,07/02/2020,(81200) Medical Surgical Supplies & Equipment,(id:42293) Cardiovascular Services,VASCUTEK LTD,id:12726457  , 970.20
Department of Health,Guys and St Thomas NHS Foundation Trust,07/02/2020,(81200) Medical Surgical Supplies & Equipment,(id:42293) Cardiovascular Services,VASCUTEK LTD,id:12743238  , 970.20
Department of Health,Guys and St Thomas NHS Foundation Trust,07/02/2020,(81200) Medical Surgical Supplies & Equipment,(id:42293) Cardiovascular Services,VASCUTEK LTD,id:12778228  , 970.20
Department of Health,Guys and St Thomas NHS Foundation Trust,07/02/2020,(81200) Medical Surgical Supplies & Equipment,(id:42293) Cardiovascular Services,VASCUTEK LTD,id:12760564  ,1926.60
Department of Health,Guys and St Thomas NHS Foundation Trust,14/02/2020,(81200) Medical Surgical Supplies & Equipment,(id:42293) Cardiovascular Services,CRYOLIFE EUROPA LTD,id:12816236, 630.00
Department of Health,Guys and St Thomas NHS Foundation Trust,14/02/2020,(81200) Medical Surgical Supplies & Equipment,(id:42293) Cardiovascular Services,ATRICURE EUROPE BV(DO NOT RAISE ORDERS IN EUROS),id:12819799 ,3144.00
Department of Health,Guys and St Thomas NHS Foundation Trust,21/02/2020,(81200) Medical Surgical Supplies & Equipment,(id:42293) Cardiovascular Services,SQUADRON MEDICAL LTD,id:12797140    , 104.20
Department of Health,Guys and St Thomas NHS Foundation Trust,27/02/2020,(81200) Medical Surgical Supplies & Equipment,(id:42293) Cardiovascular Services,SQUADRON MEDICAL LTD,id:12810613    , 347.59
Department of Health,Guys and St Thomas NHS Foundation Trust,21/02/2020,(81280) Medical Surgical Supplies & Equipment,(id:42293) Cardiovascular Services,EDWARDS LIFESCIENCES LTD,id:12825607,5640.00
Department of Health,Guys and St Thomas NHS Foundation Trust,07/02/2020,(81280) Medical Surgical Supplies & Equipment,(id:42293) Cardiovascular Services,EDWARDS LIFESCIENCES LTD,id:12795009,3420.00
Department of Health,Guys and St Thomas NHS Foundation Trust,14/02/2020,(81280) Medical Surgical Supplies & Equipment,(id:42293) Cardiovascular Services,VASCUTEK LTD,id:12807978  ,1152.60
Department of Health,Guys and St Thomas NHS Foundation Trust,14/02/2020,(81280) Medical Surgical Supplies & Equipment,(id:42293) Cardiovascular Services,EDWARDS LIFESCIENCES LTD,id:12807603,2112.00
Department of Health,Guys and St Thomas NHS Foundation Trust,14/02/2020,(81280) Medical Surgical Supplies & Equipment,(id:42293) Cardiovascular Services,EDWARDS LIFESCIENCES LTD,id:12807608,3420.00
Department of Health,Guys and St Thomas NHS Foundation Trust,14/02/2020,(81200) Medical Surgical Supplies & Equipment,(id:42292) Cardiovascular Services,MAQUET LIMITED,id:12801864, 475.20
Department of Health,Guys and St Thomas NHS Foundation Trust,27/02/2020,(81200) Medical Surgical Supplies & Equipment,(id:42292) Cardiovascular Services,LIVANOVA UK LTD,id:12845218    ,1175.76
Department of Health,Guys and St Thomas NHS Foundation Trust,27/02/2020,(81200) Medical Surgical Supplies & Equipment,(id:42292) Cardiovascular Services,MAQUET LIMITED,id:12845201, 475.20
Department of Health,Guys and St Thomas NHS Foundation Trust,14/02/2020,(81100) Dressings,(id:42292) Cardiovascular Services,MAQUET LIMITED,id:12801861   , 684.00
Department of Health,Guys and St Thomas NHS Foundation Trust,27/02/2020,(81100) Dressings,(id:42292) Cardiovascular Services,MAQUET LIMITED,id:12845201   , 366.00
Department of Health,Guys and St Thomas NHS Foundation Trust,14/02/2020,(82600) Uniforms & Clothing,(id:42287) Cardiovascular Services,NHS SUPPLY CHAIN (MAIDSTONE),id:12743100    ,  46.20
Department of Health,Guys and St Thomas NHS Foundation Trust,27/02/2020,(82600) Uniforms & Clothing,(id:42287) Cardiovascular Services,NHS SUPPLY CHAIN (MAIDSTONE),id:12794121    ,  50.28
Department of Health,Guys and St Thomas NHS Foundation Trust,27/02/2020,(82000) Provisions & Kitchens,(id:42287) Cardiovascular Services,NHS SUPPLY CHAIN (MAIDSTONE),id:12794121  ,  41.64
Department of Health,Guys and St Thomas NHS Foundation Trust,21/02/2020,(83400) Office Equipment,(id:42287) Cardiovascular Services,NHS SUPPLY CHAIN (MAIDSTONE),id:12777276  , 249.40
Department of Health,Guys and St Thomas NHS Foundation Trust,14/02/2020,(82800) Bedding & Linen,(id:42287) Cardiovascular Services,NHS SUPPLY CHAIN (MAIDSTONE),id:12743100   ,  80.13
Department of Health,Guys and St Thomas NHS Foundation Trust,21/02/2020,(82800) Bedding & Linen,(id:42287) Cardiovascular Services,NHS SUPPLY CHAIN (MAIDSTONE),id:12777276   ,  54.19
Department of Health,Guys and St Thomas NHS Foundation Trust,27/02/2020,(82800) Bedding & Linen,(id:42287) Cardiovascular Services,NHS SUPPLY CHAIN (MAIDSTONE),id:12794121   ,  74.41
Department of Health,Guys and St Thomas NHS Foundation Trust,27/02/2020,(81200) Medical Surgical Supplies & Equipment,(id:42287) Cardiovascular Services,NHS SUPPLY CHAIN (MAIDSTONE),id:12794121 , 916.83
Department of Health,Guys and St Thomas NHS Foundation Trust,14/02/2020,(81200) Medical Surgical Supplies & Equipment,(id:42287) Cardiovascular Services,NHS SUPPLY CHAIN (MAIDSTONE),id:12743100 , 974.64
Department of Health,Guys and St Thomas NHS Foundation Trust,14/02/2020,(81225) Medical Surgical Supplies & Equipment,(id:42287) Cardiovascular Services,NHS SUPPLY CHAIN (MAIDSTONE),id:12743100 ,   6.60
Department of Health,Guys and St Thomas NHS Foundation Trust,21/02/2020,(52072) Radiographers,(id:42368) Clinical Imaging & Med Physics,PRICEWATERHOUSECOOPERS LLP,id:12834514,8982.31
Department of Health,Guys and St Thomas NHS Foundation Trust,21/02/2020,(52062) Radiographers,(id:42368) Clinical Imaging & Med Physics,PRICEWATERHOUSECOOPERS LLP,id:12834534,4597.20
Department of Health,Guys and St Thomas NHS Foundation Trust,21/02/2020,(52062) Radiographers,(id:42368) Clinical Imaging & Med Physics,PRICEWATERHOUSECOOPERS LLP,id:12834494,7353.36
Department of Health,Guys and St Thomas NHS Foundation Trust,07/02/2020,(83400) Office Equipment,(id:42367) Clinical Imaging & Med Physics,NHS SUPPLY CHAIN (MAIDSTONE),id:12723357, 632.39
Department of Health,Guys and St Thomas NHS Foundation Trust,14/02/2020,(83400) Office Equipment,(id:42367) Clinical Imaging & Med Physics,NHS SUPPLY CHAIN (MAIDSTONE),id:12743100, 568.16
Department of Health,Guys and St Thomas NHS Foundation Trust,27/02/2020,(83400) Office Equipment,(id:42367) Clinical Imaging & Med Physics,NHS SUPPLY CHAIN (MAIDSTONE),id:12794121, 358.31
Department of Health,Guys and St Thomas NHS Foundation Trust,21/02/2020,(81100) Dressings,(id:42367) Clinical Imaging & Med Physics,NHS SUPPLY CHAIN (MAIDSTONE),id:12777276  , 637.37
Department of Health,Guys and St Thomas NHS Foundation Trust,07/02/2020,(81200) Medical Surgical Supplies & Equipment,(id:42367) Clinical Imaging & Med Physics,SQUADRON MEDICAL LTD,id:12760953  , 485.70
Department of Health,Guys and St Thomas NHS Foundation Trust,07/02/2020,(81200) Medical Surgical Supplies & Equipment,(id:42367) Clinical Imaging & Med Physics,BOSTON SCIENTIFIC LTD,id:12759232 , 630.00
Department of Health,Guys and St Thomas NHS Foundation Trust,07/02/2020,(81200) Medical Surgical Supplies & Equipment,(id:42367) Clinical Imaging & Med Physics,SQUADRON MEDICAL LTD,id:12669177  , 249.33
Department of Health,Guys and St Thomas NHS Foundation Trust,07/02/2020,(81200) Medical Surgical Supplies & Equipment,(id:42367) Clinical Imaging & Med Physics,SQUADRON MEDICAL LTD,id:12759368  , 156.02
Department of Health,Guys and St Thomas NHS Foundation Trust,07/02/2020,(81200) Medical Surgical Supplies & Equipment,(id:42367) Clinical Imaging & Med Physics,KAPITEX HEALTHCARE LTD,id:12776557,1322.76
Department of Health,Guys and St Thomas NHS Foundation Trust,14/02/2020,(81200) Medical Surgical Supplies & Equipment,(id:42367) Clinical Imaging & Med Physics,SQUADRON MEDICAL LTD,id:12777532  ,1781.17
Department of Health,Guys and St Thomas NHS Foundation Trust,14/02/2020,(81200) Medical Surgical Supplies & Equipment,(id:42367) Clinical Imaging & Med Physics,SQUADRON MEDICAL LTD,id:12766545  ,1037.14
Department of Health,Guys and St Thomas NHS Foundation Trust,14/02/2020,(81200) Medical Surgical Supplies & Equipment,(id:42367) Clinical Imaging & Med Physics,SQUADRON MEDICAL LTD,id:12766537  ,1901.51
Department of Health,Guys and St Thomas NHS Foundation Trust,14/02/2020,(81200) Medical Surgical Supplies & Equipment,(id:42367) Clinical Imaging & Med Physics,COOK UK LTD,id:12759644 , 721.20
Department of Health,Guys and St Thomas NHS Foundation Trust,21/02/2020,(81200) Medical Surgical Supplies & Equipment,(id:42367) Clinical Imaging & Med Physics,SQUADRON MEDICAL LTD,id:12797395  ,1653.85
Department of Health,Guys and St Thomas NHS Foundation Trust,21/02/2020,(81200) Medical Surgical Supplies & Equipment,(id:42367) Clinical Imaging & Med Physics,SQUADRON MEDICAL LTD,id:12800197  , 761.26
Department of Health,Guys and St Thomas NHS Foundation Trust,21/02/2020,(81200) Medical Surgical Supplies & Equipment,(id:42367) Clinical Imaging & Med Physics,SQUADRON MEDICAL LTD,id:12784603  ,1423.88
Department of Health,Guys and St Thomas NHS Foundation Trust,27/02/2020,(81200) Medical Surgical Supplies & Equipment,(id:42367) Clinical Imaging & Med Physics,MEDTRONIC LTD,id:12804987    , 840.00
Department of Health,Guys and St Thomas NHS Foundation Trust,14/02/2020,(81200) Medical Surgical Supplies & Equipment,(id:42367) Clinical Imaging & Med Physics,AQUILANT LTD,id:12799183, 924.00
Department of Health,Guys and St Thomas NHS Foundation Trust,14/02/2020,(81200) Medical Surgical Supplies & Equipment,(id:42367) Clinical Imaging & Med Physics,ALLIANCE DIAGNOSTIC SERVICES LTD,id:12527716,   -33921.51
Department of Health,Guys and St Thomas NHS Foundation Trust,21/02/2020,(81200) Medical Surgical Supplies & Equipment,(id:42367) Clinical Imaging & Med Physics,BOSTON SCIENTIFIC LTD,id:12786334 ,3150.00
Department of Health,Guys and St Thomas NHS Foundation Trust,21/02/2020,(81200) Medical Surgical Supplies & Equipment,(id:42367) Clinical Imaging & Med Physics,BOSTON SCIENTIFIC LTD,id:12800109 ,6048.00
Department of Health,Guys and St Thomas NHS Foundation Trust,21/02/2020,(81200) Medical Surgical Supplies & Equipment,(id:42367) Clinical Imaging & Med Physics,BOSTON SCIENTIFIC LTD,id:12784536 ,1920.00
Department of Health,Guys and St Thomas NHS Foundation Trust,21/02/2020,(81200) Medical Surgical Supplies & Equipment,(id:42367) Clinical Imaging & Med Physics,BARD LTD,id:12794207    , 168.00
Department of Health,Guys and St Thomas NHS Foundation Trust,27/02/2020,(81200) Medical Surgical Supplies & Equipment,(id:42367) Clinical Imaging & Med Physics,SQUADRON MEDICAL LTD,id:12804750  , 444.18
Department of Health,Guys and St Thomas NHS Foundation Trust,27/02/2020,(81200) Medical Surgical Supplies & Equipment,(id:42367) Clinical Imaging & Med Physics,BAYER PLC,id:12843073   ,4780.80
Department of Health,Guys and St Thomas NHS Foundation Trust,27/02/2020,(81235) Medical Surgical Supplies & Equipment,(id:42367) Clinical Imaging & Med Physics,BARD LTD,id:12807260    , 702.24
Department of Health,Guys and St Thomas NHS Foundation Trust,14/02/2020,(81230) Medical Surgical Supplies & Equipment,(id:42367) Clinical Imaging & Med Physics,SQUADRON MEDICAL LTD,id:12724650  , 456.20
Department of Health,Guys and St Thomas NHS Foundation Trust,21/02/2020,(81230) Medical Surgical Supplies & Equipment,(id:42367) Clinical Imaging & Med Physics,BOSTON SCIENTIFIC LTD,id:12786334 , 316.80
Department of Health,Guys and St Thomas NHS Foundation Trust,21/02/2020,(81230) Medical Surgical Supplies & Equipment,(id:42367) Clinical Imaging & Med Physics,MEDTRONIC LTD,id:12795706    ,1140.00
Department of Health,Guys and St Thomas NHS Foundation Trust,21/02/2020,(81500) X Ray Equipment Purchase,(id:42367) Clinical Imaging & Med Physics,NHS SUPPLY CHAIN (MAIDSTONE),id:12777276  , 310.80
Department of Health,Guys and St Thomas NHS Foundation Trust,27/02/2020,(81500) X Ray Equipment Purchase,(id:42367) Clinical Imaging & Med Physics,PROTECX MEDICAL LTD,id:12842438 , 762.66
Department of Health,Guys and St Thomas NHS Foundation Trust,27/02/2020,(81500) X Ray Equipment Purchase,(id:42367) Clinical Imaging & Med Physics,NHS SUPPLY CHAIN (MAIDSTONE),id:12794121  , 868.80
Department of Health,Guys and St Thomas NHS Foundation Trust,07/02/2020,(81700) Lab Equipment Purchase,(id:42367) Clinical Imaging & Med Physics,NHS SUPPLY CHAIN (MAIDSTONE),id:12723357    ,   3.12
Department of Health,Guys and St Thomas NHS Foundation Trust,14/02/2020,(82600) Uniforms & Clothing,(id:42366) Clinical Imaging & Med Physics,NHS SUPPLY CHAIN (MAIDSTONE),id:12743100  , 266.32
Department of Health,Guys and St Thomas NHS Foundation Trust,07/02/2020,(82800) Bedding & Linen,(id:42366) Clinical Imaging & Med Physics,NHS SUPPLY CHAIN (MAIDSTONE),id:12723357 , 147.75
Department of Health,Guys and St Thomas NHS Foundation Trust,21/02/2020,(81200) Medical Surgical Supplies & Equipment,(id:42366) Clinical Imaging & Med Physics,NHS SUPPLY CHAIN (MAIDSTONE),id:12777276    ,5534.71
Department of Health,Guys and St Thomas NHS Foundation Trust,14/02/2020,(81200) Medical Surgical Supplies & Equipment,(id:42366) Clinical Imaging & Med Physics,BAYER PLC,id:12820820   , 594.00
Department of Health,Guys and St Thomas NHS Foundation Trust,27/02/2020,(81200) Medical Surgical Supplies & Equipment,(id:42366) Clinical Imaging & Med Physics,BAYER PLC,id:12844634   , 710.40
Department of Health,Guys and St Thomas NHS Foundation Trust,07/02/2020,(89595) Non-Healthcare from Foundation Trusts,(id:42366) Clinical Imaging & Med Physics,GREAT ORMOND STREET HOSPITAL FOR CHILDREN NHS FOUNDATION TRUST,id:12777876,1874.20
Department of Health,Guys and St Thomas NHS Foundation Trust,07/02/2020,(89595) Non-Healthcare from Foundation Trusts,(id:42366) Clinical Imaging & Med Physics,GREAT ORMOND STREET HOSPITAL FOR CHILDREN NHS FOUNDATION TRUST,id:12777909,1874.20
Department of Health,Guys and St Thomas NHS Foundation Trust,27/02/2020,(81500) X Ray Equipment Purchase,(id:42366) Clinical Imaging & Med Physics,NHS SUPPLY CHAIN (MAIDSTONE),id:12794121  ,2819.02
Department of Health,Guys and St Thomas NHS Foundation Trust,14/02/2020,(81255) Medical Surgical Supplies & Equipment,(id:42366) Clinical Imaging & Med Physics,NHS SUPPLY CHAIN (MAIDSTONE),id:12743100    ,   4.68
Department of Health,Guys and St Thomas NHS Foundation Trust,27/02/2020,(83400) Office Equipment,(id:4187419) Clinical Imaging & Med Physics,BAYER PLC,id:12850504  ,2112.00
Department of Health,Guys and St Thomas NHS Foundation Trust,07/02/2020,(83400) Office Equipment,(id:4187419) Clinical Imaging & Med Physics,BAYER PLC,id:12782407  ,2112.00
Department of Health,Guys and St Thomas NHS Foundation Trust,21/02/2020,(81200) Medical Surgical Supplies & Equipment,(id:4187419) Clinical Imaging & Med Physics,ADVANCED ACCELERATOR APPLICATIONS (UK & IRELAND) LTD,id:12831000   ,    16690.50
Department of Health,Guys and St Thomas NHS Foundation Trust,21/02/2020,(82600) Uniforms & Clothing,(id:42372) Clinical Imaging & Med Physics,NHS SUPPLY CHAIN (MAIDSTONE),id:12777276  ,  19.94
Department of Health,Guys and St Thomas NHS Foundation Trust,07/02/2020,(83400) Office Equipment,(id:42372) Clinical Imaging & Med Physics,BAYER PLC,id:12793061    ,2112.00
Department of Health,Guys and St Thomas NHS Foundation Trust,14/02/2020,(81100) Dressings,(id:42372) Clinical Imaging & Med Physics,NHS SUPPLY CHAIN (MAIDSTONE),id:12743100  ,  14.28
Department of Health,Guys and St Thomas NHS Foundation Trust,21/02/2020,(82800) Bedding & Linen,(id:42372) Clinical Imaging & Med Physics,NHS SUPPLY CHAIN (MAIDSTONE),id:12777276 ,  13.06
Department of Health,Guys and St Thomas NHS Foundation Trust,21/02/2020,(52062) Radiographers,(id:42372) Clinical Imaging & Med Physics,PRICEWATERHOUSECOOPERS LLP,id:12834534,1249.82
Department of Health,Guys and St Thomas NHS Foundation Trust,21/02/2020,(81200) Medical Surgical Supplies & Equipment,(id:42372) Clinical Imaging & Med Physics,NHS SUPPLY CHAIN (MAIDSTONE),id:12777276    , 766.88
Department of Health,Guys and St Thomas NHS Foundation Trust,14/02/2020,(81200) Medical Surgical Supplies & Equipment,(id:42372) Clinical Imaging & Med Physics,NHS SUPPLY CHAIN (MAIDSTONE),id:12743100    , 476.65
Department of Health,Guys and St Thomas NHS Foundation Trust,07/02/2020,(81275) Medical Surgical Supplies & Equipment,(id:42372) Clinical Imaging & Med Physics,CURIUM PHARMA UK LTD,id:12705805  , 516.00
Department of Health,Guys and St Thomas NHS Foundation Trust,07/02/2020,(81275) Medical Surgical Supplies & Equipment,(id:42372) Clinical Imaging & Med Physics,CURIUM PHARMA UK LTD,id:12705878  , 756.00
Department of Health,Guys and St Thomas NHS Foundation Trust,14/02/2020,(81275) Medical Surgical Supplies & Equipment,(id:42372) Clinical Imaging & Med Physics,GE HEALTHCARE UK LTD:00475800,id:12793102   ,2628.00
Department of Health,Guys and St Thomas NHS Foundation Trust,14/02/2020,(81275) Medical Surgical Supplies & Equipment,(id:42372) Clinical Imaging & Med Physics,M-PHARMA LIMITED,id:12744092 ,3397.92
Department of Health,Guys and St Thomas NHS Foundation Trust,14/02/2020,(81275) Medical Surgical Supplies & Equipment,(id:42372) Clinical Imaging & Med Physics,GE HEALTHCARE UK LTD:00475800,id:12793947   ,3900.00
Department of Health,Guys and St Thomas NHS Foundation Trust,14/02/2020,(81275) Medical Surgical Supplies & Equipment,(id:42372) Clinical Imaging & Med Physics,GE HEALTHCARE UK LTD:00475800,id:12781359   ,4680.00
Department of Health,Guys and St Thomas NHS Foundation Trust,27/02/2020,(81275) Medical Surgical Supplies & Equipment,(id:42372) Clinical Imaging & Med Physics,GE HEALTHCARE UK LTD:00475800,id:12824256   ,2628.00
Department of Health,Guys and St Thomas NHS Foundation Trust,07/02/2020,(81500) X Ray Equipment Purchase,(id:42372) Clinical Imaging & Med Physics,CURIUM PHARMA UK LTD,id:12705889,1644.00
Department of Health,Guys and St Thomas NHS Foundation Trust,07/02/2020,(81500) X Ray Equipment Purchase,(id:42372) Clinical Imaging & Med Physics,CURIUM PHARMA UK LTD,id:12705886,1644.00
Department of Health,Guys and St Thomas NHS Foundation Trust,21/02/2020,(83610) IT Costs,(id:42380) Clinical Imaging & Med Physics,KINGSFIELD COMPUTER PRODUCTS LTD,id:12802744    , 601.14
Department of Health,Guys and St Thomas NHS Foundation Trust,21/02/2020,(81200) Medical Surgical Supplies & Equipment,(id:42379) Clinical Imaging & Med Physics,CABLEMED LTD,id:12827469, 621.00
Department of Health,Guys and St Thomas NHS Foundation Trust,14/02/2020,(81500) X Ray Equipment Purchase,(id:42378) Clinical Imaging & Med Physics,ONCOLOGY SYSTEMS LTD,id:12673037,1516.32
Department of Health,Guys and St Thomas NHS Foundation Trust,27/02/2020,(81200) Medical Surgical Supplies & Equipment,(id:42378) Clinical Imaging & Med Physics,NHS SUPPLY CHAIN (MAIDSTONE),id:12794121    ,  18.00
Department of Health,Guys and St Thomas NHS Foundation Trust,14/02/2020,(81200) Medical Surgical Supplies & Equipment,(id:1348419) Clinical Imaging & Med Physics,MEDTRONIC LTD,id:12782904  ,5040.00
Department of Health,Guys and St Thomas NHS Foundation Trust,21/02/2020,(81265) Medical Surgical Supplies & Equipment,(id:1348419) Clinical Imaging & Med Physics,NHS SUPPLY CHAIN (MAIDSTONE),id:12777276  ,  66.92
Department of Health,Guys and St Thomas NHS Foundation Trust,07/02/2020,(81100) Dressings,(id:2625419) Transplant Renal and Urology,SQUADRON MEDICAL LTD,id:12735633,   7.13
Department of Health,Guys and St Thomas NHS Foundation Trust,14/02/2020,(81200) Medical Surgical Supplies & Equipment,(id:2625419) Transplant Renal and Urology,SQUADRON MEDICAL LTD,id:12766586  , 647.59
Department of Health,Guys and St Thomas NHS Foundation Trust,27/02/2020,(81200) Medical Surgical Supplies & Equipment,(id:2625419) Transplant Renal and Urology,SQUADRON MEDICAL LTD,id:12815638  , 801.35
Department of Health,Guys and St Thomas NHS Foundation Trust,21/02/2020,(81200) Medical Surgical Supplies & Equipment,(id:2625419) Transplant Renal and Urology,SQUADRON MEDICAL LTD,id:12797656  , 626.28
Department of Health,Guys and St Thomas NHS Foundation Trust,27/02/2020,(84400) Transport,(id:2625419) Transplant Renal and Urology,AMVALE MEDICAL TRANSPORT LTD,id:12779581  ,4602.72
Department of Health,Guys and St Thomas NHS Foundation Trust,14/02/2020,(83400) Office Equipment,(id:42419) Transplant Renal and Urology,NHS SUPPLY CHAIN (MAIDSTONE),id:12743100  ,  97.92
Department of Health,Guys and St Thomas NHS Foundation Trust,21/02/2020,(83400) Office Equipment,(id:42419) Transplant Renal and Urology,NHS SUPPLY CHAIN (MAIDSTONE),id:12777276  , 154.13
Department of Health,Guys and St Thomas NHS Foundation Trust,27/02/2020,(81700) Lab Equipment Purchase,(id:42419) Transplant Renal and Urology,NHS SUPPLY CHAIN (MAIDSTONE),id:12794121 ,  43.48
Department of Health,Guys and St Thomas NHS Foundation Trust,21/02/2020,(81700) Lab Equipment Purchase,(id:42419) Transplant Renal and Urology,NHS SUPPLY CHAIN (MAIDSTONE),id:12777276 ,  79.31
Department of Health,Guys and St Thomas NHS Foundation Trust,07/02/2020,(81400) Medical Surgical Supplies & Equipment,(id:2882419) Transplant Renal and Urology,NHS SUPPLY CHAIN (MAIDSTONE),id:12723357    , 893.76
Department of Health,Guys and St Thomas NHS Foundation Trust,21/02/2020,(81275) Medical Surgical Supplies & Equipment,(id:969419) Transplant Renal and Urology,NHS SUPPLY CHAIN (MAIDSTONE),id:12777276,  20.03
Department of Health,Guys and St Thomas NHS Foundation Trust,07/02/2020,(81200) Medical Surgical Supplies & Equipment,(id:42450) Transplant Renal and Urology,STRYKER UK LTD,id:12782484, 705.60
Department of Health,Guys and St Thomas NHS Foundation Trust,07/02/2020,(81200) Medical Surgical Supplies & Equipment,(id:42450) Transplant Renal and Urology,SQUADRON MEDICAL LTD,id:12749846    ,2071.75
Department of Health,Guys and St Thomas NHS Foundation Trust,14/02/2020,(81200) Medical Surgical Supplies & Equipment,(id:42450) Transplant Renal and Urology,SQUADRON MEDICAL LTD,id:12639132    ,1379.06
Department of Health,Guys and St Thomas NHS Foundation Trust,21/02/2020,(81200) Medical Surgical Supplies & Equipment,(id:42450) Transplant Renal and Urology,STRYKER UK LTD,id:12826416, 613.87
Department of Health,Guys and St Thomas NHS Foundation Trust,27/02/2020,(81100) Dressings,(id:42449) Transplant Renal and Urology,NHS SUPPLY CHAIN (MAIDSTONE),id:12794121    ,  83.16
Department of Health,Guys and St Thomas NHS Foundation Trust,27/02/2020,(83400) Office Equipment,(id:42447) Transplant Renal and Urology,NHS SUPPLY CHAIN (MAIDSTONE),id:12794121  , 196.29
Department of Health,Guys and St Thomas NHS Foundation Trust,07/02/2020,(81200) Medical Surgical Supplies & Equipment,(id:42447) Transplant Renal and Urology,NHS SUPPLY CHAIN (MAIDSTONE),id:12723357 ,1038.91
Department of Health,Guys and St Thomas NHS Foundation Trust,14/02/2020,(81200) Medical Surgical Supplies & Equipment,(id:42447) Transplant Renal and Urology,Q MEDICAL TECHNOLOGIES LTD,id:12808582   , 630.00
Department of Health,Guys and St Thomas NHS Foundation Trust,27/02/2020,(81200) Medical Surgical Supplies & Equipment,(id:42447) Transplant Renal and Urology,NHS SUPPLY CHAIN (MAIDSTONE),id:12794121 , 711.46
Department of Health,Guys and St Thomas NHS Foundation Trust,21/02/2020,(50472) Medical Training Grades,(id:42447) Transplant Renal and Urology,MEDSOL HEALTHCARE SERVICES LTD,id:12830043   ,1863.25
Department of Health,Guys and St Thomas NHS Foundation Trust,07/02/2020,(50200) Consultants,(id:42447) Transplant Renal and Urology,KING'S COLLEGE HOSPITAL NHS FOUNDATION TRUST,id:12779779 ,4873.69
Department of Health,Guys and St Thomas NHS Foundation Trust,07/02/2020,(82800) Bedding & Linen,(id:42446) Transplant Renal and Urology,NHS SUPPLY CHAIN (MAIDSTONE),id:12723357   ,  52.06
Department of Health,Guys and St Thomas NHS Foundation Trust,14/02/2020,(81200) Medical Surgical Supplies & Equipment,(id:42446) Transplant Renal and Urology,BOSTON SCIENTIFIC LTD,id:12800098   ,5839.20
Department of Health,Guys and St Thomas NHS Foundation Trust,14/02/2020,(81200) Medical Surgical Supplies & Equipment,(id:42446) Transplant Renal and Urology,SQUADRON MEDICAL LTD,id:12777599    , 345.84
Department of Health,Guys and St Thomas NHS Foundation Trust,14/02/2020,(81200) Medical Surgical Supplies & Equipment,(id:42446) Transplant Renal and Urology,SQUADRON MEDICAL LTD,id:12777754    , 626.28
Department of Health,Guys and St Thomas NHS Foundation Trust,21/02/2020,(81200) Medical Surgical Supplies & Equipment,(id:42446) Transplant Renal and Urology,BXTACCELYON LIMITED,id:12810101,4854.00
Department of Health,Guys and St Thomas NHS Foundation Trust,27/02/2020,(81200) Medical Surgical Supplies & Equipment,(id:42446) Transplant Renal and Urology,SQUADRON MEDICAL LTD,id:12810789    , 235.13
Department of Health,Guys and St Thomas NHS Foundation Trust,21/02/2020,(81200) Medical Surgical Supplies & Equipment,(id:42446) Transplant Renal and Urology,BARD LTD,id:12794206 ,1290.00
Department of Health,Guys and St Thomas NHS Foundation Trust,14/02/2020,(81400) Medical Surgical Supplies & Equipment,(id:42446) Transplant Renal and Urology,NHS SUPPLY CHAIN (MAIDSTONE),id:12743100 ,1082.08
Department of Health,Guys and St Thomas NHS Foundation Trust,07/02/2020,(81200) Medical Surgical Supplies & Equipment,(id:42444) Transplant Renal and Urology,BOSTON SCIENTIFIC LTD,id:12751644   ,1874.52
Department of Health,Guys and St Thomas NHS Foundation Trust,21/02/2020,(81200) Medical Surgical Supplies & Equipment,(id:42444) Transplant Renal and Urology,BOSTON SCIENTIFIC LTD,id:12797466   ,1287.78
Department of Health,Guys and St Thomas NHS Foundation Trust,21/02/2020,(81200) Medical Surgical Supplies & Equipment,(id:42444) Transplant Renal and Urology,BOSTON SCIENTIFIC LTD,id:12784511   ,2287.92
Department of Health,Guys and St Thomas NHS Foundation Trust,27/02/2020,(81200) Medical Surgical Supplies & Equipment,(id:42444) Transplant Renal and Urology,BOSTON SCIENTIFIC LTD,id:12804971   , 997.32
Department of Health,Guys and St Thomas NHS Foundation Trust,21/02/2020,(82800) Bedding & Linen,(id:42443) Transplant Renal and Urology,NHS SUPPLY CHAIN (MAIDSTONE),id:12777276   , 171.34
Department of Health,Guys and St Thomas NHS Foundation Trust,14/02/2020,(50522) Unqualified Nursing Staff,(id:42443) Transplant Renal and Urology,MSI GROUP LTD,id:12813962   , 282.47
Department of Health,Guys and St Thomas NHS Foundation Trust,14/02/2020,(83400) Office Equipment,(id:42443) Transplant Renal and Urology,NHS SUPPLY CHAIN (MAIDSTONE),id:12743100  ,  63.16
Department of Health,Guys and St Thomas NHS Foundation Trust,21/02/2020,(81700) Lab Equipment Purchase,(id:42443) Transplant Renal and Urology,NHS SUPPLY CHAIN (MAIDSTONE),id:12777276 ,  24.35
Department of Health,Guys and St Thomas NHS Foundation Trust,27/02/2020,(82000) Provisions & Kitchens,(id:42442) Transplant Renal and Urology,NHS SUPPLY CHAIN (MAIDSTONE),id:12794121  ,  69.41
Department of Health,Guys and St Thomas NHS Foundation Trust,07/02/2020,(82800) Bedding & Linen,(id:42442) Transplant Renal and Urology,NHS SUPPLY CHAIN (MAIDSTONE),id:12723357   , 120.72
Department of Health,Guys and St Thomas NHS Foundation Trust,27/02/2020,(81200) Medical Surgical Supplies & Equipment,(id:42442) Transplant Renal and Urology,NHS SUPPLY CHAIN (MAIDSTONE),id:12794121 ,1181.66
Department of Health,Guys and St Thomas NHS Foundation Trust,27/02/2020,(50552) Qualified Nursing Staff,(id:42442) Transplant Renal and Urology,CONTINENTAL NURSE LTD,id:12851289  , 237.81
Department of Health,Guys and St Thomas NHS Foundation Trust,14/02/2020,(81255) Medical Surgical Supplies & Equipment,(id:42442) Transplant Renal and Urology,NHS SUPPLY CHAIN (MAIDSTONE),id:12743100 ,   3.74
Department of Health,Guys and St Thomas NHS Foundation Trust,27/02/2020,(81200) Medical Surgical Supplies & Equipment,(id:3671419) Transplant Renal and Urology,FRESENIUS MEDICAL CARE RENAL SERVICES LT,id:12824196  , 547.20
Department of Health,Guys and St Thomas NHS Foundation Trust,07/02/2020,(81700) Lab Equipment Purchase,(id:3671419) Transplant Renal and Urology,NHS SUPPLY CHAIN (MAIDSTONE),id:12723357    ,  71.64
Department of Health,Guys and St Thomas NHS Foundation Trust,21/02/2020,(82800) Bedding & Linen,(id:3671419) Transplant Renal and Urology,NHS SUPPLY CHAIN (MAIDSTONE),id:12777276 , 105.26
Department of Health,Guys and St Thomas NHS Foundation Trust,14/02/2020,(82600) Uniforms & Clothing,(id:42435) Transplant Renal and Urology,NHS SUPPLY CHAIN (MAIDSTONE),id:12743100    ,  62.64
Department of Health,Guys and St Thomas NHS Foundation Trust,21/02/2020,(82600) Uniforms & Clothing,(id:42435) Transplant Renal and Urology,NHS SUPPLY CHAIN (MAIDSTONE),id:12777276    ,  52.87
Department of Health,Guys and St Thomas NHS Foundation Trust,21/02/2020,(50532) Unqualified Nursing Staff,(id:42435) Transplant Renal and Urology,GLOBE LOCUMS LTD,id:12830156, 265.53
Department of Health,Guys and St Thomas NHS Foundation Trust,14/02/2020,(50522) Unqualified Nursing Staff,(id:42435) Transplant Renal and Urology,GLOBE LOCUMS LTD,id:12817665, 273.20
Department of Health,Guys and St Thomas NHS Foundation Trust,07/02/2020,(81100) Dressings,(id:42435) Transplant Renal and Urology,NHS SUPPLY CHAIN (MAIDSTONE),id:12723357    , 542.28
Department of Health,Guys and St Thomas NHS Foundation Trust,14/02/2020,(81700) Lab Equipment Purchase,(id:42435) Transplant Renal and Urology,NHS SUPPLY CHAIN (MAIDSTONE),id:12743100 ,  32.31
Department of Health,Guys and St Thomas NHS Foundation Trust,21/02/2020,(81700) Lab Equipment Purchase,(id:42435) Transplant Renal and Urology,NHS SUPPLY CHAIN (MAIDSTONE),id:12777276 ,  79.95
Department of Health,Guys and St Thomas NHS Foundation Trust,14/02/2020,(50552) Qualified Nursing Staff,(id:42435) Transplant Renal and Urology,CONTINENTAL NURSE LTD,id:12813909  , 889.23
Department of Health,Guys and St Thomas NHS Foundation Trust,14/02/2020,(50552) Qualified Nursing Staff,(id:42435) Transplant Renal and Urology,GLOBE LOCUMS LTD,id:12813950  ,1309.04
Department of Health,Guys and St Thomas NHS Foundation Trust,07/02/2020,(81200) Medical Surgical Supplies & Equipment,(id:42433) Transplant Renal and Urology,KARL STORZ ENDOSCOPY UK LTD,id:12794936  ,2806.80
Department of Health,Guys and St Thomas NHS Foundation Trust,14/02/2020,(81200) Medical Surgical Supplies & Equipment,(id:42433) Transplant Renal and Urology,SQUADRON MEDICAL LTD,id:12783544    ,  16.99
Department of Health,Guys and St Thomas NHS Foundation Trust,14/02/2020,(81200) Medical Surgical Supplies & Equipment,(id:42433) Transplant Renal and Urology,SQUADRON MEDICAL LTD,id:12742079    , 415.32
Department of Health,Guys and St Thomas NHS Foundation Trust,21/02/2020,(81200) Medical Surgical Supplies & Equipment,(id:42433) Transplant Renal and Urology,SQUADRON MEDICAL LTD,id:12792877    , 830.64
Department of Health,Guys and St Thomas NHS Foundation Trust,21/02/2020,(81200) Medical Surgical Supplies & Equipment,(id:42430) Transplant Renal and Urology,GRANTLEIGH LTD,id:12825684,4770.00
Department of Health,Guys and St Thomas NHS Foundation Trust,27/02/2020,(81200) Medical Surgical Supplies & Equipment,(id:42430) Transplant Renal and Urology,B.BRAUN MEDICAL LTD,id:12833314, 920.42
Department of Health,Guys and St Thomas NHS Foundation Trust,21/02/2020,(81100) Dressings,(id:42428) Transplant Renal and Urology,NHS SUPPLY CHAIN (MAIDSTONE),id:12777276    ,  22.61
Department of Health,Guys and St Thomas NHS Foundation Trust,27/02/2020,(83400) Office Equipment,(id:42428) Transplant Renal and Urology,NHS SUPPLY CHAIN (MAIDSTONE),id:12794121  ,  73.37
Department of Health,Guys and St Thomas NHS Foundation Trust,07/02/2020,(81200) Medical Surgical Supplies & Equipment,(id:42420) Transplant Renal and Urology,BAXTER HEALTHCARE LTD,id:12746360   ,1651.78
Department of Health,Guys and St Thomas NHS Foundation Trust,14/02/2020,(81200) Medical Surgical Supplies & Equipment,(id:42420) Transplant Renal and Urology,SQUADRON MEDICAL LTD,id:12783302    ,2011.85
Department of Health,Guys and St Thomas NHS Foundation Trust,21/02/2020,(81200) Medical Surgical Supplies & Equipment,(id:42420) Transplant Renal and Urology,SQUADRON MEDICAL LTD,id:12797074    , 627.46
Department of Health,Guys and St Thomas NHS Foundation Trust,14/02/2020,(83400) Office Equipment,(id:42420) Transplant Renal and Urology,NHS SUPPLY CHAIN (MAIDSTONE),id:12743100  , 218.88
Department of Health,Guys and St Thomas NHS Foundation Trust,14/02/2020,(81100) Dressings,(id:42420) Transplant Renal and Urology,NHS SUPPLY CHAIN (MAIDSTONE),id:12743100    , 144.50
Department of Health,Guys and St Thomas NHS Foundation Trust,21/02/2020,(81200) Medical Surgical Supplies & Equipment,(id:42438) Transplant Renal and Urology,PLINTH MEDICAL LTD,id:12830849 ,  18.00
Department of Health,Guys and St Thomas NHS Foundation Trust,07/02/2020,(83765) Rent,(id:42438) Transplant Renal and Urology,ASSURA PROPERTIES LIMITED,id:12801357  ,7005.47
Department of Health,Guys and St Thomas NHS Foundation Trust,27/02/2020,(50562) Qualified Nursing Staff,(id:42438) Transplant Renal and Urology,GLOBE LOCUMS LTD,id:12851078  ,1256.61
Department of Health,Guys and St Thomas NHS Foundation Trust,27/02/2020,(86300) Healthcare from non-NHS bodies,(id:42437) Transplant Renal and Urology,DIAVERUM UK LTD,id:12695998 ,    12108.33
Department of Health,Guys and St Thomas NHS Foundation Trust,14/02/2020,(81200) Medical Surgical Supplies & Equipment,(id:42425) Transplant Renal and Urology,SQUADRON MEDICAL LTD,id:12747002    , 933.50
Department of Health,Guys and St Thomas NHS Foundation Trust,07/02/2020,(86300) Healthcare from non-NHS bodies,(id:42424) Transplant Renal and Urology,DIAVERUM UK LTD,id:12740057 ,    27176.16
Department of Health,Guys and St Thomas NHS Foundation Trust,27/02/2020,(86300) Healthcare from non-NHS bodies,(id:42424) Transplant Renal and Urology,DIAVERUM UK LTD,id:12694607 ,    25477.65
Department of Health,Guys and St Thomas NHS Foundation Trust,27/02/2020,(86300) Healthcare from non-NHS bodies,(id:42424) Transplant Renal and Urology,DIAVERUM UK LTD,id:12694636 ,    53071.20
Department of Health,Guys and St Thomas NHS Foundation Trust,07/02/2020,(81200) Medical Surgical Supplies & Equipment,(id:42422) Transplant Renal and Urology,NXSTAGE MEDICAL UK LIMITED,id:12752996   ,1086.24
Department of Health,Guys and St Thomas NHS Foundation Trust,07/02/2020,(81200) Medical Surgical Supplies & Equipment,(id:42422) Transplant Renal and Urology,NXSTAGE MEDICAL UK LIMITED,id:12793725   ,1309.44
Department of Health,Guys and St Thomas NHS Foundation Trust,07/02/2020,(81200) Medical Surgical Supplies & Equipment,(id:42422) Transplant Renal and Urology,NXSTAGE MEDICAL UK LIMITED,id:12793741   ,1309.44
Department of Health,Guys and St Thomas NHS Foundation Trust,14/02/2020,(81200) Medical Surgical Supplies & Equipment,(id:42422) Transplant Renal and Urology,NXSTAGE MEDICAL UK LIMITED,id:12803597   ,1544.93
Department of Health,Guys and St Thomas NHS Foundation Trust,14/02/2020,(81200) Medical Surgical Supplies & Equipment,(id:42422) Transplant Renal and Urology,NXSTAGE MEDICAL UK LIMITED,id:12578323   , 600.00
Department of Health,Guys and St Thomas NHS Foundation Trust,14/02/2020,(81200) Medical Surgical Supplies & Equipment,(id:42422) Transplant Renal and Urology,NXSTAGE MEDICAL UK LIMITED,id:12591905   , 647.88
Department of Health,Guys and St Thomas NHS Foundation Trust,14/02/2020,(81200) Medical Surgical Supplies & Equipment,(id:42422) Transplant Renal and Urology,NXSTAGE MEDICAL UK LIMITED,id:12813350   , 707.40
Department of Health,Guys and St Thomas NHS Foundation Trust,14/02/2020,(81200) Medical Surgical Supplies & Equipment,(id:42422) Transplant Renal and Urology,NXSTAGE MEDICAL UK LIMITED,id:12813341   ,1309.44
Department of Health,Guys and St Thomas NHS Foundation Trust,21/02/2020,(81200) Medical Surgical Supplies & Equipment,(id:42422) Transplant Renal and Urology,BAXTER HEALTHCARE LTD,id:12822176   ,1653.14
Department of Health,Guys and St Thomas NHS Foundation Trust,21/02/2020,(81200) Medical Surgical Supplies & Equipment,(id:42422) Transplant Renal and Urology,NXSTAGE MEDICAL UK LIMITED,id:12810438   , 600.00
Department of Health,Guys and St Thomas NHS Foundation Trust,07/02/2020,(82800) Bedding & Linen,(id:42422) Transplant Renal and Urology,NHS SUPPLY CHAIN (MAIDSTONE),id:12723357   ,   5.23
Department of Health,Guys and St Thomas NHS Foundation Trust,14/02/2020,(81200) Medical Surgical Supplies & Equipment,(id:42421) Transplant Renal and Urology,BAXTER HEALTHCARE LTD,id:12725163   , 523.33
Department of Health,Guys and St Thomas NHS Foundation Trust,14/02/2020,(81200) Medical Surgical Supplies & Equipment,(id:42421) Transplant Renal and Urology,BAXTER HEALTHCARE LTD,id:12725164   ,1643.36
Department of Health,Guys and St Thomas NHS Foundation Trust,14/02/2020,(81200) Medical Surgical Supplies & Equipment,(id:42421) Transplant Renal and Urology,BAXTER HEALTHCARE LTD,id:12725173   ,2279.88
Department of Health,Guys and St Thomas NHS Foundation Trust,14/02/2020,(81200) Medical Surgical Supplies & Equipment,(id:42421) Transplant Renal and Urology,BAXTER HEALTHCARE LTD,id:12725176   ,2560.77
Department of Health,Guys and St Thomas NHS Foundation Trust,21/02/2020,(81200) Medical Surgical Supplies & Equipment,(id:42421) Transplant Renal and Urology,BAXTER HEALTHCARE LTD,id:12784830   , 753.15
Department of Health,Guys and St Thomas NHS Foundation Trust,27/02/2020,(81200) Medical Surgical Supplies & Equipment,(id:42421) Transplant Renal and Urology,DIAVERUM UK LTD,id:12818736    ,   101208.06
Department of Health,Guys and St Thomas NHS Foundation Trust,14/02/2020,(81700) Lab Equipment Purchase,(id:42421) Transplant Renal and Urology,NHS SUPPLY CHAIN (MAIDSTONE),id:12743100 ,  30.95
Department of Health,Guys and St Thomas NHS Foundation Trust,07/02/2020,(81700) Lab Equipment Purchase,(id:2502419) Womens Services,ALPHA LABORATORIES LTD,id:12658887   ,1272.72
Department of Health,Guys and St Thomas NHS Foundation Trust,14/02/2020,(81700) Lab Equipment Purchase,(id:42518) Womens Services,NHS SUPPLY CHAIN (MAIDSTONE),id:12743100    ,  25.70
Department of Health,Guys and St Thomas NHS Foundation Trust,07/02/2020,(89270) Establishment,(id:42517) Womens Services,DR JAN GRACE,id:12801418    ,4600.00
Department of Health,Guys and St Thomas NHS Foundation Trust,27/02/2020,(89270) Establishment,(id:42517) Womens Services,CDP  PRINT MANAGEMENT,id:12833515, 709.29
Department of Health,Guys and St Thomas NHS Foundation Trust,14/02/2020,(83130) Energy Costs,(id:42517) Womens Services,BOC LTD :02107500,id:12806485,4381.37
Department of Health,Guys and St Thomas NHS Foundation Trust,07/02/2020,(81200) Medical Surgical Supplies & Equipment,(id:42517) Womens Services,NHS SUPPLY CHAIN (MAIDSTONE),id:12723357    , 175.07
Department of Health,Guys and St Thomas NHS Foundation Trust,21/02/2020,(81200) Medical Surgical Supplies & Equipment,(id:42517) Womens Services,NHS SUPPLY CHAIN (MAIDSTONE),id:12777276    ,  27.00
Department of Health,Guys and St Thomas NHS Foundation Trust,07/02/2020,(81700) Lab Equipment Purchase,(id:42517) Womens Services,NHS SUPPLY CHAIN (MAIDSTONE),id:12723357    , 162.36
Department of Health,Guys and St Thomas NHS Foundation Trust,07/02/2020,(83400) Office Equipment,(id:42514) Womens Services,NHS SUPPLY CHAIN (MAIDSTONE),id:12723357,  14.72
Department of Health,Guys and St Thomas NHS Foundation Trust,07/02/2020,(83400) Office Equipment,(id:42513) Womens Services,NHS SUPPLY CHAIN (MAIDSTONE),id:12723357, 126.33
Department of Health,Guys and St Thomas NHS Foundation Trust,07/02/2020,(81100) Dressings,(id:42513) Womens Services,NHS SUPPLY CHAIN (MAIDSTONE),id:12723357  , 340.90
Department of Health,Guys and St Thomas NHS Foundation Trust,27/02/2020,(81255) Medical Surgical Supplies & Equipment,(id:42513) Womens Services,NHS SUPPLY CHAIN (MAIDSTONE),id:12794121    ,   3.12
Department of Health,Guys and St Thomas NHS Foundation Trust,14/02/2020,(82600) Uniforms & Clothing,(id:42513) Womens Services,NHS SUPPLY CHAIN (MAIDSTONE),id:12743100  , 106.29
Department of Health,Guys and St Thomas NHS Foundation Trust,21/02/2020,(81400) Medical Surgical Supplies & Equipment,(id:42511) Womens Services,LINDSAY SURGICAL SUPPLIES LIMITED,id:12790936    , 881.00
Department of Health,Guys and St Thomas NHS Foundation Trust,27/02/2020,(81400) Medical Surgical Supplies & Equipment,(id:42511) Womens Services,LINDSAY SURGICAL SUPPLIES LIMITED,id:12843909    , 869.00
Department of Health,Guys and St Thomas NHS Foundation Trust,14/02/2020,(81200) Medical Surgical Supplies & Equipment,(id:42511) Womens Services,MPW (MAWDSLEYS PRE-WHOLESALE),id:12813297   ,5731.20
Department of Health,Guys and St Thomas NHS Foundation Trust,21/02/2020,(81200) Medical Surgical Supplies & Equipment,(id:42511) Womens Services,NHS SUPPLY CHAIN (MAIDSTONE),id:12777276    ,2034.00
Department of Health,Guys and St Thomas NHS Foundation Trust,07/02/2020,(82800) Bedding & Linen,(id:42510) Womens Services,NHS SUPPLY CHAIN (MAIDSTONE),id:12723357 ,  47.57
Department of Health,Guys and St Thomas NHS Foundation Trust,14/02/2020,(82800) Bedding & Linen,(id:42510) Womens Services,NHS SUPPLY CHAIN (MAIDSTONE),id:12743100 ,  39.31
Department of Health,Guys and St Thomas NHS Foundation Trust,27/02/2020,(81225) Medical Surgical Supplies & Equipment,(id:42510) Womens Services,NHS SUPPLY CHAIN (MAIDSTONE),id:12794121    ,   6.73
Department of Health,Guys and St Thomas NHS Foundation Trust,27/02/2020,(50552) Qualified Nursing Staff,(id:42509) Womens Services,CARE PROVIDERS HEALTHCARE,id:12847687 , 654.47
Department of Health,Guys and St Thomas NHS Foundation Trust,14/02/2020,(81200) Medical Surgical Supplies & Equipment,(id:42509) Womens Services,SQUADRON MEDICAL LTD,id:12766496  , 887.71
Department of Health,Guys and St Thomas NHS Foundation Trust,21/02/2020,(81200) Medical Surgical Supplies & Equipment,(id:42509) Womens Services,SQUADRON MEDICAL LTD,id:12800339  ,1331.59
Department of Health,Guys and St Thomas NHS Foundation Trust,07/02/2020,(81200) Medical Surgical Supplies & Equipment,(id:42509) Womens Services,SQUADRON MEDICAL LTD,id:12759330  , 167.47
Department of Health,Guys and St Thomas NHS Foundation Trust,07/02/2020,(81200) Medical Surgical Supplies & Equipment,(id:42509) Womens Services,SQUADRON MEDICAL LTD,id:12709350  , 299.17
Department of Health,Guys and St Thomas NHS Foundation Trust,07/02/2020,(83400) Office Equipment,(id:42508) Womens Services,NHS SUPPLY CHAIN (MAIDSTONE),id:12723357,  23.08
Department of Health,Guys and St Thomas NHS Foundation Trust,21/02/2020,(83400) Office Equipment,(id:42508) Womens Services,NHS SUPPLY CHAIN (MAIDSTONE),id:12777276,  12.64
Department of Health,Guys and St Thomas NHS Foundation Trust,21/02/2020,(81200) Medical Surgical Supplies & Equipment,(id:42506) Womens Services,JOHNSON & JOHNSON MEDICAL LTD,id:12786376   , 828.00
Department of Health,Guys and St Thomas NHS Foundation Trust,07/02/2020,(81100) Dressings,(id:42486) Womens Services,NHS SUPPLY CHAIN (MAIDSTONE),id:12723357  ,    .74
Department of Health,Guys and St Thomas NHS Foundation Trust,21/02/2020,(50562) Qualified Nursing Staff,(id:42503) Womens Services,PULSE HEALTHCARE LIMITED,id:12826858  , 421.20
Department of Health,Guys and St Thomas NHS Foundation Trust,07/02/2020,(81700) Lab Equipment Purchase,(id:42497) Womens Services,HOLOGIC UK LTD,id:12784177   ,5670.00
Department of Health,Guys and St Thomas NHS Foundation Trust,14/02/2020,(82800) Bedding & Linen,(id:42496) Womens Services,NHS SUPPLY CHAIN (MAIDSTONE),id:12743100 ,   5.33
Department of Health,Guys and St Thomas NHS Foundation Trust,21/02/2020,(81200) Medical Surgical Supplies & Equipment,(id:42496) Womens Services,NHS SUPPLY CHAIN (MAIDSTONE),id:12777276    , 207.24
Department of Health,Guys and St Thomas NHS Foundation Trust,14/02/2020,(81100) Dressings,(id:42496) Womens Services,NHS SUPPLY CHAIN (MAIDSTONE),id:12743100  ,  10.61
Department of Health,Guys and St Thomas NHS Foundation Trust,21/02/2020,(82000) Provisions & Kitchens,(id:42493) Womens Services,NHS SUPPLY CHAIN (MAIDSTONE),id:12777276,   8.58
Department of Health,Guys and St Thomas NHS Foundation Trust,27/02/2020,(83400) Office Equipment,(id:42493) Womens Services,NHS SUPPLY CHAIN (MAIDSTONE),id:12794121,  96.07
Department of Health,Guys and St Thomas NHS Foundation Trust,14/02/2020,(82800) Bedding & Linen,(id:42493) Womens Services,NHS SUPPLY CHAIN (MAIDSTONE),id:12743100 ,  59.77
Department of Health,Guys and St Thomas NHS Foundation Trust,07/02/2020,(81100) Dressings,(id:42493) Womens Services,NHS SUPPLY CHAIN (MAIDSTONE),id:12723357  ,  75.31
Department of Health,Guys and St Thomas NHS Foundation Trust,21/02/2020,(82600) Uniforms & Clothing,(id:42492) Womens Services,NHS SUPPLY CHAIN (MAIDSTONE),id:12777276  , 288.59
Department of Health,Guys and St Thomas NHS Foundation Trust,07/02/2020,(82000) Provisions & Kitchens,(id:42492) Womens Services,NHS SUPPLY CHAIN (MAIDSTONE),id:12723357, 380.79
Department of Health,Guys and St Thomas NHS Foundation Trust,07/02/2020,(83400) Office Equipment,(id:42492) Womens Services,NHS SUPPLY CHAIN (MAIDSTONE),id:12723357,1160.22
Department of Health,Guys and St Thomas NHS Foundation Trust,21/02/2020,(83400) Office Equipment,(id:42492) Womens Services,NHS SUPPLY CHAIN (MAIDSTONE),id:12777276, 925.73
Department of Health,Guys and St Thomas NHS Foundation Trust,21/02/2020,(82800) Bedding & Linen,(id:42492) Womens Services,NHS SUPPLY CHAIN (MAIDSTONE),id:12777276 ,1103.99
Department of Health,Guys and St Thomas NHS Foundation Trust,27/02/2020,(84500) Establishment,(id:42492) Womens Services,CDP  PRINT MANAGEMENT,id:12850309,1326.00
Department of Health,Guys and St Thomas NHS Foundation Trust,14/02/2020,(81200) Medical Surgical Supplies & Equipment,(id:42492) Womens Services,COOK UK LTD,id:12751929 ,1257.60
Department of Health,Guys and St Thomas NHS Foundation Trust,14/02/2020,(81200) Medical Surgical Supplies & Equipment,(id:42492) Womens Services,SQUADRON MEDICAL LTD,id:12783294  ,1402.56
Department of Health,Guys and St Thomas NHS Foundation Trust,27/02/2020,(50562) Qualified Nursing Staff,(id:42492) Womens Services,CARE PROVIDERS HEALTHCARE,id:12847511 , 421.20
Department of Health,Guys and St Thomas NHS Foundation Trust,07/02/2020,(83400) Office Equipment,(id:42491) Womens Services,NHS SUPPLY CHAIN (MAIDSTONE),id:12723357, 150.77
Department of Health,Guys and St Thomas NHS Foundation Trust,14/02/2020,(83500) Furniture & Fittings,(id:42491) Womens Services,SCC PLC)SPECIALIST COMPUTER CENTRES,id:12784997    ,3040.00
Department of Health,Guys and St Thomas NHS Foundation Trust,27/02/2020,(82800) Bedding & Linen,(id:42491) Womens Services,NHS SUPPLY CHAIN (MAIDSTONE),id:12794121 ,  16.85
Department of Health,Guys and St Thomas NHS Foundation Trust,21/02/2020,(81275) Medical Surgical Supplies & Equipment,(id:42491) Womens Services,NHS SUPPLY CHAIN (MAIDSTONE),id:12777276    ,   5.93
Department of Health,Guys and St Thomas NHS Foundation Trust,21/02/2020,(81100) Dressings,(id:42491) Womens Services,NHS SUPPLY CHAIN (MAIDSTONE),id:12777276  , 177.07
Department of Health,Guys and St Thomas NHS Foundation Trust,21/02/2020,(81200) Medical Surgical Supplies & Equipment,(id:42491) Womens Services,NHS SUPPLY CHAIN (MAIDSTONE),id:12777276    ,1452.02
Department of Health,Guys and St Thomas NHS Foundation Trust,14/02/2020,(81200) Medical Surgical Supplies & Equipment,(id:42037) Dental Services,HENRY SCHEIN,id:12820565, 623.34
Department of Health,Guys and St Thomas NHS Foundation Trust,14/02/2020,(81200) Medical Surgical Supplies & Equipment,(id:42037) Dental Services,HENRY SCHEIN,id:12818138, 864.19
Department of Health,Guys and St Thomas NHS Foundation Trust,14/02/2020,(81200) Medical Surgical Supplies & Equipment,(id:42037) Dental Services,GEISTLICH SONS LTD,id:12813458    , 953.58
Department of Health,Guys and St Thomas NHS Foundation Trust,21/02/2020,(81200) Medical Surgical Supplies & Equipment,(id:42037) Dental Services,HENRY SCHEIN,id:12821520, 955.18
Department of Health,Guys and St Thomas NHS Foundation Trust,21/02/2020,(82800) Bedding & Linen,(id:42037) Dental Services,NHS SUPPLY CHAIN (MAIDSTONE),id:12777276 , 140.62
Department of Health,Guys and St Thomas NHS Foundation Trust,21/02/2020,(82800) Bedding & Linen,(id:42007) Dental Services,NHS SUPPLY CHAIN (MAIDSTONE),id:12777276 ,  80.35
Department of Health,Guys and St Thomas NHS Foundation Trust,14/02/2020,(50343) Other Medical Grades,(id:42007) Dental Services,KINGS COLLEGE LONDON:03529700,id:12692075,5630.00
Department of Health,Guys and St Thomas NHS Foundation Trust,27/02/2020,(81100) Dressings,(id:42007) Dental Services,NHS SUPPLY CHAIN (MAIDSTONE),id:12794121  ,  24.55
Department of Health,Guys and St Thomas NHS Foundation Trust,07/02/2020,(81100) Dressings,(id:42007) Dental Services,NHS SUPPLY CHAIN (MAIDSTONE),id:12723357  ,  85.79
Department of Health,Guys and St Thomas NHS Foundation Trust,21/02/2020,(81100) Dressings,(id:42007) Dental Services,JOHNSON & JOHNSON MEDICAL LTD,id:12797499 , 831.17
Department of Health,Guys and St Thomas NHS Foundation Trust,27/02/2020,(81200) Medical Surgical Supplies & Equipment,(id:42007) Dental Services,HENRY SCHEIN,id:12844534, 584.89
Department of Health,Guys and St Thomas NHS Foundation Trust,21/02/2020,(83400) Office Equipment,(id:42007) Dental Services,NHS SUPPLY CHAIN (MAIDSTONE),id:12777276, 102.67
Department of Health,Guys and St Thomas NHS Foundation Trust,21/02/2020,(81200) Medical Surgical Supplies & Equipment,(id:42005) Dental Services,NHS SUPPLY CHAIN (MAIDSTONE),id:12777276    ,1229.83
Department of Health,Guys and St Thomas NHS Foundation Trust,21/02/2020,(83400) Office Equipment,(id:42015) Dental Services,NHS SUPPLY CHAIN (MAIDSTONE),id:12777276,  91.79
Department of Health,Guys and St Thomas NHS Foundation Trust,27/02/2020,(81200) Medical Surgical Supplies & Equipment,(id:42027) Dental Services,HENRY SCHEIN,id:12842194, 503.29
Department of Health,Guys and St Thomas NHS Foundation Trust,27/02/2020,(84600) Establishment,(id:42027) Dental Services,KINGS COLLEGE LONDON:03529700,id:12845264  , 628.02
Department of Health,Guys and St Thomas NHS Foundation Trust,14/02/2020,(82800) Bedding & Linen,(id:42028) Dental Services,NHS SUPPLY CHAIN (MAIDSTONE),id:12743100 ,  60.26
Department of Health,Guys and St Thomas NHS Foundation Trust,07/02/2020,(81200) Medical Surgical Supplies & Equipment,(id:42016) Dental Services,STRAUMANN LTD,id:12758548    , 773.94
Department of Health,Guys and St Thomas NHS Foundation Trust,14/02/2020,(81200) Medical Surgical Supplies & Equipment,(id:42016) Dental Services,DENTSPLY IH LTD,id:12809207  ,1251.90
Department of Health,Guys and St Thomas NHS Foundation Trust,27/02/2020,(50542) Unqualified Nursing Staff,(id:1885419) Dental Services,HAYS HEALTHCARE LTD,id:12851236   , 622.20
Department of Health,Guys and St Thomas NHS Foundation Trust,14/02/2020,(50542) Unqualified Nursing Staff,(id:1653420) Dental Services,HAYS HEALTHCARE LTD,id:12821097   , 613.80
Department of Health,Guys and St Thomas NHS Foundation Trust,07/02/2020,(81100) Dressings,(id:42014) Dental Services,NHS SUPPLY CHAIN (MAIDSTONE),id:12723357  ,  21.31
Department of Health,Guys and St Thomas NHS Foundation Trust,21/02/2020,(81200) Medical Surgical Supplies & Equipment,(id:42014) Dental Services,HENRY SCHEIN,id:12827527,1450.56
Department of Health,Guys and St Thomas NHS Foundation Trust,21/02/2020,(81200) Medical Surgical Supplies & Equipment,(id:42014) Dental Services,HENRY SCHEIN,id:12827518, 531.82
Department of Health,Guys and St Thomas NHS Foundation Trust,21/02/2020,(82800) Bedding & Linen,(id:42014) Dental Services,NHS SUPPLY CHAIN (MAIDSTONE),id:12777276 ,  80.35
Department of Health,Guys and St Thomas NHS Foundation Trust,27/02/2020,(81200) Medical Surgical Supplies & Equipment,(id:1634433) Dental Services,NHS SUPPLY CHAIN (MAIDSTONE),id:12794121  ,  86.88
Department of Health,Guys and St Thomas NHS Foundation Trust,21/02/2020,(82800) Bedding & Linen,(id:1634433) Dental Services,NHS SUPPLY CHAIN (MAIDSTONE),id:12777276    ,  20.09
Department of Health,Guys and St Thomas NHS Foundation Trust,27/02/2020,(83400) Office Equipment,(id:1634429) Dental Services,NHS SUPPLY CHAIN (MAIDSTONE),id:12794121   ,  48.48
Department of Health,Guys and St Thomas NHS Foundation Trust,21/02/2020,(81200) Medical Surgical Supplies & Equipment,(id:1634429) Dental Services,HENRY SCHEIN,id:12830799   , 824.04
Department of Health,Guys and St Thomas NHS Foundation Trust,07/02/2020,(81200) Medical Surgical Supplies & Equipment,(id:1634429) Dental Services,HENRY SCHEIN,id:12782030   , 890.72
Department of Health,Guys and St Thomas NHS Foundation Trust,07/02/2020,(81200) Medical Surgical Supplies & Equipment,(id:1634429) Dental Services,NHS SUPPLY CHAIN (MAIDSTONE),id:12723357  , 786.32
Department of Health,Guys and St Thomas NHS Foundation Trust,27/02/2020,(81200) Medical Surgical Supplies & Equipment,(id:1634429) Dental Services,HENRY SCHEIN,id:12844298   , 796.58
Department of Health,Guys and St Thomas NHS Foundation Trust,27/02/2020,(81200) Medical Surgical Supplies & Equipment,(id:1634429) Dental Services,HENRY SCHEIN,id:12828724   , 591.36
Department of Health,Guys and St Thomas NHS Foundation Trust,14/02/2020,(81200) Medical Surgical Supplies & Equipment,(id:1650420) Dental Services,BRACON LIMITED,id:12795485 , 907.22
Department of Health,Guys and St Thomas NHS Foundation Trust,21/02/2020,(81200) Medical Surgical Supplies & Equipment,(id:4539419) Specialist Ambulatory Services,NHS SUPPLY CHAIN (MAIDSTONE),id:12777276  , 120.05
Department of Health,Guys and St Thomas NHS Foundation Trust,21/02/2020,(81100) Dressings,(id:4539419) Specialist Ambulatory Services,NHS SUPPLY CHAIN (MAIDSTONE),id:12777276,  14.28
Department of Health,Guys and St Thomas NHS Foundation Trust,21/02/2020,(84501) Establishment,(id:2862419) Specialist Ambulatory Services,CASCADE GROUP SOUTHBANK,id:12831334 , 432.00
Department of Health,Guys and St Thomas NHS Foundation Trust,14/02/2020,(81200) Medical Surgical Supplies & Equipment,(id:2953420) Specialist Ambulatory Services,NHS SUPPLY CHAIN (MAIDSTONE),id:12743100  ,   9.55
Department of Health,Guys and St Thomas NHS Foundation Trust,14/02/2020,(89010) Other - Publishing,(id:641456) Specialist Ambulatory Services,OXFORD UNIVERSITY PRESS,id:12807336  ,2480.40
Department of Health,Guys and St Thomas NHS Foundation Trust,10/02/2020,(89000) Other - Training courses and conferences,(id:2702419) Specialist Ambulatory Services,TEAMBUILDING EVENTS LTD,id:12802840    ,2395.00
Department of Health,Guys and St Thomas NHS Foundation Trust,14/02/2020,(81200) Medical Surgical Supplies & Equipment,(id:3007419) Specialist Ambulatory Services,NHS SUPPLY CHAIN (MAIDSTONE),id:12743100  ,  96.00
Department of Health,Guys and St Thomas NHS Foundation Trust,27/02/2020,(81200) Medical Surgical Supplies & Equipment,(id:42193) Specialist Ambulatory Services,NHS SUPPLY CHAIN (MAIDSTONE),id:12794121    , 957.60
Department of Health,Guys and St Thomas NHS Foundation Trust,07/02/2020,(50552) Qualified Nursing Staff,(id:42193) Specialist Ambulatory Services,CONTINENTAL NURSE LTD,id:12796773,1814.37
Department of Health,Guys and St Thomas NHS Foundation Trust,07/02/2020,(81700) Lab Equipment Purchase,(id:42193) Specialist Ambulatory Services,NHS SUPPLY CHAIN (MAIDSTONE),id:12723357    , 721.54
Department of Health,Guys and St Thomas NHS Foundation Trust,14/02/2020,(82800) Bedding & Linen,(id:3989419) Specialist Ambulatory Services,NHS SUPPLY CHAIN (MAIDSTONE),id:12743100    , 117.50
Department of Health,Guys and St Thomas NHS Foundation Trust,14/02/2020,(81200) Medical Surgical Supplies & Equipment,(id:3989419) Specialist Ambulatory Services,BIO-MEDICAL DEVICES INTERNATIONAL INC.,id:12818095  , 120.00
Department of Health,Guys and St Thomas NHS Foundation Trust,07/02/2020,(81200) Medical Surgical Supplies & Equipment,(id:3989419) Specialist Ambulatory Services,NHS SUPPLY CHAIN (MAIDSTONE),id:12723357  ,  22.16
Department of Health,Guys and St Thomas NHS Foundation Trust,27/02/2020,(81200) Medical Surgical Supplies & Equipment,(id:42354) Specialist Ambulatory Services,CARDIFF AND VALE UNIVERSITY LOCAL HEALTH BOARD,id:12825792 , 630.00
Department of Health,Guys and St Thomas NHS Foundation Trust,07/02/2020,(89595) Non-Healthcare from Foundation Trusts,(id:42354) Specialist Ambulatory Services,GREAT ORMOND STREET HOSPITAL FOR CHILDREN NHS FOUNDATION TRUST,id:12777891,-880.00
Department of Health,Guys and St Thomas NHS Foundation Trust,21/02/2020,(89595) Non-Healthcare from Foundation Trusts,(id:42354) Specialist Ambulatory Services,MANCHESTER UNIVERSITY NHS FOUNDATION TRUST,id:12795605, 514.00
Department of Health,Guys and St Thomas NHS Foundation Trust,21/02/2020,(89595) Non-Healthcare from Foundation Trusts,(id:42354) Specialist Ambulatory Services,ROYAL DEVON AND EXETER NHS FOUNDATION TRUST,id:12803638    ,3535.00
Department of Health,Guys and St Thomas NHS Foundation Trust,21/02/2020,(89595) Non-Healthcare from Foundation Trusts,(id:42354) Specialist Ambulatory Services,ROYAL DEVON AND EXETER NHS FOUNDATION TRUST,id:12803644    ,9435.00
Department of Health,Guys and St Thomas NHS Foundation Trust,27/02/2020,(89595) Non-Healthcare from Foundation Trusts,(id:42354) Specialist Ambulatory Services,GREAT ORMOND STREET HOSPITAL FOR CHILDREN NHS FOUNDATION TRUST,id:12736819, 880.00
Department of Health,Guys and St Thomas NHS Foundation Trust,21/02/2020,(89595) Non-Healthcare from Foundation Trusts,(id:42354) Specialist Ambulatory Services,GREAT ORMOND STREET HOSPITAL FOR CHILDREN NHS FOUNDATION TRUST,id:12761571, 750.00
Department of Health,Guys and St Thomas NHS Foundation Trust,21/02/2020,(89595) Non-Healthcare from Foundation Trusts,(id:42354) Specialist Ambulatory Services,GREAT ORMOND STREET HOSPITAL FOR CHILDREN NHS FOUNDATION TRUST,id:12736824, 790.00
Department of Health,Guys and St Thomas NHS Foundation Trust,14/02/2020,(89640) Non-Healthcare from NHS Trusts,(id:42354) Specialist Ambulatory Services,LEEDS TEACHING HOSPITALS NHS TRUST,id:12729991,2791.70
Department of Health,Guys and St Thomas NHS Foundation Trust,21/02/2020,(82800) Bedding & Linen,(id:3607419) Specialist Ambulatory Services,NHS SUPPLY CHAIN (MAIDSTONE),id:12777276    ,  96.26
Department of Health,Guys and St Thomas NHS Foundation Trust,27/02/2020,(83400) Office Equipment,(id:42094) Specialist Ambulatory Services,NHS SUPPLY CHAIN (MAIDSTONE),id:12794121,  26.47
Department of Health,Guys and St Thomas NHS Foundation Trust,21/02/2020,(81100) Dressings,(id:42094) Specialist Ambulatory Services,NHS SUPPLY CHAIN (MAIDSTONE),id:12777276  , 174.00
Department of Health,Guys and St Thomas NHS Foundation Trust,07/02/2020,(81200) Medical Surgical Supplies & Equipment,(id:42094) Specialist Ambulatory Services,NHS SUPPLY CHAIN (MAIDSTONE),id:12723357    ,  56.40
Department of Health,Guys and St Thomas NHS Foundation Trust,14/02/2020,(89640) Non-Healthcare from NHS Trusts,(id:42092) Specialist Ambulatory Services,CAMBRIDGE UNIVERSITY HOSPITALS NHS FOUNDATION TRUST,id:10827791   ,  66.59
Department of Health,Guys and St Thomas NHS Foundation Trust,07/02/2020,(82000) Provisions & Kitchens,(id:42088) Specialist Ambulatory Services,NHS SUPPLY CHAIN (MAIDSTONE),id:12723357,   7.80
Department of Health,Guys and St Thomas NHS Foundation Trust,14/02/2020,(81200) Medical Surgical Supplies & Equipment,(id:42097) Specialist Ambulatory Services,NHS SUPPLY CHAIN (MAIDSTONE),id:12743100    ,1021.06
Department of Health,Guys and St Thomas NHS Foundation Trust,21/02/2020,(80010) Drug Costs,(id:42079) Specialist Ambulatory Services,THERAKOS (UK) LIMITED,id:12637855   ,    11232.00
Department of Health,Guys and St Thomas NHS Foundation Trust,07/02/2020,(81200) Medical Surgical Supplies & Equipment,(id:42079) Specialist Ambulatory Services,NHS SUPPLY CHAIN (MAIDSTONE),id:12723357    , 508.31
Department of Health,Guys and St Thomas NHS Foundation Trust,14/02/2020,(81200) Medical Surgical Supplies & Equipment,(id:42079) Specialist Ambulatory Services,NHS SUPPLY CHAIN (MAIDSTONE),id:12743100    , 637.57
Department of Health,Guys and St Thomas NHS Foundation Trust,21/02/2020,(81275) Medical Surgical Supplies & Equipment,(id:42079) Specialist Ambulatory Services,THERAKOS (UK) LIMITED,id:12826252 ,-748.80
Department of Health,Guys and St Thomas NHS Foundation Trust,07/02/2020,(81000) Surgical Appliances,(id:42066) Specialist Ambulatory Services,TALAR MADE ORTHOTICS LTD,id:12796421 ,  16.99
Department of Health,Guys and St Thomas NHS Foundation Trust,14/02/2020,(81700) Lab Equipment Purchase,(id:42066) Specialist Ambulatory Services,NHS SUPPLY CHAIN (MAIDSTONE),id:12743100    ,1076.06
Department of Health,Guys and St Thomas NHS Foundation Trust,27/02/2020,(81100) Dressings,(id:391417) Specialist Ambulatory Services,NHS SUPPLY CHAIN (MAIDSTONE),id:12794121 , 155.26
Department of Health,Guys and St Thomas NHS Foundation Trust,07/02/2020,(83400) Office Equipment,(id:42064) Specialist Ambulatory Services,NHS SUPPLY CHAIN (MAIDSTONE),id:12723357, 292.02
Department of Health,Guys and St Thomas NHS Foundation Trust,27/02/2020,(83400) Office Equipment,(id:590565) Specialist Ambulatory Services,NHS SUPPLY CHAIN (MAIDSTONE),id:12794121    ,  10.44
Department of Health,Guys and St Thomas NHS Foundation Trust,27/02/2020,(84500) Establishment,(id:42057) Specialist Ambulatory Services,OFFICE DEPOT UK LTD,id:12804557  , 519.66
Department of Health,Guys and St Thomas NHS Foundation Trust,07/02/2020,(84500) Establishment,(id:42050) Specialist Ambulatory Services,BARCODES FOR BUSINESS,id:12782471,1560.00
Department of Health,Guys and St Thomas NHS Foundation Trust,14/02/2020,(83400) Office Equipment,(id:42050) Specialist Ambulatory Services,NHS SUPPLY CHAIN (MAIDSTONE),id:12743100,  85.85
Department of Health,Guys and St Thomas NHS Foundation Trust,27/02/2020,(81200) Medical Surgical Supplies & Equipment,(id:42050) Specialist Ambulatory Services,NHS SUPPLY CHAIN (MAIDSTONE),id:12794121    ,1863.65
Department of Health,Guys and St Thomas NHS Foundation Trust,27/02/2020,(81900) Lab Equipment Purchase,(id:111406) Pathology SDU,VIAPATH ANALYTICS LLP,id:12672090  ,    13825.44
Department of Health,Guys and St Thomas NHS Foundation Trust,28/02/2020,(81900) Lab Equipment Purchase,(id:111406) Pathology SDU,VIAPATH ANALYTICS LLP,id:12671891  ,   268125.62
Department of Health,Guys and St Thomas NHS Foundation Trust,07/02/2020,(81900) Lab Equipment Purchase,(id:111406) Pathology SDU,VIAPATH SERVICES LLP,id:12581190   ,   250227.27
Department of Health,Guys and St Thomas NHS Foundation Trust,27/02/2020,(53672) Pharmacists,(id:42164) Pharmacy,TFS HEALTHCARE,id:12847667 ,1943.62
Department of Health,Guys and St Thomas NHS Foundation Trust,21/02/2020,(53672) Pharmacists,(id:42160) Pharmacy,PRICEWATERHOUSECOOPERS LLP,id:12834514    , 571.60
Department of Health,Guys and St Thomas NHS Foundation Trust,21/02/2020,(53632) Pharmacists,(id:42160) Pharmacy,PRICEWATERHOUSECOOPERS LLP,id:12834494    ,1304.51
Department of Health,Guys and St Thomas NHS Foundation Trust,26/02/2020,(53632) Pharmacists,(id:42160) Pharmacy,PRICEWATERHOUSECOOPERS LLP,id:12846903    ,2039.28
Department of Health,Guys and St Thomas NHS Foundation Trust,07/02/2020,(81200) Medical Surgical Supplies & Equipment,(id:581409) Pharmacy,H C SLINGSBY PLC,id:12802165  , 503.52
Department of Health,Guys and St Thomas NHS Foundation Trust,07/02/2020,(81200) Medical Surgical Supplies & Equipment,(id:581409) Pharmacy,FRESENIUS KABI LTD,id:12795089,4399.13
Department of Health,Guys and St Thomas NHS Foundation Trust,27/02/2020,(81200) Medical Surgical Supplies & Equipment,(id:581409) Pharmacy,ADDED PHARMA LTD,id:12842275  ,1530.00
Department of Health,Guys and St Thomas NHS Foundation Trust,14/02/2020,(81200) Medical Surgical Supplies & Equipment,(id:581409) Pharmacy,HELAPET LTD.,id:12813059 , 623.81
Department of Health,Guys and St Thomas NHS Foundation Trust,07/02/2020,(82600) Uniforms & Clothing,(id:581409) Pharmacy,NHS SUPPLY CHAIN (MAIDSTONE),id:12723357   , 266.28
Department of Health,Guys and St Thomas NHS Foundation Trust,21/02/2020,(83400) Office Equipment,(id:581409) Pharmacy,NHS SUPPLY CHAIN (MAIDSTONE),id:12777276 ,  46.08
Department of Health,Guys and St Thomas NHS Foundation Trust,14/02/2020,(80010) Drug Costs,(id:42159) Pharmacy,CHEMSPLASH LTD,id:12816301  ,1868.40
Department of Health,Guys and St Thomas NHS Foundation Trust,07/02/2020,(81200) Medical Surgical Supplies & Equipment,(id:42159) Pharmacy,METTLER-TOLEDO LTD,id:12784256 ,2060.64
Department of Health,Guys and St Thomas NHS Foundation Trust,27/02/2020,(81400) Medical Surgical Supplies & Equipment,(id:42159) Pharmacy,ALLWEATHER REFRIGERATION LTD CIS6,id:12821438 , 460.00
Department of Health,Guys and St Thomas NHS Foundation Trust,07/02/2020,(83400) Office Equipment,(id:42159) Pharmacy,NHS SUPPLY CHAIN (MAIDSTONE),id:12723357  ,  21.96
Department of Health,Guys and St Thomas NHS Foundation Trust,07/02/2020,(81275) Medical Surgical Supplies & Equipment,(id:42159) Pharmacy,THERMO FISHER SCIENTIFIC,id:12794050, 661.60
Department of Health,Guys and St Thomas NHS Foundation Trust,07/02/2020,(81700) Lab Equipment Purchase,(id:42159) Pharmacy,NHS SUPPLY CHAIN (MAIDSTONE),id:12723357 ,  50.40
Department of Health,Guys and St Thomas NHS Foundation Trust,27/02/2020,(81000) Surgical Appliances,(id:42171) Medical Specialties,TALAR MADE ORTHOTICS LTD,id:12851057  , 386.40
Department of Health,Guys and St Thomas NHS Foundation Trust,27/02/2020,(83400) Office Equipment,(id:42217) Medical Specialties,VIAPATH ANALYTICS LLP,id:12724753   ,1785.00
Department of Health,Guys and St Thomas NHS Foundation Trust,14/02/2020,(84600) Establishment,(id:3731419) Medical Specialties,SPRINGFIELD MEDICAL CENTRE,id:12803636    ,2560.00
Department of Health,Guys and St Thomas NHS Foundation Trust,21/02/2020,(51262) Dieticians,(id:42251) Medical Specialties,PRICEWATERHOUSECOOPERS LLP,id:12834494    ,4446.65
Department of Health,Guys and St Thomas NHS Foundation Trust,27/02/2020,(82800) Bedding & Linen,(id:42249) Medical Specialties,NHS SUPPLY CHAIN (MAIDSTONE),id:12794121  ,  26.21
Department of Health,Guys and St Thomas NHS Foundation Trust,14/02/2020,(50200) Consultants,(id:42223) Medical Specialties,UNIVERSITY COLLEGE LONDON,id:12669454    ,2147.25
Department of Health,Guys and St Thomas NHS Foundation Trust,27/02/2020,(81200) Medical Surgical Supplies & Equipment,(id:42223) Medical Specialties,HAAG STREIT UK LTD,id:12842714, 766.20
Department of Health,Guys and St Thomas NHS Foundation Trust,07/02/2020,(81200) Medical Surgical Supplies & Equipment,(id:42223) Medical Specialties,MAINLINE INSTRUMENTS LTD,id:12772296    , 972.00
Department of Health,Guys and St Thomas NHS Foundation Trust,14/02/2020,(81200) Medical Surgical Supplies & Equipment,(id:42223) Medical Specialties,CARL ZEISS LTD,id:12818877    , 816.73
Department of Health,Guys and St Thomas NHS Foundation Trust,14/02/2020,(81200) Medical Surgical Supplies & Equipment,(id:42223) Medical Specialties,ULTRAVISION CLPL,id:12807471  ,5258.90
Department of Health,Guys and St Thomas NHS Foundation Trust,27/02/2020,(89600) Non-Healthcare from other NHS bodies,(id:42223) Medical Specialties,NHS BLOOD AND TRANSPLANT,id:12845075,    -1255.85
Department of Health,Guys and St Thomas NHS Foundation Trust,14/02/2020,(81225) Medical Surgical Supplies & Equipment,(id:42223) Medical Specialties,ULTRAVISION CLPL,id:12794044  ,3655.60
Department of Health,Guys and St Thomas NHS Foundation Trust,14/02/2020,(82000) Provisions & Kitchens,(id:42223) Medical Specialties,NHS SUPPLY CHAIN (MAIDSTONE),id:12743100 ,  18.25
Department of Health,Guys and St Thomas NHS Foundation Trust,07/02/2020,(81200) Medical Surgical Supplies & Equipment,(id:42222) Medical Specialties,SQUADRON MEDICAL LTD,id:12760851   ,2615.52
Department of Health,Guys and St Thomas NHS Foundation Trust,07/02/2020,(81200) Medical Surgical Supplies & Equipment,(id:42221) Medical Specialties,NHS SUPPLY CHAIN (MAIDSTONE),id:12723357,2654.63
Department of Health,Guys and St Thomas NHS Foundation Trust,07/02/2020,(81200) Medical Surgical Supplies & Equipment,(id:42221) Medical Specialties,ALCON EYE CARE UK LIMITED,id:12776384   ,1734.00
Department of Health,Guys and St Thomas NHS Foundation Trust,14/02/2020,(81200) Medical Surgical Supplies & Equipment,(id:42221) Medical Specialties,ALCON EYE CARE UK LIMITED,id:12189111   ,1080.00
Department of Health,Guys and St Thomas NHS Foundation Trust,21/02/2020,(81200) Medical Surgical Supplies & Equipment,(id:42221) Medical Specialties,KESTREL OPHTHALMICS LTD.,id:12830965    ,1210.80
Department of Health,Guys and St Thomas NHS Foundation Trust,14/02/2020,(81225) Medical Surgical Supplies & Equipment,(id:42219) Medical Specialties,BERKSHIRE OPHTHALMIC LABS LTD,id:12810107    , 554.40
Department of Health,Guys and St Thomas NHS Foundation Trust,27/02/2020,(81200) Medical Surgical Supplies & Equipment,(id:42213) Medical Specialties,NHS SUPPLY CHAIN (MAIDSTONE),id:12794121, 336.90
Department of Health,Guys and St Thomas NHS Foundation Trust,27/02/2020,(50470) Medical Training Grades,(id:42213) Medical Specialties,KINGS COLLEGE LONDON:03529700,id:12593397   ,5198.32
Department of Health,Guys and St Thomas NHS Foundation Trust,21/02/2020,(51062) Chiropodists,(id:42213) Medical Specialties,PRICEWATERHOUSECOOPERS LLP,id:12834534  ,2280.20
Department of Health,Guys and St Thomas NHS Foundation Trust,27/02/2020,(89000) Other - Training courses and conferences,(id:42213) Medical Specialties,KINGS COLLEGE LONDON:03529700,id:12847975 , 690.00
Department of Health,Guys and St Thomas NHS Foundation Trust,27/02/2020,(81000) Surgical Appliances,(id:42213) Medical Specialties,TALAR MADE ORTHOTICS LTD,id:12848474  , 570.00
Department of Health,Guys and St Thomas NHS Foundation Trust,07/02/2020,(81000) Surgical Appliances,(id:42213) Medical Specialties,TALAR MADE ORTHOTICS LTD,id:12796267  , 492.54
Department of Health,Guys and St Thomas NHS Foundation Trust,07/02/2020,(81000) Surgical Appliances,(id:42213) Medical Specialties,LANGER UK LTD,id:12795035   , 288.41
Department of Health,Guys and St Thomas NHS Foundation Trust,07/02/2020,(81000) Surgical Appliances,(id:42213) Medical Specialties,TALAR MADE ORTHOTICS LTD,id:12797042  , 207.00
Department of Health,Guys and St Thomas NHS Foundation Trust,27/02/2020,(81000) Surgical Appliances,(id:42213) Medical Specialties,TALAR MADE ORTHOTICS LTD,id:12851435  ,  46.50
Department of Health,Guys and St Thomas NHS Foundation Trust,21/02/2020,(81200) Medical Surgical Supplies & Equipment,(id:42209) Medical Specialties,MEDTRONIC LTD,id:12825877,-574.49
Department of Health,Guys and St Thomas NHS Foundation Trust,07/02/2020,(81000) Surgical Appliances,(id:42209) Medical Specialties,TALAR MADE ORTHOTICS LTD,id:12796866  , 570.00
Department of Health,Guys and St Thomas NHS Foundation Trust,07/02/2020,(81200) Medical Surgical Supplies & Equipment,(id:42208) Medical Specialties,MEDTRONIC LTD,id:12779300, 756.50
Department of Health,Guys and St Thomas NHS Foundation Trust,07/02/2020,(81200) Medical Surgical Supplies & Equipment,(id:42208) Medical Specialties,DEXCOM UK,id:12795240    ,2547.00
Department of Health,Guys and St Thomas NHS Foundation Trust,07/02/2020,(81200) Medical Surgical Supplies & Equipment,(id:42208) Medical Specialties,MEDTRONIC LTD,id:12782396,1764.00
Department of Health,Guys and St Thomas NHS Foundation Trust,14/02/2020,(81200) Medical Surgical Supplies & Equipment,(id:42208) Medical Specialties,MEDTRONIC LTD,id:12810298, 653.04
Department of Health,Guys and St Thomas NHS Foundation Trust,14/02/2020,(81200) Medical Surgical Supplies & Equipment,(id:42208) Medical Specialties,DEXCOM UK,id:12819296    , 793.50
Department of Health,Guys and St Thomas NHS Foundation Trust,14/02/2020,(81200) Medical Surgical Supplies & Equipment,(id:42208) Medical Specialties,DEXCOM UK,id:12819416    , 793.50
Department of Health,Guys and St Thomas NHS Foundation Trust,14/02/2020,(81200) Medical Surgical Supplies & Equipment,(id:42208) Medical Specialties,MEDTRONIC LTD,id:12810249, 945.00
Department of Health,Guys and St Thomas NHS Foundation Trust,21/02/2020,(81200) Medical Surgical Supplies & Equipment,(id:42208) Medical Specialties,MEDTRONIC LTD,id:12825599, 996.01
Department of Health,Guys and St Thomas NHS Foundation Trust,27/02/2020,(81200) Medical Surgical Supplies & Equipment,(id:42208) Medical Specialties,DEXCOM UK,id:12834075    , 793.50
Department of Health,Guys and St Thomas NHS Foundation Trust,14/02/2020,(81200) Medical Surgical Supplies & Equipment,(id:42208) Medical Specialties,MEDTRONIC LTD,id:12810307, 702.00
Department of Health,Guys and St Thomas NHS Foundation Trust,14/02/2020,(81200) Medical Surgical Supplies & Equipment,(id:42208) Medical Specialties,INSULET INTERNATIONAL LTD,id:12783693   , 712.08
Department of Health,Guys and St Thomas NHS Foundation Trust,14/02/2020,(81200) Medical Surgical Supplies & Equipment,(id:42208) Medical Specialties,INSULET INTERNATIONAL LTD,id:12784366   , 712.08
Department of Health,Guys and St Thomas NHS Foundation Trust,14/02/2020,(81200) Medical Surgical Supplies & Equipment,(id:42208) Medical Specialties,MEDTRONIC LTD,id:12794278, 853.07
Department of Health,Guys and St Thomas NHS Foundation Trust,14/02/2020,(81200) Medical Surgical Supplies & Equipment,(id:42208) Medical Specialties,MEDTRONIC LTD,id:12736020, 567.00
Department of Health,Guys and St Thomas NHS Foundation Trust,14/02/2020,(81200) Medical Surgical Supplies & Equipment,(id:42208) Medical Specialties,MEDTRONIC LTD,id:12738182, 567.00
Department of Health,Guys and St Thomas NHS Foundation Trust,07/02/2020,(50552) Qualified Nursing Staff,(id:302405) Medical Specialties,CONTINENTAL NURSE LTD,id:12796702, 783.30
Department of Health,Guys and St Thomas NHS Foundation Trust,14/02/2020,(50204) Consultants,(id:302405) Medical Specialties,KING'S COLLEGE HOSPITAL NHS FOUNDATION TRUST,id:12779720    ,2369.58
Department of Health,Guys and St Thomas NHS Foundation Trust,07/02/2020,(81100) Dressings,(id:42205) Medical Specialties,NHS SUPPLY CHAIN (MAIDSTONE),id:12723357   ,  66.00
Department of Health,Guys and St Thomas NHS Foundation Trust,14/02/2020,(81200) Medical Surgical Supplies & Equipment,(id:41937) Medical Specialties,NHS SUPPLY CHAIN (MAIDSTONE),id:12743100, 148.56
Department of Health,Guys and St Thomas NHS Foundation Trust,27/02/2020,(81200) Medical Surgical Supplies & Equipment,(id:41937) Medical Specialties,NHS SUPPLY CHAIN (MAIDSTONE),id:12794121,5282.69
Department of Health,Guys and St Thomas NHS Foundation Trust,07/02/2020,(81200) Medical Surgical Supplies & Equipment,(id:41937) Medical Specialties,BOSTON SCIENTIFIC LTD,id:12783777  ,    12600.00
Department of Health,Guys and St Thomas NHS Foundation Trust,14/02/2020,(81100) Dressings,(id:41937) Medical Specialties,NHS SUPPLY CHAIN (MAIDSTONE),id:12743100   , 124.32
Department of Health,Guys and St Thomas NHS Foundation Trust,14/02/2020,(82800) Bedding & Linen,(id:41937) Medical Specialties,NHS SUPPLY CHAIN (MAIDSTONE),id:12743100  , 103.27
Department of Health,Guys and St Thomas NHS Foundation Trust,21/02/2020,(52062) Radiographers,(id:41937) Medical Specialties,PRICEWATERHOUSECOOPERS LLP,id:12834494 ,1261.17
Department of Health,Guys and St Thomas NHS Foundation Trust,21/02/2020,(81225) Medical Surgical Supplies & Equipment,(id:41937) Medical Specialties,ENEURA (UK) LTD,id:12828876   ,1612.00
Department of Health,Guys and St Thomas NHS Foundation Trust,21/02/2020,(82700) Uniforms & Clothing,(id:41937) Medical Specialties,NHS SUPPLY CHAIN (MAIDSTONE),id:12777276   ,  63.36
Department of Health,Guys and St Thomas NHS Foundation Trust,27/02/2020,(82700) Uniforms & Clothing,(id:41937) Medical Specialties,NHS SUPPLY CHAIN (MAIDSTONE),id:12794121   , 396.00
Department of Health,Guys and St Thomas NHS Foundation Trust,24/02/2020,(89440) Research and Development,(id:3601419) TAP,CASTOR EDC,id:12819816, 564.66
Department of Health,Guys and St Thomas NHS Foundation Trust,14/02/2020,(81200) Medical Surgical Supplies & Equipment,(id:850419) TAP,JOHNSON & JOHNSON MEDICAL LTD,id:12795638    , 632.59
Department of Health,Guys and St Thomas NHS Foundation Trust,14/02/2020,(81100) Dressings,(id:850419) TAP,NHS SUPPLY CHAIN (MAIDSTONE),id:12743100   , 142.61
Department of Health,Guys and St Thomas NHS Foundation Trust,21/02/2020,(82600) Uniforms & Clothing,(id:850419) TAP,NHS SUPPLY CHAIN (MAIDSTONE),id:12777276   ,  10.59
Department of Health,Guys and St Thomas NHS Foundation Trust,21/02/2020,(82600) Uniforms & Clothing,(id:850419) TAP,TOFFELN (BRISTOL),id:12822074    , 923.76
Department of Health,Guys and St Thomas NHS Foundation Trust,14/02/2020,(83400) Office Equipment,(id:41897) TAP,SQUADRON MEDICAL LTD,id:12783556, 204.17
Department of Health,Guys and St Thomas NHS Foundation Trust,07/02/2020,(82800) Bedding & Linen,(id:41897) TAP,NHS SUPPLY CHAIN (MAIDSTONE),id:12723357   ,  84.24
Department of Health,Guys and St Thomas NHS Foundation Trust,07/02/2020,(81200) Medical Surgical Supplies & Equipment,(id:41897) TAP,SQUADRON MEDICAL LTD,id:12749918    , 669.34
Department of Health,Guys and St Thomas NHS Foundation Trust,14/02/2020,(81200) Medical Surgical Supplies & Equipment,(id:41897) TAP,SQUADRON MEDICAL LTD,id:12783139    ,   4.82
Department of Health,Guys and St Thomas NHS Foundation Trust,21/02/2020,(81200) Medical Surgical Supplies & Equipment,(id:41897) TAP,NHS SUPPLY CHAIN (MAIDSTONE),id:12777276 ,6074.37
Department of Health,Guys and St Thomas NHS Foundation Trust,27/02/2020,(81200) Medical Surgical Supplies & Equipment,(id:41897) TAP,SQUADRON MEDICAL LTD,id:12814999    ,1200.88
Department of Health,Guys and St Thomas NHS Foundation Trust,07/02/2020,(81200) Medical Surgical Supplies & Equipment,(id:41897) TAP,SQUADRON MEDICAL LTD,id:12763957    , 961.87
Department of Health,Guys and St Thomas NHS Foundation Trust,14/02/2020,(81200) Medical Surgical Supplies & Equipment,(id:41897) TAP,CRYOLIFE EUROPA LTD,id:12816196, 726.00
Department of Health,Guys and St Thomas NHS Foundation Trust,07/02/2020,(81100) Dressings,(id:41897) TAP,SQUADRON MEDICAL LTD,id:12756633  ,  23.10
Department of Health,Guys and St Thomas NHS Foundation Trust,21/02/2020,(81100) Dressings,(id:41897) TAP,NHS SUPPLY CHAIN (MAIDSTONE),id:12777276    ,2315.44
Department of Health,Guys and St Thomas NHS Foundation Trust,21/02/2020,(81100) Dressings,(id:41897) TAP,ELIS UK LIMITED,id:12817296  , 865.75
Department of Health,Guys and St Thomas NHS Foundation Trust,21/02/2020,(81100) Dressings,(id:41897) TAP,ELIS UK LIMITED,id:12825913  , 548.85
Department of Health,Guys and St Thomas NHS Foundation Trust,07/02/2020,(82600) Uniforms & Clothing,(id:41894) TAP,SQUADRON MEDICAL LTD,id:12749803  ,  72.36
Department of Health,Guys and St Thomas NHS Foundation Trust,07/02/2020,(82600) Uniforms & Clothing,(id:41894) TAP,SQUADRON MEDICAL LTD,id:12751751  ,  72.36
Department of Health,Guys and St Thomas NHS Foundation Trust,07/02/2020,(81200) Medical Surgical Supplies & Equipment,(id:41894) TAP,SQUADRON MEDICAL LTD,id:12749799    ,  11.36
